Workbook

Sheet Manual Inputs
B1: Company | D1: Kentucky Power Co.
B2: State/Jurisdiction | D2: Kentucky
B3: Customer Class | D3: Industrial General Svc - Subtransmission
B4: Sample Year Begins | D4: 2019-04-01 | E4: =+D4+0/24 -> 2019-04-01
B5: Reporting Year Begins | D5: 2019-04-01 | E5: =+D5+0/24 -> 2019-04-01
B6: Days in Sample Year | D6: =DATE(YEAR(TYBegin)+1,MONTH(TYBegin),DAY(TYBegin))-TYBegin -> 366
A9: Test Year Inputs from Revenue Process
A10: Year | B10: Month | C10: kWh | D10: Customers | F10: SummaryID | G10: NCPTotal | H10: NCPOnPk | I10: NCPOffPk
A11: =YEAR(D5) -> 2019 | B11: =MONTH(D4) -> 4 | C11: 117910147.1 | D11: 19 | F11: LRAPKPCIGS | G11: 12442.02867 | H11: 11904.40541 | I11: 12183.57941
A12: =IF(B12=1,A11+1,A11) -> 2019 | B12: =IF(B11=12,1,B11+1) -> 5 | C12: 114286934.9 | D12: 19
A13: =IF(B13=1,A12+1,A12) -> 2019 | B13: =IF(B12=12,1,B12+1) -> 6 | C13: 121447648.2 | D13: 19
A14: 2019 | B14: 7 | C14: 114046633.4 | D14: 19
A15: 2019 | B15: 8 | C15: 120834502.8 | D15: 19
A16: 2019 | B16: 9 | C16: 109100473.1 | D16: 19
A17: 2019 | B17: 10 | C17: 113815805.8 | D17: 19
A18: 2019 | B18: 11 | C18: 112584683 | D18: 19
A19: 2019 | B19: 12 | C19: 101411479.3 | D19: 19
A20: 2020 | B20: 1 | C20: 118044166.2 | D20: 19
A21: 2020 | B21: 2 | C21: 106620368.6 | D21: 19
A22: 2020 | B22: 3 | C22: 107473973 | D22: 19
C23: =SUM(C11:C22) -> 1357576816 | D23: =SUM(D11:D22) -> 228
A25: Coincident Peaks
A26: Year | B26: Month | C26: Day | D26: Hour Ended | E26: Concident Peak
A27: =YEAR(TYBegin) -> 2019 | B27: =MONTH(TYBegin) -> 4 | C27: 1 | D27: 7 | E27: =DATEVALUE(B27&"/"&C27&"/"&A27)+(D27-1)/24 -> 2019-04-01T06:00:00
A28: =IF(B28=1,A27+1,A27) -> 2019 | B28: =IF(B27=12,1,B27+1) -> 5 | C28: 28 | D28: 16 | E28: =DATEVALUE(B28&"/"&C28&"/"&A28)+(D28-1)/24 -> 2019-05-28T15:00:00
A29: =IF(B29=1,A28+1,A28) -> 2019 | B29: =IF(B28=12,1,B28+1) -> 6 | C29: 27 | D29: 16 | E29: 2019-06-27T15:00:00
A30: 2019 | B30: 7 | C30: 19 | D30: 16 | E30: 2019-07-19T15:00:00
A31: 2019 | B31: 8 | C31: 19 | D31: 16 | E31: 2019-08-19T15:00:00
A32: 2019 | B32: 9 | C32: 11 | D32: 16 | E32: 2019-09-11T15:00:00
A33: 2019 | B33: 10 | C33: 1 | D33: 16 | E33: 2019-10-01T15:00:00
A34: 2019 | B34: 11 | C34: 13 | D34: 8 | E34: 2019-11-13T07:00:00
A35: 2019 | B35: 12 | C35: 19 | D35: 8 | E35: 2019-12-19T07:00:00
A36: 2020 | B36: 1 | C36: 22 | D36: 8 | E36: 2020-01-22T07:00:00
A37: 2020 | B37: 2 | C37: 15 | D37: 8 | E37: 2020-02-15T07:00:00
A38: 2020 | B38: 3 | C38: 1 | D38: 8 | E38: 2020-03-01T07:00:00

Sheet TOD Inputs
A1: Peak Times for TOD Tariffs | F1: Holidays
B2: Hour | C2: Formatted | F2: Description | G2: Date
A3: Peak Start Hour | B3: 7 | C3: =TEXT(B3/24,"h:mm AM/PM") -> 7:00 AM | F3: New Year's Day
A4: Peak End Hour | B4: 21 | C4: =TEXT(B4/24,"h:mm AM/PM") -> 9:00 PM | F4: President's Day
F5: Memorial Day
F6: Independence Day
A7: Daylight Savings Time | F7: Labor Day
A8: Starts | B8: 2020-03-08 | F8: Thanksgiving Day
A9: Ends | B9: 2019-11-03 | F9: Christmas Day
A19: DST Dates
B20: 2011 | C20: 2012 | D20: 2013 | E20: 2014
A21: Starts | B21: 2011-03-13 | C21: 2012-03-11 | D21: 2013-03-10 | E21: 2014-03-09
A22: Ends | B22: 2011-11-06 | C22: 2012-11-04 | D22: 2013-11-03 | E22: 2014-11-02
B24: 2015 | C24: 2016
B25: 2015-03-08 | C25: 2016-03-13
B26: 2015-11-01 | C26: 2016-11-06

Sheet LR Monthly
A1: STATISTICID | B1: CNAME | C1: YEAR | D1: MONTH | E1: ENERGY_MPU | F1: NCP | G1: NCP_ON | H1: NCP_OFF | I1: ClassPeak_Mont | J1: CLASS_PEAK_ON | K1: CLASS_PEAK_OFF
A2: LRKPCIGS | B2: KPC IGS CLASS RLW | C2: 2019 | D2: 4 | E2: 6952238.594 | F2: 11681.38783 | G2: 11048.25254 | H2: 11400.76852 | I2: 10631.06688 | J2: 10201.34434 | K2: 10631.06688
A3: LRKPCIGS | B3: KPC IGS CLASS RLW | C3: 2019 | D3: 5 | E3: 6851842.577 | F3: 11724.35941 | G3: 11060.05612 | H3: 11414.48508 | I3: 10444.62605 | J3: 10202.25935 | K3: 10444.62605
A4: LRKPCIGS | B4: KPC IGS CLASS RLW | C4: 2019 | D4: 6 | E4: 7207408.52 | F4: 11814.30648 | G4: 11195.02893 | H4: 11566.18637 | I4: 10624.07133 | J4: 10483.75982 | K4: 10624.07133
A5: LRKPCIGS | B5: KPC IGS CLASS RLW | C5: 2019 | D5: 7 | E5: 7303739.25 | F5: 11832.96475 | G5: 11258.40798 | H5: 11598.11715 | I5: 10823.41776 | J5: 10563.95588 | K5: 10823.41776
A6: LRKPCIGS | B6: KPC IGS CLASS RLW | C6: 2019 | D6: 8 | E6: 7282133.995 | F6: 11857.1355 | G6: 11322.28868 | H6: 11137.43345 | I6: 10492.15217 | J6: 10361.99192 | K6: 10492.15217
A7: LRKPCIGS | B7: KPC IGS CLASS RLW | C7: 2019 | D7: 9 | E7: 6789755.888 | F7: 11812.10214 | G7: 11160.56562 | H7: 11588.2668 | I7: 10354.49652 | J7: 10195.12432 | K7: 10354.49652
A8: LRKPCIGS | B8: KPC IGS CLASS RLW | C8: 2019 | D8: 10 | E8: 7104783.231 | F8: 11730.49398 | G8: 11176.85639 | H8: 11493.6111 | I8: 10558.21978 | J8: 10358.38126 | K8: 10558.21978
A9: LRKPCIGS | B9: KPC IGS CLASS RLW | C9: 2019 | D9: 11 | E9: 6682089.919 | F9: 11226.4345 | G9: 10626.58487 | H9: 10963.17354 | I9: 10071.63107 | J9: 9913.248342 | K9: 10071.63107
A10: LRKPCIGS | B10: KPC IGS CLASS RLW | C10: 2019 | D10: 12 | E10: 6702067.37 | F10: 11164.59255 | G10: 10683.0132 | H10: 10947.69114 | I10: 9962.732297 | J10: 9962.732297 | K10: 9801.226939
A11: LRKPCIGS | B11: KPC IGS CLASS RLW | C11: 2020 | D11: 1 | E11: 6951347.153 | F11: 11016.08072 | G11: 10499.27209 | H11: 10719.70483 | I11: 9947.691197 | J11: 9813.831937 | K11: 9947.691197
A12: LRKPCIGS | B12: KPC IGS CLASS RLW | C12: 2020 | D12: 2 | E12: 6592287.202 | F12: 10933.50391 | G12: 10372.0826 | H12: 10731.27039 | I12: 10082.34939 | J12: 9880.605474 | K12: 10082.34939
A13: LRKPCIGS | B13: KPC IGS CLASS RLW | C13: 2020 | D13: 3 | E13: 6531956.504 | F13: 10906.94709 | G13: 10086.19258 | H13: 10608.18272 | I13: 9560.663924 | J13: 9372.521061 | K13: 9560.663924

Sheet LR 8760 Loads
A1: ClassID | B1: Date | E1: IN | F1: UM | G1: CH | H1: TYP | I1: 01:00:00 | J1: 02:00:00 | K1: 03:00:00 | L1: 04:00:00 | M1: 05:00:00 | N1: 06:00:00 | O1: 07:00:00 | P1: 08:00:00 | Q1: 09:00:00 | R1: 10:00:00 | S1: 11:00:00 | T1: 12:00:00 | U1: 13:00:00 | V1: 14:00:00 | W1: 15:00:00 | X1: 16:00:00 | Y1: 17:00:00 | Z1: 18:00:00 | AA1: 19:00:00 | AB1: 20:00:00 | AC1: 21:00:00 | AD1: 22:00:00 | AE1: 23:00:00 | AF1: 1
A2: LRKPCIGS | B2: 040119 | C2: 1 | D2: 2400 | E2: 60 | F2: 1 | G2: 1 | H2: KW | I2: 9636.102126 | J2: 9728.47005 | K2: 9743.063005 | L2: 9646.176813 | M2: 9768.593595 | N2: 9704.146042 | O2: 9627.358013 | P2: 9596.7349 | Q2: 9638.893516 | R2: 9614.483676 | S2: 9587.461734 | T2: 9536.141605 | U2: 9712.848926 | V2: 9777.693326 | W2: 9692.266229 | X2: 9594.185989 | Y2: 9576.890211 | Z2: 9562.026434 | AA2: 9597.009466 | AB2: 9785.3071 | AC2: 9862.131039 | AD2: 10004.97006 | AE2: 10003.77039 | AF2: 9941.785271
A3: LRKPCIGS | B3: 040219 | C3: 1 | D3: 2400 | E3: 60 | F3: 1 | G3: 1 | H3: KW | I3: 9910.961589 | J3: 9867.899503 | K3: 9736.373484 | L3: 9708.012403 | M3: 9735.216942 | N3: 9897.527611 | O3: 9756.688697 | P3: 9873.717513 | Q3: 10068.95128 | R3: 10050.53606 | S3: 10097.93023 | T3: 10074.27997 | U3: 10029.1712 | V3: 10062.7189 | W3: 9917.485297 | X3: 9927.886968 | Y3: 9977.852774 | Z3: 9936.898426 | AA3: 9788.954834 | AB3: 9809.246271 | AC3: 9789.62225 | AD3: 10220.98746 | AE3: 10631.06688 | AF3: 10597.17026
A4: LRKPCIGS | B4: 040319 | C4: 1 | D4: 2400 | E4: 60 | F4: 1 | G4: 1 | H4: KW | I4: 10570.29047 | J4: 10520.55202 | K4: 10269.16875 | L4: 10146.1964 | M4: 10129.06271 | N4: 10166.29938 | O4: 10206.06261 | P4: 10201.34434 | Q4: 10126.48388 | R4: 9942.257824 | S4: 9741.616832 | T4: 9741.466176 | U4: 9788.372155 | V4: 9738.655037 | W4: 9623.319568 | X4: 9645.914289 | Y4: 9613.741597 | Z4: 9681.739268 | AA4: 9647.936218 | AB4: 9553.932374 | AC4: 9554.727939 | AD4: 9789.793313 | AE4: 9854.233705 | AF4: 10051.87621
A5: LRKPCIGS | B5: 040419 | C5: 1 | D5: 2400 | E5: 60 | F5: 1 | G5: 1 | H5: KW | I5: 10120.62649 | J5: 10005.45495 | K5: 10003.30529 | L5: 9963.668776 | M5: 9971.072563 | N5: 9923.347432 | O5: 9929.020118 | P5: 9881.696029 | Q5: 9954.342092 | R5: 10057.23948 | S5: 9971.134061 | T5: 10059.11265 | U5: 9880.948626 | V5: 9997.045421 | W5: 9927.526963 | X5: 9765.558805 | Y5: 9800.241076 | Z5: 9725.231971 | AA5: 9677.327363 | AB5: 9671.808145 | AC5: 9633.510142 | AD5: 9725.881018 | AE5: 9738.332611 | AF5: 9655.196474
A6: LRKPCIGS | B6: 040519 | C6: 1 | D6: 2400 | E6: 60 | F6: 1 | G6: 1 | H6: KW | I6: 9654.002924 | J6: 9605.334574 | K6: 9437.035121 | L6: 9313.769058 | M6: 9498.041234 | N6: 9490.119511 | O6: 9412.489061 | P6: 9821.159158 | Q6: 9905.134113 | R6: 9846.836237 | S6: 9733.577092 | T6: 9727.210832 | U6: 9598.447261 | V6: 9672.360924 | W6: 9656.074582 | X6: 9597.762011 | Y6: 9468.185205 | Z6: 9446.709834 | AA6: 9442.368524 | AB6: 9429.301916 | AC6: 9435.794487 | AD6: 9616.705155 | AE6: 9739.684726 | AF6: 9806.262326
A7: LRKPCIGS | B7: 040619 | C7: 1 | D7: 2400 | E7: 60 | F7: 1 | G7: 1 | H7: KW | I7: 9767.971092 | J7: 9698.893284 | K7: 9601.779824 | L7: 9664.199379 | M7: 9667.475461 | N7: 9717.030892 | O7: 9765.819621 | P7: 9901.815555 | Q7: 9949.145982 | R7: 9966.234637 | S7: 9899.426921 | T7: 9885.922211 | U7: 9897.421026 | V7: 9850.964545 | W7: 9750.956482 | X7: 9671.227189 | Y7: 9645.557408 | Z7: 9656.595308 | AA7: 9594.045624 | AB7: 9609.583032 | AC7: 9551.874461 | AD7: 9571.780989 | AE7: 9577.145224 | AF7: 9576.567316
A8: LRKPCIGS | B8: 040719 | C8: 1 | D8: 2400 | E8: 60 | F8: 1 | G8: 1 | H8: KW | I8: 9564.898016 | J8: 9517.692263 | K8: 9495.846966 | L8: 9480.431061 | M8: 9436.975613 | N8: 9461.285087 | O8: 9406.519305 | P8: 9387.740258 | Q8: 9391.394168 | R8: 9462.757539 | S8: 9506.823474 | T8: 9487.041379 | U8: 9459.494642 | V8: 9452.226024 | W8: 9450.264479 | X8: 9432.424316 | Y8: 9409.936345 | Z8: 9355.338158 | AA8: 9328.869311 | AB8: 9383.294555 | AC8: 9408.763708 | AD8: 9301.346692 | AE8: 9037.504221 | AF8: 9075.860979
A9: LRKPCIGS | B9: 040819 | C9: 1 | D9: 2400 | E9: 60 | F9: 1 | G9: 1 | H9: KW | I9: 9042.960342 | J9: 9008.351332 | K9: 9006.595079 | L9: 9007.140076 | M9: 8999.242555 | N9: 9046.292345 | O9: 9177.693092 | P9: 9527.932982 | Q9: 9629.011434 | R9: 9754.187026 | S9: 9578.845737 | T9: 9775.656274 | U9: 9674.254018 | V9: 9774.424392 | W9: 9823.58695 | X9: 9651.267976 | Y9: 9537.130584 | Z9: 9590.376037 | AA9: 9542.494042 | AB9: 9459.453418 | AC9: 9596.074305 | AD9: 9687.009745 | AE9: 9756.582118 | AF9: 9653.703779
A10: LRKPCIGS | B10: 040919 | C10: 1 | D10: 2400 | E10: 60 | F10: 1 | G10: 1 | H10: KW | I10: 9585.473134 | J10: 9598.796108 | K10: 9429.894187 | L10: 9323.480992 | M10: 9388.593389 | N10: 9299.674321 | O10: 9334.295861 | P10: 9502.273408 | Q10: 9599.622089 | R10: 9557.102411 | S10: 9707.859705 | T10: 9709.222539 | U10: 9798.098761 | V10: 9896.790058 | W10: 9949.484897 | X10: 9846.931608 | Y10: 9753.491089 | Z10: 9745.882853 | AA10: 9705.480279 | AB10: 9679.442379 | AC10: 9609.012363 | AD10: 9511.470355 | AE10: 9438.598987 | AF10: 9467.402605
A11: LRKPCIGS | B11: 041019 | C11: 1 | D11: 2400 | E11: 60 | F11: 1 | G11: 1 | H11: KW | I11: 9446.962863 | J11: 9374.206911 | K11: 9267.286689 | L11: 9201.543766 | M11: 9170.142092 | N11: 9224.253963 | O11: 9398.961161 | P11: 9782.540268 | Q11: 9828.301939 | R11: 9873.64 | S11: 9920.481332 | T11: 9741.425763 | U11: 9712.995739 | V11: 9832.799192 | W11: 9836.146624 | X11: 9850.810913 | Y11: 9660.793366 | Z11: 9639.326426 | AA11: 9568.494861 | AB11: 9547.4631 | AC11: 9485.955482 | AD11: 9819.009597 | AE11: 9981.719613 | AF11: 9904.34815
A12: LRKPCIGS | B12: 041119 | C12: 1 | D12: 2400 | E12: 60 | F12: 1 | G12: 1 | H12: KW | I12: 9846.531976 | J12: 9744.88305 | K12: 9744.974563 | L12: 9577.309768 | M12: 9599.387313 | N12: 9724.280034 | O12: 9867.817968 | P12: 9683.608655 | Q12: 9729.664189 | R12: 9672.339732 | S12: 9749.429592 | T12: 9688.634097 | U12: 9566.971782 | V12: 9559.142771 | W12: 9556.976555 | X12: 9559.636503 | Y12: 9519.964092 | Z12: 9454.326461 | AA12: 9526.327718 | AB12: 9441.126382 | AC12: 9517.807234 | AD12: 9650.186603 | AE12: 9650.630421 | AF12: 9698.068403
A13: LRKPCIGS | B13: 041219 | C13: 1 | D13: 2400 | E13: 60 | F13: 1 | G13: 1 | H13: KW | I13: 9634.514508 | J13: 9535.254463 | K13: 9428.633042 | L13: 9386.273037 | M13: 9368.924705 | N13: 9339.859853 | O13: 9370.644121 | P13: 9391.318716 | Q13: 9404.347416 | R13: 9401.740676 | S13: 9411.048008 | T13: 9355.781503 | U13: 9350.4688 | V13: 9614.985842 | W13: 9576.772629 | X13: 9510.618582 | Y13: 9446.949408 | Z13: 9402.803021 | AA13: 9382.508413 | AB13: 9402.513863 | AC13: 9403.460134 | AD13: 9513.471618 | AE13: 9691.902529 | AF13: 9845.877508
A14: LRKPCIGS | B14: 041319 | C14: 1 | D14: 2400 | E14: 60 | F14: 1 | G14: 1 | H14: KW | I14: 9810.355432 | J14: 9630.192334 | K14: 9506.5007 | L14: 9447.735732 | M14: 9421.333721 | N14: 9412.086929 | O14: 9488.336737 | P14: 9620.854466 | Q14: 9622.570547 | R14: 9624.615592 | S14: 9649.889295 | T14: 9628.779737 | U14: 9557.048116 | V14: 9574.859718 | W14: 9566.662455 | X14: 9616.178182 | Y14: 9606.760905 | Z14: 9625.979408 | AA14: 9606.712626 | AB14: 9651.044095 | AC14: 9644.116558 | AD14: 9636.905426 | AE14: 9564.747292 | AF14: 9556.172103
A15: LRKPCIGS | B15: 041419 | C15: 1 | D15: 2400 | E15: 60 | F15: 1 | G15: 1 | H15: KW | I15: 9522.926474 | J15: 9495.337295 | K15: 9447.272808 | L15: 9447.634479 | M15: 9464.905605 | N15: 9401.616129 | O15: 9419.480745 | P15: 9432.200321 | Q15: 9235.085524 | R15: 8947.670813 | S15: 8940.405479 | T15: 8962.175137 | U15: 8919.084871 | V15: 8928.790353 | W15: 8952.910629 | X15: 8949.039282 | Y15: 8912.444608 | Z15: 8913.879213 | AA15: 8919.251532 | AB15: 8878.173532 | AC15: 8855.997395 | AD15: 8832.406637 | AE15: 8804.685745 | AF15: 8840.207161
A16: LRKPCIGS | B16: 041519 | C16: 1 | D16: 2400 | E16: 60 | F16: 1 | G16: 1 | H16: KW | I16: 8850.611668 | J16: 8879.375211 | K16: 8903.305724 | L16: 8905.713313 | M16: 8892.819411 | N16: 8942.985218 | O16: 9039.742421 | P16: 9347.086508 | Q16: 9571.491495 | R16: 9600.579926 | S16: 9639.041142 | T16: 9621.92685 | U16: 9631.641845 | V16: 9595.492942 | W16: 9561.960939 | X16: 9559.534603 | Y16: 9486.893389 | Z16: 9478.936921 | AA16: 9574.275476 | AB16: 9664.347505 | AC16: 9749.238687 | AD16: 9858.266089 | AE16: 10002.44806 | AF16: 10110.95088
A17: LRKPCIGS | B17: 041619 | C17: 1 | D17: 2400 | E17: 60 | F17: 1 | G17: 1 | H17: KW | I17: 10129.0997 | J17: 10096.82483 | K17: 10085.12728 | L17: 10062.24966 | M17: 10049.85876 | N17: 10015.70703 | O17: 9879.205055 | P17: 9914.815942 | Q17: 9977.7261 | R17: 9937.727008 | S17: 9837.510982 | T17: 9749.850608 | U17: 9827.396892 | V17: 9911.239403 | W17: 9886.765839 | X17: 9726.669939 | Y17: 9669.099808 | Z17: 9561.374821 | AA17: 9485.141316 | AB17: 9555.231629 | AC17: 9470.050292 | AD17: 9642.810021 | AE17: 9863.403589 | AF17: 9912.361613
A18: LRKPCIGS | B18: 041719 | C18: 1 | D18: 2400 | E18: 60 | F18: 1 | G18: 1 | H18: KW | I18: 9972.081153 | J18: 9857.324597 | K18: 9810.131634 | L18: 9817.393921 | M18: 9798.828679 | N18: 9837.393687 | O18: 9881.135371 | P18: 9800.031947 | Q18: 9847.557226 | R18: 9816.949421 | S18: 9790.7548 | T18: 9694.965337 | U18: 9683.523489 | V18: 9779.981213 | W18: 9756.615553 | X18: 9759.347966 | Y18: 9759.562958 | Z18: 9722.610984 | AA18: 9639.094032 | AB18: 9633.822568 | AC18: 9630.985374 | AD18: 9684.454097 | AE18: 9644.139955 | AF18: 9647.166689
A19: LRKPCIGS | B19: 041819 | C19: 1 | D19: 2400 | E19: 60 | F19: 1 | G19: 1 | H19: KW | I19: 9537.740713 | J19: 9362.952889 | K19: 9229.028137 | L19: 9208.833155 | M19: 9256.321395 | N19: 9323.902253 | O19: 9526.747587 | P19: 9798.744066 | Q19: 9931.000745 | R19: 9903.784776 | S19: 9777.123213 | T19: 9675.949676 | U19: 9865.709532 | V19: 9849.082774 | W19: 9888.744587 | X19: 9921.578276 | Y19: 9879.940534 | Z19: 9834.144221 | AA19: 9770.525803 | AB19: 9597.169797 | AC19: 9558.471142 | AD19: 9468.520576 | AE19: 9467.731261 | AF19: 9478.434997
A20: LRKPCIGS | B20: 041919 | C20: 1 | D20: 2400 | E20: 60 | F20: 1 | G20: 1 | H20: KW | I20: 9450.491642 | J20: 9375.928868 | K20: 9284.244187 | L20: 9265.396534 | M20: 9351.965503 | N20: 9516.931429 | O20: 9746.2113 | P20: 9921.176613 | Q20: 9891.038329 | R20: 9862.164937 | S20: 9860.946853 | T20: 9862.962266 | U20: 9773.924511 | V20: 9795.209084 | W20: 9681.790492 | X20: 9590.861758 | Y20: 9479.986874 | Z20: 9479.780229 | AA20: 9430.577163 | AB20: 9460.413047 | AC20: 9396.875324 | AD20: 9602.729839 | AE20: 9633.499508 | AF20: 9748.249095
A21: LRKPCIGS | B21: 042019 | C21: 1 | D21: 2400 | E21: 60 | F21: 1 | G21: 1 | H21: KW | I21: 9800.501816 | J21: 9766.971784 | K21: 9654.139818 | L21: 9714.079005 | M21: 9712.336637 | N21: 9675.363013 | O21: 9710.635997 | P21: 9726.637976 | Q21: 9692.704716 | R21: 9646.474782 | S21: 9671.791371 | T21: 9673.012597 | U21: 9663.641389 | V21: 9663.858255 | W21: 9670.568358 | X21: 9688.204037 | Y21: 9660.151547 | Z21: 9668.618234 | AA21: 9651.621253 | AB21: 9647.837379 | AC21: 9671.726774 | AD21: 9623.816345 | AE21: 9611.755458 | AF21: 9632.649063
A22: LRKPCIGS | B22: 042119 | C22: 1 | D22: 2400 | E22: 60 | F22: 1 | G22: 1 | H22: KW | I22: 9630.232882 | J22: 9579.488555 | K22: 9573.484668 | L22: 9618.762334 | M22: 9611.054089 | N22: 9581.118839 | O22: 9624.960582 | P22: 9612.896374 | Q22: 9562.212095 | R22: 9527.327353 | S22: 9497.657916 | T22: 9461.502792 | U22: 9404.878468 | V22: 9391.898779 | W22: 9431.234655 | X22: 9427.325263 | Y22: 9394.225982 | Z22: 9423.277095 | AA22: 9467.560932 | AB22: 9470.697395 | AC22: 9482.945042 | AD22: 9479.479016 | AE22: 9484.454716 | AF22: 9523.692942
A23: LRKPCIGS | B23: 042219 | C23: 1 | D23: 2400 | E23: 60 | F23: 1 | G23: 1 | H23: KW | I23: 9540.711976 | J23: 9538.165087 | K23: 9533.457229 | L23: 9502.554218 | M23: 9477.995858 | N23: 9531.959132 | O23: 9434.598953 | P23: 9764.577239 | Q23: 9897.042497 | R23: 9919.238242 | S23: 9933.002847 | T23: 9957.130832 | U23: 9890.570918 | V23: 9981.922474 | W23: 10038.45875 | X23: 10079.49538 | Y23: 9960.462608 | Z23: 9915.103947 | AA23: 9890.491126 | AB23: 9819.759342 | AC23: 9790.666021 | AD23: 10035.69747 | AE23: 10318.43243 | AF23: 10316.66727
A24: LRKPCIGS | B24: 042319 | C24: 1 | D24: 2400 | E24: 60 | F24: 1 | G24: 1 | H24: KW | I24: 9991.138374 | J24: 10007.07749 | K24: 9943.493908 | L24: 9849.579266 | M24: 9925.551937 | N24: 9999.566105 | O24: 9944.584963 | P24: 9776.782734 | Q24: 9865.493318 | R24: 9900.073111 | S24: 9953.574861 | T24: 9952.635358 | U24: 9784.616529 | V24: 10067.97208 | W24: 10012.69274 | X24: 10015.46735 | Y24: 9989.157832 | Z24: 10001.87627 | AA24: 9899.743016 | AB24: 9989.025584 | AC24: 9957.610947 | AD24: 10157.56524 | AE24: 10296.24813 | AF24: 10261.57567
A25: LRKPCIGS | B25: 042419 | C25: 1 | D25: 2400 | E25: 60 | F25: 1 | G25: 1 | H25: KW | I25: 10059.32543 | J25: 9949.236774 | K25: 9822.815745 | L25: 9788.715326 | M25: 9817.686258 | N25: 9842.896039 | O25: 9770.976366 | P25: 9733.783766 | Q25: 9896.365445 | R25: 9836.434097 | S25: 9982.381797 | T25: 10083.90615 | U25: 10058.83003 | V25: 10192.92008 | W25: 10003.35734 | X25: 9926.585489 | Y25: 9841.577924 | Z25: 9775.253603 | AA25: 9766.469784 | AB25: 9718.494432 | AC25: 9716.986042 | AD25: 9949.80335 | AE25: 10254.2045 | AF25: 10202.46039
A26: LRKPCIGS | B26: 042519 | C26: 1 | D26: 2400 | E26: 60 | F26: 1 | G26: 1 | H26: KW | I26: 10082.53001 | J26: 10032.39287 | K26: 9918.106905 | L26: 9769.012813 | M26: 9927.350513 | N26: 9961.389508 | O26: 9875.967989 | P26: 9811.893097 | Q26: 10031.68431 | R26: 10077.57864 | S26: 10122.84214 | T26: 10073.691 | U26: 9991.470176 | V26: 10055.03011 | W26: 9923.385426 | X26: 9828.599889 | Y26: 9848.180287 | Z26: 9868.959511 | AA26: 9800.768295 | AB26: 9737.067758 | AC26: 9745.357492 | AD26: 9904.377445 | AE26: 10022.83105 | AF26: 10131.09783
A27: LRKPCIGS | B27: 042619 | C27: 1 | D27: 2400 | E27: 60 | F27: 1 | G27: 1 | H27: KW | I27: 9993.253805 | J27: 9918.091632 | K27: 9848.639708 | L27: 9767.155918 | M27: 9737.840279 | N27: 9765.067424 | O27: 9752.567668 | P27: 9742.606389 | Q27: 9831.343766 | R27: 9939.611858 | S27: 9839.381361 | T27: 9737.484484 | U27: 9650.748268 | V27: 9707.695463 | W27: 9737.790176 | X27: 9645.097087 | Y27: 9501.335903 | Z27: 9496.422671 | AA27: 9450.511737 | AB27: 9441.516279 | AC27: 9395.899897 | AD27: 9580.581005 | AE27: 9756.669692 | AF27: 9832.110487
A28: LRKPCIGS | B28: 042719 | C28: 1 | D28: 2400 | E28: 60 | F28: 1 | G28: 1 | H28: KW | I28: 9671.469021 | J28: 9560.554295 | K28: 9446.615229 | L28: 9455.616632 | M28: 9478.060424 | N28: 9499.580947 | O28: 9537.833724 | P28: 9588.789042 | Q28: 9616.425289 | R28: 9623.546421 | S28: 9616.268021 | T28: 9640.619926 | U28: 9626.118168 | V28: 9578.088861 | W28: 9494.289011 | X28: 9414.802818 | Y28: 9392.719011 | Z28: 9417.056739 | AA28: 9411.881313 | AB28: 9415.319061 | AC28: 9419.837453 | AD28: 9440.9142 | AE28: 9464.922061 | AF28: 9412.79885
A29: LRKPCIGS | B29: 042819 | C29: 1 | D29: 2400 | E29: 60 | F29: 1 | G29: 1 | H29: KW | I29: 9461.096532 | J29: 9439.852474 | K29: 9426.3457 | L29: 9402.904768 | M29: 9357.613218 | N29: 9406.785368 | O29: 9434.348942 | P29: 9385.873389 | Q29: 9365.234626 | R29: 9370.209176 | S29: 9353.550024 | T29: 9381.415729 | U29: 9364.673632 | V29: 9351.008795 | W29: 9390.115163 | X29: 9585.058384 | Y29: 9598.055658 | Z29: 9589.3795 | AA29: 9625.513095 | AB29: 9422.430318 | AC29: 9443.325363 | AD29: 9444.035408 | AE29: 9402.445326 | AF29: 9458.960374
A30: LRKPCIGS | B30: 042919 | C30: 1 | D30: 2400 | E30: 60 | F30: 1 | G30: 1 | H30: KW | I30: 9440.289361 | J30: 9506.238916 | K30: 9561.074829 | L30: 9614.487076 | M30: 9646.656455 | N30: 9670.844234 | O30: 9744.242953 | P30: 9787.786497 | Q30: 10020.83909 | R30: 10045.67498 | S30: 9978.864397 | T30: 9903.449789 | U30: 9894.695913 | V30: 10018.17013 | W30: 10071.86148 | X30: 9883.897579 | Y30: 9739.392697 | Z30: 9695.920245 | AA30: 9609.232984 | AB30: 9588.403984 | AC30: 9601.036026 | AD30: 9798.757945 | AE30: 9956.515145 | AF30: 10084.97052
A31: LRKPCIGS | B31: 043019 | C31: 1 | D31: 2400 | E31: 60 | F31: 1 | G31: 1 | H31: KW | I31: 9843.506974 | J31: 9854.371221 | K31: 9682.594655 | L31: 9554.019803 | M31: 9398.825105 | N31: 9452.736871 | O31: 9434.490989 | P31: 9353.688876 | Q31: 9470.174016 | R31: 9439.801308 | S31: 9317.568105 | T31: 9348.579142 | U31: 9278.266492 | V31: 9418.056889 | W31: 9350.976763 | X31: 9228.020334 | Y31: 9113.664745 | Z31: 9133.944689 | AA31: 9176.857468 | AB31: 9143.459824 | AC31: 9147.252926 | AD31: 9281.663 | AE31: 9445.840521 | AF31: 9449.2496
A32: LRKPCIGS | B32: 050119 | C32: 1 | D32: 2400 | E32: 60 | F32: 1 | G32: 1 | H32: KW | I32: 9308.410442 | J32: 9265.056395 | K32: 9165.195658 | L32: 9175.310808 | M32: 9117.3258 | N32: 9130.550811 | O32: 9175.921342 | P32: 9103.975095 | Q32: 9175.531405 | R32: 9374.979187 | S32: 9292.660647 | T32: 9262.100637 | U32: 9161.887529 | V32: 9271.474782 | W32: 9238.878455 | X32: 9054.576542 | Y32: 9059.823542 | Z32: 9200.694861 | AA32: 9177.742226 | AB32: 9135.476945 | AC32: 9159.637458 | AD32: 9274.679895 | AE32: 9504.02155 | AF32: 9576.891966
A33: LRKPCIGS | B33: 050219 | C33: 1 | D33: 2400 | E33: 60 | F33: 1 | G33: 1 | H33: KW | I33: 9398.695839 | J33: 9297.878495 | K33: 9221.229416 | L33: 9187.659961 | M33: 9232.020334 | N33: 9223.274266 | O33: 9350.026921 | P33: 9307.343424 | Q33: 9384.799311 | R33: 9264.548224 | S33: 9045.099847 | T33: 9013.603182 | U33: 9101.523574 | V33: 9045.455605 | W33: 9158.046687 | X33: 9086.629737 | Y33: 9025.389711 | Z33: 9160.272518 | AA33: 9112.717139 | AB33: 9084.991079 | AC33: 9108.729345 | AD33: 9221.149118 | AE33: 9292.892618 | AF33: 9363.500784
A34: LRKPCIGS | B34: 050319 | C34: 1 | D34: 2400 | E34: 60 | F34: 1 | G34: 1 | H34: KW | I34: 9283.368595 | J34: 9214.353334 | K34: 9114.12015 | L34: 9066.748874 | M34: 9006.858363 | N34: 9038.319345 | O34: 8929.923976 | P34: 8787.793279 | Q34: 8880.03005 | R34: 9077.6986 | S34: 9277.925318 | T34: 9210.704421 | U34: 9100.361182 | V34: 9174.377437 | W34: 9130.907461 | X34: 8986.174832 | Y34: 8968.640779 | Z34: 8950.828545 | AA34: 8742.766216 | AB34: 8849.416776 | AC34: 8783.881666 | AD34: 8838.853642 | AE34: 8997.991934 | AF34: 8942.762961
A35: LRKPCIGS | B35: 050419 | C35: 1 | D35: 2400 | E35: 60 | F35: 1 | G35: 1 | H35: KW | I35: 8878.883013 | J35: 8783.821316 | K35: 8686.256095 | L35: 8750.361334 | M35: 8665.696545 | N35: 8623.954284 | O35: 8664.616045 | P35: 8653.523063 | Q35: 8541.756297 | R35: 8568.028382 | S35: 8578.169992 | T35: 8549.000313 | U35: 8510.989297 | V35: 8505.295497 | W35: 8512.485153 | X35: 8602.307897 | Y35: 8589.049171 | Z35: 8615.533984 | AA35: 8625.535732 | AB35: 8605.550216 | AC35: 8625.564568 | AD35: 8652.425511 | AE35: 8581.741429 | AF35: 8603.097342
A36: LRKPCIGS | B36: 050519 | C36: 1 | D36: 2400 | E36: 60 | F36: 1 | G36: 1 | H36: KW | I36: 8581.195847 | J36: 8531.1226 | K36: 8563.966605 | L36: 8633.318426 | M36: 8700.510753 | N36: 8644.078837 | O36: 8631.228105 | P36: 8589.738453 | Q36: 8559.132055 | R36: 8538.770308 | S36: 8497.068526 | T36: 8540.905774 | U36: 8546.799353 | V36: 8527.834824 | W36: 8531.202624 | X36: 8535.75505 | Y36: 8559.714374 | Z36: 8517.229076 | AA36: 8508.781047 | AB36: 8470.193168 | AC36: 8442.230811 | AD36: 8483.307303 | AE36: 8515.595821 | AF36: 8567.98795
A37: LRKPCIGS | B37: 050619 | C37: 1 | D37: 2400 | E37: 60 | F37: 1 | G37: 1 | H37: KW | I37: 8599.768197 | J37: 8597.9619 | K37: 8625.295784 | L37: 8602.105658 | M37: 8596.000716 | N37: 8599.777658 | O37: 8790.800679 | P37: 8794.956658 | Q37: 8943.780687 | R37: 9007.149768 | S37: 8925.548197 | T37: 8877.523289 | U37: 8845.625145 | V37: 8948.939953 | W37: 8893.266445 | X37: 8831.558516 | Y37: 8783.363626 | Z37: 8910.450082 | AA37: 8835.978839 | AB37: 8722.047229 | AC37: 8685.844405 | AD37: 8884.772921 | AE37: 9165.299079 | AF37: 9168.170339
A38: LRKPCIGS | B38: 050719 | C38: 1 | D38: 2400 | E38: 60 | F38: 1 | G38: 1 | H38: KW | I38: 9043.177347 | J38: 8988.707966 | K38: 8931.902576 | L38: 8891.409547 | M38: 8703.197571 | N38: 8731.383826 | O38: 8746.258579 | P38: 8716.295682 | Q38: 8719.145239 | R38: 8754.625203 | S38: 8881.726003 | T38: 8784.129908 | U38: 8655.035274 | V38: 8675.237626 | W38: 8679.24335 | X38: 8741.012247 | Y38: 8738.366563 | Z38: 8656.665705 | AA38: 8669.890008 | AB38: 8618.357655 | AC38: 8624.393397 | AD38: 8803.360713 | AE38: 8912.644771 | AF38: 8883.038097
A39: LRKPCIGS | B39: 050819 | C39: 1 | D39: 2400 | E39: 60 | F39: 1 | G39: 1 | H39: KW | I39: 8815.518879 | J39: 8767.573058 | K39: 8718.487503 | L39: 8635.684282 | M39: 8616.196937 | N39: 8661.411037 | O39: 8575.433142 | P39: 8476.779266 | Q39: 8499.394118 | R39: 8432.754495 | S39: 8376.346616 | T39: 8615.662066 | U39: 8743.545347 | V39: 8781.815371 | W39: 8741.239332 | X39: 8718.589374 | Y39: 8796.862942 | Z39: 8759.038971 | AA39: 8755.274563 | AB39: 8739.128718 | AC39: 8678.736832 | AD39: 9035.887297 | AE39: 9101.256645 | AF39: 9016.308663
A40: LRKPCIGS | B40: 050919 | C40: 1 | D40: 2400 | E40: 60 | F40: 1 | G40: 1 | H40: KW | I40: 8963.010911 | J40: 8890.142097 | K40: 8807.540668 | L40: 8668.872545 | M40: 8743.170568 | N40: 8779.304261 | O40: 8720.848426 | P40: 8704.77165 | Q40: 8827.688947 | R40: 8846.130053 | S40: 8868.997811 | T40: 8718.167558 | U40: 8642.501742 | V40: 8656.321395 | W40: 8579.444403 | X40: 8522.89255 | Y40: 8619.040321 | Z40: 8656.285013 | AA40: 8582.602489 | AB40: 8575.880834 | AC40: 8630.546824 | AD40: 8556.853934 | AE40: 8605.177924 | AF40: 8557.747047
A41: LRKPCIGS | B41: 051019 | C41: 1 | D41: 2400 | E41: 60 | F41: 1 | G41: 1 | H41: KW | I41: 8344.087776 | J41: 8201.037682 | K41: 8119.287763 | L41: 8067.700397 | M41: 8075.944953 | N41: 8132.603992 | O41: 8214.210084 | P41: 8411.024847 | Q41: 8606.416592 | R41: 8620.237924 | S41: 8437.231692 | T41: 8474.556368 | U41: 8397.306966 | V41: 8418.643061 | W41: 8407.139729 | X41: 8386.808097 | Y41: 8397.530158 | Z41: 8405.230618 | AA41: 8389.455403 | AB41: 8361.120647 | AC41: 8515.173821 | AD41: 8661.612839 | AE41: 8615.896989 | AF41: 8682.092382
A42: LRKPCIGS | B42: 051119 | C42: 1 | D42: 2400 | E42: 60 | F42: 1 | G42: 1 | H42: KW | I42: 8567.83375 | J42: 8473.914853 | K42: 8419.603434 | L42: 8393.822476 | M42: 8409.302326 | N42: 8409.778208 | O42: 8408.719292 | P42: 8441.798792 | Q42: 8489.294339 | R42: 8413.872787 | S42: 8374.072911 | T42: 8416.865324 | U42: 8451.245666 | V42: 8419.661047 | W42: 8428.452179 | X42: 8414.847495 | Y42: 8418.689655 | Z42: 8420.922397 | AA42: 8427.312424 | AB42: 8449.486653 | AC42: 8418.195013 | AD42: 8391.81155 | AE42: 8373.639116 | AF42: 8385.7327
A43: LRKPCIGS | B43: 051219 | C43: 1 | D43: 2400 | E43: 60 | F43: 1 | G43: 1 | H43: KW | I43: 8435.404255 | J43: 8405.513834 | K43: 8406.596116 | L43: 8447.469624 | M43: 8473.352303 | N43: 8468.651563 | O43: 8456.182384 | P43: 8452.589426 | Q43: 8410.900576 | R43: 8379.232568 | S43: 8366.817247 | T43: 8359.850408 | U43: 8318.361176 | V43: 8304.522429 | W43: 8380.789432 | X43: 8417.808782 | Y43: 8390.394018 | Z43: 8396.692508 | AA43: 8396.321321 | AB43: 8413.060392 | AC43: 8459.899832 | AD43: 8494.093737 | AE43: 8520.354545 | AF43: 8492.355553
A44: LRKPCIGS | B44: 051319 | C44: 1 | D44: 2400 | E44: 60 | F44: 1 | G44: 1 | H44: KW | I44: 8487.146724 | J44: 8453.981997 | K44: 8141.190403 | L44: 8063.784666 | M44: 8086.657721 | N44: 8082.75615 | O44: 8010.543803 | P44: 8145.251926 | Q44: 8251.082708 | R44: 8468.330516 | S44: 8561.667732 | T44: 8481.401016 | U44: 8321.971866 | V44: 8385.744674 | W44: 8414.439632 | X44: 8645.390232 | Y44: 8641.775189 | Z44: 8769.935129 | AA44: 8758.437432 | AB44: 8644.491713 | AC44: 8668.682008 | AD44: 8633.449432 | AE44: 8554.804266 | AF44: 8555.067466
A45: LRKPCIGS | B45: 051419 | C45: 1 | D45: 2400 | E45: 60 | F45: 1 | G45: 1 | H45: KW | I45: 8533.099308 | J45: 8557.323366 | K45: 8517.933908 | L45: 8542.026729 | M45: 8580.073682 | N45: 8611.552368 | O45: 8656.043366 | P45: 8899.499208 | Q45: 9103.1458 | R45: 8945.064271 | S45: 8939.464366 | T45: 9005.836611 | U45: 8888.963503 | V45: 8746.698295 | W45: 8759.050763 | X45: 8800.224703 | Y45: 8784.092432 | Z45: 8820.167182 | AA45: 8660.964687 | AB45: 8726.559147 | AC45: 8708.873058 | AD45: 8878.883676 | AE45: 8914.144992 | AF45: 9180.402066
A46: LRKPCIGS | B46: 051519 | C46: 1 | D46: 2400 | E46: 60 | F46: 1 | G46: 1 | H46: KW | I46: 9188.647574 | J46: 9107.516832 | K46: 9098.110521 | L46: 9066.994758 | M46: 9013.059218 | N46: 9068.372545 | O46: 9059.991334 | P46: 9043.023639 | Q46: 9042.450716 | R46: 8967.807674 | S46: 8740.784634 | T46: 8779.589511 | U46: 8888.169182 | V46: 8861.367121 | W46: 8894.345847 | X46: 8876.8835 | Y46: 8937.299371 | Z46: 8951.655358 | AA46: 8811.991332 | AB46: 8845.035566 | AC46: 8931.859613 | AD46: 9171.221532 | AE46: 9281.953366 | AF46: 9328.503874
A47: LRKPCIGS | B47: 051619 | C47: 1 | D47: 2400 | E47: 60 | F47: 1 | G47: 1 | H47: KW | I47: 9330.576145 | J47: 9198.971026 | K47: 9146.5542 | L47: 9152.972868 | M47: 9013.602508 | N47: 9084.529726 | O47: 9033.264311 | P47: 9117.076755 | Q47: 9219.351561 | R47: 9145.345724 | S47: 9014.555358 | T47: 8998.922189 | U47: 9097.4669 | V47: 9263.699047 | W47: 9229.386334 | X47: 9193.223953 | Y47: 9063.705082 | Z47: 9043.450289 | AA47: 8975.584295 | AB47: 9025.378979 | AC47: 9216.356032 | AD47: 9477.380753 | AE47: 9671.477721 | AF47: 9707.872629
A48: LRKPCIGS | B48: 051719 | C48: 1 | D48: 2400 | E48: 60 | F48: 1 | G48: 1 | H48: KW | I48: 9763.060134 | J48: 9488.613174 | K48: 9445.974471 | L48: 9524.330329 | M48: 9384.102626 | N48: 9360.733971 | O48: 9297.655395 | P48: 9281.958671 | Q48: 9457.737203 | R48: 9506.689005 | S48: 9550.135971 | T48: 9383.356245 | U48: 9381.541558 | V48: 9507.445032 | W48: 9297.701953 | X48: 9265.548792 | Y48: 9259.248474 | Z48: 9275.494808 | AA48: 9200.1682 | AB48: 9224.731595 | AC48: 9199.179521 | AD48: 9361.112766 | AE48: 9514.616358 | AF48: 9535.667726
A49: LRKPCIGS | B49: 051819 | C49: 1 | D49: 2400 | E49: 60 | F49: 1 | G49: 1 | H49: KW | I49: 9466.731289 | J49: 9359.535292 | K49: 9229.120295 | L49: 9197.9682 | M49: 9225.785321 | N49: 9334.381768 | O49: 9312.059737 | P49: 9399.073358 | Q49: 9414.041539 | R49: 9426.642521 | S49: 9436.206689 | T49: 9494.415921 | U49: 9444.469555 | V49: 9438.854816 | W49: 9424.336529 | X49: 9431.194811 | Y49: 9418.908416 | Z49: 9465.699792 | AA49: 9475.049332 | AB49: 9456.030321 | AC49: 9446.976611 | AD49: 9616.863139 | AE49: 9644.779434 | AF49: 9550.905792
A50: LRKPCIGS | B50: 051919 | C50: 1 | D50: 2400 | E50: 60 | F50: 1 | G50: 1 | H50: KW | I50: 9542.068679 | J50: 9455.217853 | K50: 9396.171139 | L50: 9401.048395 | M50: 9406.071161 | N50: 9398.496282 | O50: 9356.994582 | P50: 9351.327829 | Q50: 9369.569671 | R50: 9452.781155 | S50: 9419.601029 | T50: 9419.908076 | U50: 9371.423137 | V50: 9373.945795 | W50: 9387.212379 | X50: 9362.988645 | Y50: 9347.081174 | Z50: 9336.751713 | AA50: 9308.720003 | AB50: 9327.039289 | AC50: 9408.453076 | AD50: 9434.544042 | AE50: 9458.941582 | AF50: 9466.959489
A51: LRKPCIGS | B51: 052019 | C51: 1 | D51: 2400 | E51: 60 | F51: 1 | G51: 1 | H51: KW | I51: 9499.461958 | J51: 9480.188039 | K51: 9499.501529 | L51: 9542.760671 | M51: 9519.402413 | N51: 9540.669345 | O51: 9600.808339 | P51: 9444.0258 | Q51: 9502.830284 | R51: 9569.082942 | S51: 9597.823453 | T51: 9703.252711 | U51: 9871.951982 | V51: 9987.54765 | W51: 9966.725961 | X51: 9865.308592 | Y51: 9813.216647 | Z51: 9801.336487 | AA51: 9757.682384 | AB51: 9721.320066 | AC51: 9726.984105 | AD51: 9939.857361 | AE51: 10048.36279 | AF51: 10151.07329
A52: LRKPCIGS | B52: 052119 | C52: 1 | D52: 2400 | E52: 60 | F52: 1 | G52: 1 | H52: KW | I52: 10112.24113 | J52: 9799.977726 | K52: 9934.419787 | L52: 9890.4906 | M52: 9699.582242 | N52: 9760.785166 | O52: 9848.374563 | P52: 9847.169779 | Q52: 9930.575692 | R52: 9983.423503 | S52: 9980.006521 | T52: 9937.150553 | U52: 9896.397518 | V52: 9986.970087 | W52: 9802.071058 | X52: 9858.245674 | Y52: 9766.026266 | Z52: 9726.957229 | AA52: 9680.333132 | AB52: 9664.325668 | AC52: 9607.482608 | AD52: 9824.643408 | AE52: 9989.760205 | AF52: 9892.173126
A53: LRKPCIGS | B53: 052219 | C53: 1 | D53: 2400 | E53: 60 | F53: 1 | G53: 1 | H53: KW | I53: 9803.842737 | J53: 9681.275674 | K53: 9664.364387 | L53: 9629.416303 | M53: 9661.815266 | N53: 9686.463774 | O53: 9643.423976 | P53: 9711.518353 | Q53: 9825.431047 | R53: 9908.578613 | S53: 9847.549082 | T53: 9843.335239 | U53: 10128.295 | V53: 10202.25935 | W53: 10177.19463 | X53: 10046.84017 | Y53: 9925.600916 | Z53: 9844.822176 | AA53: 9768.049268 | AB53: 9856.378516 | AC53: 9896.540963 | AD53: 10147.7232 | AE53: 10444.62605 | AF53: 10233.50678
A54: LRKPCIGS | B54: 052319 | C54: 1 | D54: 2400 | E54: 60 | F54: 1 | G54: 1 | H54: KW | I54: 10135.21678 | J54: 10126.05364 | K54: 10064.86965 | L54: 9915.646579 | M54: 9903.0363 | N54: 9917.427721 | O54: 9798.445021 | P54: 9696.300329 | Q54: 9741.102332 | R54: 9696.359311 | S54: 9685.7815 | T54: 9624.429739 | U54: 9654.933261 | V54: 9634.913818 | W54: 9733.457895 | X54: 9798.973042 | Y54: 9753.087353 | Z54: 9643.537279 | AA54: 9781.004563 | AB54: 9885.585 | AC54: 9880.9265 | AD54: 10107.55378 | AE54: 10221.25189 | AF54: 10190.55827
A55: LRKPCIGS | B55: 052419 | C55: 1 | D55: 2400 | E55: 60 | F55: 1 | G55: 1 | H55: KW | I55: 10123.44453 | J55: 9986.557168 | K55: 9841.607363 | L55: 9915.699366 | M55: 9906.772663 | N55: 9945.146339 | O55: 9929.501995 | P55: 9906.504897 | Q55: 10045.71601 | R55: 10091.17958 | S55: 9969.33855 | T55: 9854.650058 | U55: 9709.486203 | V55: 9762.954345 | W55: 9779.413063 | X55: 9725.960679 | Y55: 9750.649397 | Z55: 9925.360939 | AA55: 9866.110982 | AB55: 9836.639353 | AC55: 9976.477124 | AD55: 10164.71281 | AE55: 10417.33486 | AF55: 10314.0119
A56: LRKPCIGS | B56: 052519 | C56: 1 | D56: 2400 | E56: 60 | F56: 1 | G56: 1 | H56: KW | I56: 10116.65539 | J56: 10081.23878 | K56: 9878.535161 | L56: 9906.227937 | M56: 10031.91039 | N56: 9951.898729 | O56: 9822.243811 | P56: 9815.830813 | Q56: 9731.847776 | R56: 9685.518237 | S56: 9831.502271 | T56: 9917.951555 | U56: 9959.123779 | V56: 10007.84814 | W56: 10006.42802 | X56: 10008.94091 | Y56: 9927.029087 | Z56: 9899.722126 | AA56: 9955.761555 | AB56: 10018.45912 | AC56: 9931.583 | AD56: 9962.514679 | AE56: 10017.95487 | AF56: 9995.897911
A57: LRKPCIGS | B57: 052619 | C57: 1 | D57: 2400 | E57: 60 | F57: 1 | G57: 1 | H57: KW | I57: 10017.55796 | J57: 9988.211074 | K57: 9880.832537 | L57: 9881.789603 | M57: 9861.041916 | N57: 9842.042724 | O57: 9755.371282 | P57: 9745.118863 | Q57: 9632.123076 | R57: 9498.524095 | S57: 9467.003347 | T57: 9519.349468 | U57: 9513.358963 | V57: 9477.950911 | W57: 9493.948313 | X57: 9517.978139 | Y57: 9496.855768 | Z57: 9468.798105 | AA57: 9492.358058 | AB57: 9680.302295 | AC57: 9711.204847 | AD57: 9604.019834 | AE57: 9562.223476 | AF57: 9414.1052
A58: LRKPCIGS | B58: 052719 | C58: 1 | D58: 2400 | E58: 60 | F58: 1 | G58: 1 | H58: KW | I58: 9385.464763 | J58: 9338.3511 | K58: 9251.253939 | L58: 9227.4005 | M58: 9201.091271 | N58: 9142.567132 | O58: 8986.595668 | P58: 8686.026329 | Q58: 8687.561055 | R58: 8651.715997 | S58: 8645.443884 | T58: 8691.394139 | U58: 8698.908447 | V58: 8735.827337 | W58: 8755.869458 | X58: 8786.148787 | Y58: 8817.162032 | Z58: 8836.4214 | AA58: 8850.794089 | AB58: 8869.689389 | AC58: 8882.431261 | AD58: 9102.062611 | AE58: 9365.574426 | AF58: 9479.703663
A59: LRKPCIGS | B59: 052819 | C59: 1 | D59: 2400 | E59: 60 | F59: 1 | G59: 1 | H59: KW | I59: 9508.496529 | J59: 9542.7359 | K59: 9663.538408 | L59: 9707.844316 | M59: 9710.059311 | N59: 9546.523974 | O59: 9562.194403 | P59: 9550.07085 | Q59: 9752.566889 | R59: 9895.73725 | S59: 9906.66975 | T59: 9845.907937 | U59: 9786.369455 | V59: 9968.789568 | W59: 10035.75806 | X59: 9912.946166 | Y59: 9722.647684 | Z59: 9594.602537 | AA59: 9619.493642 | AB59: 9681.692376 | AC59: 9695.823761 | AD59: 9800.849453 | AE59: 9860.183187 | AF59: 9837.468821
A60: LRKPCIGS | B60: 052919 | C60: 1 | D60: 2400 | E60: 60 | F60: 1 | G60: 1 | H60: KW | I60: 9741.910542 | J60: 9829.2277 | K60: 9657.943195 | L60: 9659.396489 | M60: 9727.692955 | N60: 9674.498082 | O60: 9672.3669 | P60: 9516.358639 | Q60: 9688.1874 | R60: 9915.293603 | S60: 9910.142729 | T60: 9979.395124 | U60: 9957.410187 | V60: 9936.145171 | W60: 9793.792476 | X60: 9769.767282 | Y60: 9721.932866 | Z60: 9623.401174 | AA60: 9687.674429 | AB60: 9811.458321 | AC60: 9823.728187 | AD60: 10139.79487 | AE60: 10293.38192 | AF60: 10316.84189
A61: LRKPCIGS | B61: 053019 | C61: 1 | D61: 2400 | E61: 60 | F61: 1 | G61: 1 | H61: KW | I61: 10150.42206 | J61: 10020.63181 | K61: 9974.691884 | L61: 10011.52736 | M61: 10024.97375 | N61: 9953.052245 | O61: 9780.587568 | P61: 9707.424361 | Q61: 9901.977697 | R61: 9886.163563 | S61: 9708.838511 | T61: 9744.234368 | U61: 9845.157492 | V61: 9848.578695 | W61: 9830.99895 | X61: 9892.772124 | Y61: 9903.843779 | Z61: 9824.713261 | AA61: 9794.170647 | AB61: 9847.442716 | AC61: 9847.078232 | AD61: 10029.17455 | AE61: 10278.01104 | AF61: 10171.73654
A62: LRKPCIGS | B62: 053119 | C62: 1 | D62: 2400 | E62: 60 | F62: 1 | G62: 1 | H62: KW | I62: 10099.65976 | J62: 9909.210187 | K62: 9755.481092 | L62: 9839.189792 | M62: 9858.570358 | N62: 9702.000621 | O62: 9542.639692 | P62: 9620.686061 | Q62: 9782.512861 | R62: 9842.715268 | S62: 9864.101295 | T62: 9775.983163 | U62: 9705.324126 | V62: 9940.867045 | W62: 9925.633158 | X62: 9754.842482 | Y62: 9726.816834 | Z62: 9709.806816 | AA62: 9565.791974 | AB62: 9592.206426 | AC62: 9507.501305 | AD62: 9641.628489 | AE62: 9799.343874 | AF62: 9631.24895
A63: LRKPCIGS | B63: 060119 | C63: 1 | D63: 2400 | E63: 60 | F63: 1 | G63: 1 | H63: KW | I63: 9524.224768 | J63: 9476.250232 | K63: 9403.295095 | L63: 9394.118166 | M63: 9342.082016 | N63: 9315.314892 | O63: 9362.190695 | P63: 9474.503724 | Q63: 9513.489203 | R63: 9562.493074 | S63: 9603.069587 | T63: 9620.827711 | U63: 9651.934474 | V63: 9553.0497 | W63: 9619.045453 | X63: 9558.127084 | Y63: 9536.973784 | Z63: 9528.854811 | AA63: 9493.330563 | AB63: 9542.933695 | AC63: 9637.905311 | AD63: 9569.052597 | AE63: 9571.7871 | AF63: 9587.060187
A64: LRKPCIGS | B64: 060219 | C64: 1 | D64: 2400 | E64: 60 | F64: 1 | G64: 1 | H64: KW | I64: 9515.693097 | J64: 9484.952368 | K64: 9526.573134 | L64: 9466.0298 | M64: 9482.408445 | N64: 9486.428066 | O64: 9445.794992 | P64: 9409.672416 | Q64: 9322.737921 | R64: 9339.010447 | S64: 9360.166529 | T64: 9408.575676 | U64: 9445.331926 | V64: 9485.562182 | W64: 9462.592371 | X64: 9564.048908 | Y64: 9683.075847 | Z64: 9579.521771 | AA64: 9599.225371 | AB64: 9617.033484 | AC64: 9649.994103 | AD64: 9656.286116 | AE64: 9625.273908 | AF64: 9690.823695
A65: LRKPCIGS | B65: 060319 | C65: 1 | D65: 2400 | E65: 60 | F65: 1 | G65: 1 | H65: KW | I65: 9749.819371 | J65: 9805.846621 | K65: 9827.064976 | L65: 9860.543055 | M65: 9902.852921 | N65: 9949.996497 | O65: 10026.07213 | P65: 9953.017671 | Q65: 10178.55106 | R65: 10195.10498 | S65: 10120.6083 | T65: 10191.01937 | U65: 10267.3447 | V65: 10325.10735 | W65: 10276.83245 | X65: 10149.28024 | Y65: 10101.58731 | Z65: 10093.53627 | AA65: 10040.55322 | AB65: 9968.510042 | AC65: 10002.86123 | AD65: 10219.12269 | AE65: 10534.87566 | AF65: 10496.91385
A66: LRKPCIGS | B66: 060419 | C66: 1 | D66: 2400 | E66: 60 | F66: 1 | G66: 1 | H66: KW | I66: 10455.30288 | J66: 10426.22521 | K66: 10341.51657 | L66: 10250.10363 | M66: 10387.68961 | N66: 10353.85986 | O66: 10276.28434 | P66: 10242.43436 | Q66: 10299.49322 | R66: 10263.09304 | S66: 10218.31533 | T66: 10197.92347 | U66: 10121.02876 | V66: 10263.18989 | W66: 10231.49297 | X66: 10293.82848 | Y66: 10161.28357 | Z66: 9972.553768 | AA66: 9999.137074 | AB66: 10019.66991 | AC66: 10000.21356 | AD66: 10280.31248 | AE66: 10503.08226 | AF66: 10420.76458
A67: LRKPCIGS | B67: 060519 | C67: 1 | D67: 2400 | E67: 60 | F67: 1 | G67: 1 | H67: KW | I67: 10212.08472 | J67: 10266.11532 | K67: 10411.87716 | L67: 10517.58914 | M67: 10409.39061 | N67: 10336.2282 | O67: 10262.7851 | P67: 10240.40427 | Q67: 10324.233 | R67: 10118.07436 | S67: 10068.85404 | T67: 10009.19992 | U67: 10030.27792 | V67: 10095.72003 | W67: 10084.14774 | X67: 10074.45448 | Y67: 10087.66605 | Z67: 9976.570739 | AA67: 9914.625113 | AB67: 9879.236611 | AC67: 9904.850245 | AD67: 10179.9521 | AE67: 10453.97537 | AF67: 10426.2349
A68: LRKPCIGS | B68: 060619 | C68: 1 | D68: 2400 | E68: 60 | F68: 1 | G68: 1 | H68: KW | I68: 10309.94467 | J68: 10272.39966 | K68: 10225.36552 | L68: 10149.94225 | M68: 10280.94934 | N68: 10378.83528 | O68: 10169.73185 | P68: 10128.93166 | Q68: 10203.24356 | R68: 10114.64687 | S68: 10256.46833 | T68: 10200.55009 | U68: 10138.8743 | V68: 10357.14251 | W68: 10315.92321 | X68: 10139.29298 | Y68: 9967.339563 | Z68: 9986.5934 | AA68: 10069.21449 | AB68: 10020.448 | AC68: 9942.032653 | AD68: 10091.30166 | AE68: 10153.27771 | AF68: 10211.87749
A69: LRKPCIGS | B69: 060719 | C69: 1 | D69: 2400 | E69: 60 | F69: 1 | G69: 1 | H69: KW | I69: 10129.97496 | J69: 10343.3249 | K69: 10268.51575 | L69: 10182.56853 | M69: 10196.60699 | N69: 10185.01639 | O69: 10150.12641 | P69: 9958.461192 | Q69: 10039.67894 | R69: 10044.7745 | S69: 9973.854405 | T69: 9896.116418 | U69: 9912.734053 | V69: 9881.682713 | W69: 9892.926161 | X69: 9852.35625 | Y69: 9906.811105 | Z69: 9901.518855 | AA69: 9842.792542 | AB69: 9936.298434 | AC69: 9903.547453 | AD69: 10070.54766 | AE69: 10238.58737 | AF69: 10231.61415
A70: LRKPCIGS | B70: 060819 | C70: 1 | D70: 2400 | E70: 60 | F70: 1 | G70: 1 | H70: KW | I70: 10140.7786 | J70: 10037.66037 | K70: 9948.977753 | L70: 9888.706463 | M70: 9845.230158 | N70: 9867.444253 | O70: 10010.37323 | P70: 9993.077229 | Q70: 9983.751613 | R70: 9995.666516 | S70: 10007.55166 | T70: 9965.250926 | U70: 9968.555966 | V70: 9887.004147 | W70: 9895.395813 | X70: 9847.414574 | Y70: 9808.883663 | Z70: 9698.694847 | AA70: 9648.367479 | AB70: 9713.612303 | AC70: 9732.713929 | AD70: 9755.084045 | AE70: 9679.155026 | AF70: 9662.013058
A71: LRKPCIGS | B71: 060919 | C71: 1 | D71: 2400 | E71: 60 | F71: 1 | G71: 1 | H71: KW | I71: 9592.138118 | J71: 9611.0919 | K71: 9627.316845 | L71: 9585.339245 | M71: 9488.529645 | N71: 9491.813229 | O71: 9512.421308 | P71: 9510.111834 | Q71: 9548.977911 | R71: 9588.976987 | S71: 9650.839561 | T71: 9718.486216 | U71: 9734.282184 | V71: 9783.232803 | W71: 9768.522368 | X71: 9806.220426 | Y71: 9793.719084 | Z71: 9804.568295 | AA71: 9813.142345 | AB71: 9743.911239 | AC71: 9710.541592 | AD71: 9835.5156 | AE71: 9895.803479 | AF71: 9984.367524
A72: LRKPCIGS | B72: 061019 | C72: 1 | D72: 2400 | E72: 60 | F72: 1 | G72: 1 | H72: KW | I72: 10091.66318 | J72: 10106.07543 | K72: 10244.7512 | L72: 10210.15401 | M72: 10089.24367 | N72: 10201.64876 | O72: 10127.95828 | P72: 10033.38768 | Q72: 10129.15312 | R72: 10206.93638 | S72: 10270.78822 | T72: 10045.91133 | U72: 10054.18083 | V72: 10237.48996 | W72: 9997.171771 | X72: 10092.34398 | Y72: 10042.34588 | Z72: 10035.66439 | AA72: 10067.49909 | AB72: 10119.38768 | AC72: 9985.853966 | AD72: 10060.51272 | AE72: 10176.17765 | AF72: 10150.49518
A73: LRKPCIGS | B73: 061119 | C73: 1 | D73: 2400 | E73: 60 | F73: 1 | G73: 1 | H73: KW | I73: 10051.7373 | J73: 9916.381279 | K73: 9985.307484 | L73: 10083.50583 | M73: 10049.08585 | N73: 10024.01994 | O73: 9971.622211 | P73: 9910.229826 | Q73: 9931.123661 | R73: 9880.033932 | S73: 9874.418979 | T73: 9863.1124 | U73: 9967.723587 | V73: 9988.251366 | W73: 10052.43566 | X73: 10034.31465 | Y73: 10091.69734 | Z73: 10036.34925 | AA73: 10058.05475 | AB73: 10122.15946 | AC73: 10004.30102 | AD73: 10181.56345 | AE73: 10372.43455 | AF73: 10527.17062
A74: LRKPCIGS | B74: 061219 | C74: 1 | D74: 2400 | E74: 60 | F74: 1 | G74: 1 | H74: KW | I74: 10298.07757 | J74: 10307.60181 | K74: 10337.77184 | L74: 10187.30159 | M74: 10269.72504 | N74: 10246.49703 | O74: 9888.742558 | P74: 9966.733132 | Q74: 10285.69686 | R74: 10337.19899 | S74: 10311.7929 | T74: 10216.2708 | U74: 10182.17039 | V74: 10373.19635 | W74: 10284.23832 | X74: 10395.44059 | Y74: 10327.54428 | Z74: 10213.33495 | AA74: 10198.2094 | AB74: 10141.91768 | AC74: 10036.59884 | AD74: 10230.12471 | AE74: 10377.30428 | AF74: 10409.35425
A75: LRKPCIGS | B75: 061319 | C75: 1 | D75: 2400 | E75: 60 | F75: 1 | G75: 1 | H75: KW | I75: 10273.56551 | J75: 10149.92303 | K75: 10125.48751 | L75: 10171.21188 | M75: 10244.30637 | N75: 10235.94772 | O75: 10096.32312 | P75: 10053.50859 | Q75: 9990.268592 | R75: 10115.01465 | S75: 10095.11007 | T75: 10048.97623 | U75: 10104.51766 | V75: 10109.69534 | W75: 10090.76431 | X75: 10100.51731 | Y75: 10066.55946 | Z75: 9931.505708 | AA75: 9800.714295 | AB75: 9890.588721 | AC75: 9825.365455 | AD75: 10125.70219 | AE75: 10221.16697 | AF75: 10170.84888
A76: LRKPCIGS | B76: 061419 | C76: 1 | D76: 2400 | E76: 60 | F76: 1 | G76: 1 | H76: KW | I76: 10226.16835 | J76: 10077.15564 | K76: 10019.8609 | L76: 10213.55849 | M76: 10091.92476 | N76: 10132.08199 | O76: 10211.44744 | P76: 10316.10584 | Q76: 10319.91334 | R76: 10109.01624 | S76: 10187.77856 | T76: 10050.67563 | U76: 10127.52623 | V76: 10217.91181 | W76: 10246.43115 | X76: 10115.35934 | Y76: 10039.46898 | Z76: 9990.565074 | AA76: 9998.873008 | AB76: 10069.30014 | AC76: 10045.29164 | AD76: 10266.98015 | AE76: 10328.45695 | AF76: 10342.75467
A77: LRKPCIGS | B77: 061519 | C77: 1 | D77: 2400 | E77: 60 | F77: 1 | G77: 1 | H77: KW | I77: 10324.07902 | J77: 10139.40869 | K77: 9962.188318 | L77: 9914.244863 | M77: 9886.915334 | N77: 9841.148355 | O77: 9875.425416 | P77: 10018.51653 | Q77: 10118.27514 | R77: 10097.21209 | S77: 10118.58403 | T77: 10184.91784 | U77: 10207.29772 | V77: 10136.12171 | W77: 10099.42851 | X77: 10035.95897 | Y77: 9984.056505 | Z77: 9992.259384 | AA77: 9929.416192 | AB77: 9878.853213 | AC77: 9860.049711 | AD77: 9835.676116 | AE77: 9852.279129 | AF77: 9870.651008
A78: LRKPCIGS | B78: 061619 | C78: 1 | D78: 2400 | E78: 60 | F78: 1 | G78: 1 | H78: KW | I78: 9858.968024 | J78: 9809.973563 | K78: 9802.712345 | L78: 9898.093837 | M78: 9871.721729 | N78: 9900.253053 | O78: 9858.964947 | P78: 9821.623471 | Q78: 9781.123818 | R78: 9780.444987 | S78: 9800.759084 | T78: 9826.402624 | U78: 9856.432355 | V78: 9801.610816 | W78: 9790.935195 | X78: 9850.926411 | Y78: 9816.755868 | Z78: 9829.844518 | AA78: 9892.871347 | AB78: 9853.796918 | AC78: 9809.924858 | AD78: 9839.343808 | AE78: 9822.950305 | AF78: 9774.224626
A79: LRKPCIGS | B79: 061719 | C79: 1 | D79: 2400 | E79: 60 | F79: 1 | G79: 1 | H79: KW | I79: 9814.233566 | J79: 9846.106045 | K79: 9763.880371 | L79: 9781.162787 | M79: 9789.291734 | N79: 9874.066479 | O79: 9862.669426 | P79: 9816.429497 | Q79: 9914.434858 | R79: 10041.67092 | S79: 10173.91077 | T79: 10247.43256 | U79: 10274.39368 | V79: 10313.57922 | W79: 10284.49382 | X79: 10313.02442 | Y79: 10215.05698 | Z79: 10113.02173 | AA79: 9964.251329 | AB79: 9979.326374 | AC79: 10070.38244 | AD79: 10396.52112 | AE79: 10452.69501 | AF79: 10472.47251
A80: LRKPCIGS | B80: 061819 | C80: 1 | D80: 2400 | E80: 60 | F80: 1 | G80: 1 | H80: KW | I80: 10595.91501 | J80: 10529.10734 | K80: 10437.07477 | L80: 10437.41911 | M80: 10356.51135 | N80: 10360.00721 | O80: 10313.68615 | P80: 10397.66045 | Q80: 10315.84626 | R80: 10137.72194 | S80: 10303.90923 | T80: 10127.71609 | U80: 10070.18913 | V80: 10310.31088 | W80: 10259.55971 | X80: 10200.48747 | Y80: 10104.66573 | Z80: 10069.91407 | AA80: 10164.86177 | AB80: 10057.56915 | AC80: 10087.36873 | AD80: 10201.90886 | AE80: 10367.89809 | AF80: 10466.61777
A81: LRKPCIGS | B81: 061919 | C81: 1 | D81: 2400 | E81: 60 | F81: 1 | G81: 1 | H81: KW | I81: 10426.54363 | J81: 10391.78504 | K81: 10326.60965 | L81: 10247.08162 | M81: 10106.76292 | N81: 10113.08298 | O81: 10056.60884 | P81: 9981.332537 | Q81: 10006.82917 | R81: 10056.51091 | S81: 10114.69349 | T81: 10109.59296 | U81: 10115.49664 | V81: 10144.4733 | W81: 10110.02769 | X81: 9805.115639 | Y81: 9910.9585 | Z81: 9814.409713 | AA81: 9847.949339 | AB81: 9824.481821 | AC81: 9858.108947 | AD81: 10155.63974 | AE81: 10331.39898 | AF81: 10431.09453
A82: LRKPCIGS | B82: 062019 | C82: 1 | D82: 2400 | E82: 60 | F82: 1 | G82: 1 | H82: KW | I82: 10345.43107 | J82: 10228.3399 | K82: 10135.22388 | L82: 10073.57419 | M82: 10153.92008 | N82: 10119.59862 | O82: 10213.37348 | P82: 10286.15507 | Q82: 10473.77507 | R82: 10483.75982 | S82: 10354.36996 | T82: 10313.12397 | U82: 10261.78802 | V82: 10300.40018 | W82: 10153.87162 | X82: 10109.82459 | Y82: 10000.03062 | Z82: 9881.200539 | AA82: 9837.733497 | AB82: 9766.046011 | AC82: 9731.839616 | AD82: 9916.462726 | AE82: 10101.72749 | AF82: 10219.56029
A83: LRKPCIGS | B83: 062119 | C83: 1 | D83: 2400 | E83: 60 | F83: 1 | G83: 1 | H83: KW | I83: 10291.30146 | J83: 10081.991 | K83: 9844.530255 | L83: 9858.207684 | M83: 9842.492824 | N83: 9815.834626 | O83: 9710.448587 | P83: 9663.412561 | Q83: 9820.111932 | R83: 9868.566268 | S83: 9868.246282 | T83: 10035.75948 | U83: 10039.95387 | V83: 10047.53128 | W83: 9948.401268 | X83: 9888.692766 | Y83: 9831.649455 | Z83: 9747.322129 | AA83: 9685.578063 | AB83: 9743.426071 | AC83: 9784.991497 | AD83: 10031.0143 | AE83: 10097.21399 | AF83: 10171.3133
A84: LRKPCIGS | B84: 062219 | C84: 1 | D84: 2400 | E84: 60 | F84: 1 | G84: 1 | H84: KW | I84: 10157.0178 | J84: 10120.42039 | K84: 10086.94789 | L84: 9960.641355 | M84: 9933.240392 | N84: 10093.29347 | O84: 10144.24668 | P84: 10272.30552 | Q84: 10356.12063 | R84: 10354.35841 | S84: 10370.66015 | T84: 10381.42616 | U84: 10358.8984 | V84: 10351.81189 | W84: 10295.36895 | X84: 10220.90877 | Y84: 10110.23034 | Z84: 10078.40462 | AA84: 10059.76096 | AB84: 10148.62582 | AC84: 10345.01504 | AD84: 10257.36061 | AE84: 10192.59851 | AF84: 10264.04742
A85: LRKPCIGS | B85: 062319 | C85: 1 | D85: 2400 | E85: 60 | F85: 1 | G85: 1 | H85: KW | I85: 10119.88029 | J85: 9989.367066 | K85: 9925.898518 | L85: 9849.970584 | M85: 9835.012568 | N85: 9817.796513 | O85: 9730.721037 | P85: 9694.173582 | Q85: 9738.227592 | R85: 9736.355305 | S85: 9811.380247 | T85: 9823.796658 | U85: 9831.822642 | V85: 9760.019703 | W85: 9735.733671 | X85: 9749.888597 | Y85: 9748.799271 | Z85: 9744.518837 | AA85: 9739.666032 | AB85: 9753.804174 | AC85: 9807.155855 | AD85: 9918.476916 | AE85: 9940.816634 | AF85: 9932.143963
A86: LRKPCIGS | B86: 062419 | C86: 1 | D86: 2400 | E86: 60 | F86: 1 | G86: 1 | H86: KW | I86: 10016.98956 | J86: 10236.16103 | K86: 10147.9515 | L86: 10180.82769 | M86: 10089.30571 | N86: 10105.05989 | O86: 10192.07639 | P86: 10308.04853 | Q86: 10345.60859 | R86: 10307.36539 | S86: 10247.0285 | T86: 10243.25888 | U86: 10151.93936 | V86: 10217.92155 | W86: 10050.50169 | X86: 10076.77695 | Y86: 10021.07836 | Z86: 9970.028274 | AA86: 10051.90089 | AB86: 10155.9219 | AC86: 10297.84063 | AD86: 10418.7466 | AE86: 10624.07133 | AF86: 10618.86377
A87: LRKPCIGS | B87: 062519 | C87: 1 | D87: 2400 | E87: 60 | F87: 1 | G87: 1 | H87: KW | I87: 10610.14111 | J87: 10456.67261 | K87: 10434.72385 | L87: 10219.54467 | M87: 10195.77299 | N87: 10182.36014 | O87: 10133.106 | P87: 10167.70555 | Q87: 10227.76531 | R87: 10219.22484 | S87: 10220.67312 | T87: 10233.69549 | U87: 10216.545 | V87: 10287.09355 | W87: 10296.2696 | X87: 10128.00175 | Y87: 10004.95874 | Z87: 9993.996682 | AA87: 9700.447803 | AB87: 9591.052563 | AC87: 9530.459442 | AD87: 9838.693168 | AE87: 9928.890747 | AF87: 9959.237518
A88: LRKPCIGS | B88: 062619 | C88: 1 | D88: 2400 | E88: 60 | F88: 1 | G88: 1 | H88: KW | I88: 9837.356203 | J88: 9769.587242 | K88: 9691.931958 | L88: 9750.692655 | M88: 9911.441068 | N88: 9939.341787 | O88: 9822.898989 | P88: 9651.886229 | Q88: 9750.088237 | R88: 9788.067021 | S88: 9785.405371 | T88: 9816.583105 | U88: 9852.356924 | V88: 9878.540334 | W88: 9773.516155 | X88: 9640.015695 | Y88: 9789.610055 | Z88: 9862.049932 | AA88: 9947.279684 | AB88: 9991.216537 | AC88: 9973.937976 | AD88: 10220.32982 | AE88: 10526.0292 | AF88: 10498.20776
A89: LRKPCIGS | B89: 062719 | C89: 1 | D89: 2400 | E89: 60 | F89: 1 | G89: 1 | H89: KW | I89: 10371.23698 | J89: 10436.44789 | K89: 10308.39021 | L89: 10131.77937 | M89: 10200.31422 | N89: 10262.19706 | O89: 10024.15566 | P89: 10087.66991 | Q89: 10126.18399 | R89: 10181.77823 | S89: 10050.60293 | T89: 10070.94897 | U89: 10247.75339 | V89: 10428.94501 | W89: 10359.06189 | X89: 10252.78638 | Y89: 10241.45134 | Z89: 10152.12441 | AA89: 10082.14023 | AB89: 9961.954371 | AC89: 9904.822282 | AD89: 9966.151755 | AE89: 10178.76858 | AF89: 10236.63557
A90: LRKPCIGS | B90: 062819 | C90: 1 | D90: 2400 | E90: 60 | F90: 1 | G90: 1 | H90: KW | I90: 10121.93506 | J90: 10096.91667 | K90: 10020.87849 | L90: 9991.713474 | M90: 10029.47238 | N90: 10023.67033 | O90: 10023.74093 | P90: 9915.218263 | Q90: 10002.63414 | R90: 9988.057576 | S90: 9980.540813 | T90: 10053.39125 | U90: 10031.90699 | V90: 10022.1926 | W90: 9932.185024 | X90: 9890.111884 | Y90: 9963.269303 | Z90: 9913.547871 | AA90: 9908.058863 | AB90: 10020.27218 | AC90: 10032.13225 | AD90: 10140.87771 | AE90: 10079.04058 | AF90: 10149.79745
A91: LRKPCIGS | B91: 062919 | C91: 1 | D91: 2400 | E91: 60 | F91: 1 | G91: 1 | H91: KW | I91: 10088.2454 | J91: 10084.21767 | K91: 10018.19043 | L91: 9938.188174 | M91: 9774.743732 | N91: 9748.282687 | O91: 9802.988311 | P91: 9842.617158 | Q91: 9855.883208 | R91: 9859.68575 | S91: 9803.297397 | T91: 9783.371061 | U91: 9755.565082 | V91: 9747.704911 | W91: 9782.967389 | X91: 9820.316732 | Y91: 9784.031634 | Z91: 9756.829782 | AA91: 9751.442189 | AB91: 9765.997429 | AC91: 9739.855674 | AD91: 9754.711171 | AE91: 9756.650882 | AF91: 9726.233855
A92: LRKPCIGS | B92: 063019 | C92: 1 | D92: 2400 | E92: 60 | F92: 1 | G92: 1 | H92: KW | I92: 9730.634803 | J92: 9754.047647 | K92: 9812.652376 | L92: 9793.5966 | M92: 9760.920116 | N92: 9743.64175 | O92: 9682.347 | P92: 9702.893784 | Q92: 9761.736353 | R92: 9732.423761 | S92: 9688.710379 | T92: 9710.783647 | U92: 9723.780466 | V92: 9835.811261 | W92: 9752.065024 | X92: 9860.822924 | Y92: 9760.564229 | Z92: 9727.20545 | AA92: 9651.210887 | AB92: 9651.150845 | AC92: 9629.370621 | AD92: 9732.475574 | AE92: 9866.368145 | AF92: 9793.888024
A93: LRKPCIGS | B93: 070119 | C93: 1 | D93: 2400 | E93: 60 | F93: 1 | G93: 1 | H93: KW | I93: 9760.133205 | J93: 9915.150847 | K93: 9930.0592 | L93: 9830.072184 | M93: 9924.873839 | N93: 9953.071416 | O93: 9797.237953 | P93: 9445.812326 | Q93: 9419.109576 | R93: 9422.723284 | S93: 9612.807405 | T93: 9646.527397 | U93: 9620.904463 | V93: 9529.897768 | W93: 9601.286787 | X93: 9594.667805 | Y93: 9655.984937 | Z93: 9634.305797 | AA93: 9544.527597 | AB93: 9524.731908 | AC93: 9381.31305 | AD93: 9539.322805 | AE93: 9781.506729 | AF93: 9816.371247
A94: LRKPCIGS | B94: 070219 | C94: 1 | D94: 2400 | E94: 60 | F94: 1 | G94: 1 | H94: KW | I94: 9893.751274 | J94: 9884.680226 | K94: 9858.875584 | L94: 9794.072632 | M94: 9789.204126 | N94: 9816.370308 | O94: 9814.5173 | P94: 9680.406063 | Q94: 9830.224482 | R94: 9997.439176 | S94: 9993.969258 | T94: 9969.419682 | U94: 9885.052134 | V94: 9933.962903 | W94: 9741.693047 | X94: 9715.527795 | Y94: 9647.376739 | Z94: 9637.105287 | AA94: 9621.226516 | AB94: 9607.744371 | AC94: 9459.859813 | AD94: 9514.994903 | AE94: 10004.92838 | AF94: 9971.858039
A95: LRKPCIGS | B95: 070319 | C95: 1 | D95: 2400 | E95: 60 | F95: 1 | G95: 1 | H95: KW | I95: 10010.13222 | J95: 10008.7455 | K95: 9916.046345 | L95: 9905.457837 | M95: 9901.015161 | N95: 9864.808758 | O95: 9889.725221 | P95: 9634.135968 | Q95: 9613.779539 | R95: 9628.744197 | S95: 9617.161232 | T95: 9615.059047 | U95: 9647.335242 | V95: 9630.034147 | W95: 9590.540534 | X95: 9565.599713 | Y95: 9474.321082 | Z95: 9430.212471 | AA95: 9372.273384 | AB95: 9331.429937 | AC95: 9323.761971 | AD95: 9519.189811 | AE95: 9791.243547 | AF95: 9802.823279
A96: LRKPCIGS | B96: 070419 | C96: 1 | D96: 2400 | E96: 60 | F96: 1 | G96: 1 | H96: KW | I96: 9769.628174 | J96: 9760.571371 | K96: 9725.052279 | L96: 9783.900916 | M96: 9803.427634 | N96: 9771.755734 | O96: 9687.679542 | P96: 9372.917497 | Q96: 9281.341058 | R96: 9215.161387 | S96: 9261.522808 | T96: 9359.87035 | U96: 9384.413829 | V96: 9324.810316 | W96: 9209.446326 | X96: 9187.521692 | Y96: 9172.202689 | Z96: 9215.176218 | AA96: 9236.855503 | AB96: 9184.466692 | AC96: 9060.012774 | AD96: 9267.304597 | AE96: 9469.421879 | AF96: 9437.473108
A97: LRKPCIGS | B97: 070519 | C97: 1 | D97: 2400 | E97: 60 | F97: 1 | G97: 1 | H97: KW | I97: 9434.205592 | J97: 9468.561258 | K97: 9593.559558 | L97: 9641.166076 | M97: 9682.321424 | N97: 9689.36855 | O97: 9558.66485 | P97: 9333.454492 | Q97: 9356.133716 | R97: 9277.855892 | S97: 9226.155147 | T97: 9253.660755 | U97: 9270.087982 | V97: 9339.212887 | W97: 9299.878468 | X97: 9358.642042 | Y97: 9331.821405 | Z97: 9301.853066 | AA97: 9198.118905 | AB97: 9244.571697 | AC97: 9242.112424 | AD97: 9444.566211 | AE97: 9583.828968 | AF97: 9558.754347
A98: LRKPCIGS | B98: 070619 | C98: 1 | D98: 2400 | E98: 60 | F98: 1 | G98: 1 | H98: KW | I98: 9522.688642 | J98: 9559.039732 | K98: 9674.186053 | L98: 9833.118424 | M98: 9897.300632 | N98: 9857.113955 | O98: 9804.137332 | P98: 9818.627297 | Q98: 9806.445874 | R98: 9720.733221 | S98: 9733.776216 | T98: 9956.836784 | U98: 9904.403326 | V98: 9860.099021 | W98: 9818.206692 | X98: 9844.992445 | Y98: 9639.564266 | Z98: 9748.212789 | AA98: 9790.372011 | AB98: 9814.333916 | AC98: 9759.988521 | AD98: 9791.569089 | AE98: 9848.454779 | AF98: 9822.454055
A99: LRKPCIGS | B99: 070719 | C99: 1 | D99: 2400 | E99: 60 | F99: 1 | G99: 1 | H99: KW | I99: 9851.212932 | J99: 9898.252992 | K99: 9920.120003 | L99: 9892.410989 | M99: 9844.447111 | N99: 9830.561845 | O99: 9800.781287 | P99: 9790.749316 | Q99: 9826.061029 | R99: 9851.684737 | S99: 9804.931463 | T99: 9746.000429 | U99: 9775.287579 | V99: 9759.702761 | W99: 9724.092611 | X99: 9741.005013 | Y99: 9737.443492 | Z99: 9760.718366 | AA99: 9758.610637 | AB99: 9796.943642 | AC99: 9804.06885 | AD99: 9910.450037 | AE99: 9912.605221 | AF99: 9966.742368
A100: LRKPCIGS | B100: 070819 | C100: 1 | D100: 2400 | E100: 60 | F100: 1 | G100: 1 | H100: KW | I100: 10006.61346 | J100: 9908.6888 | K100: 9871.666479 | L100: 9926.655524 | M100: 9937.033174 | N100: 9999.934971 | O100: 9994.376866 | P100: 9883.696542 | Q100: 10061.75254 | R100: 9997.630918 | S100: 9971.702592 | T100: 10059.73197 | U100: 10054.47213 | V100: 10125.49218 | W100: 10250.22586 | X100: 10396.74558 | Y100: 10235.74431 | Z100: 10113.01652 | AA100: 10165.2186 | AB100: 10224.26831 | AC100: 10212.13494 | AD100: 10550.81133 | AE100: 10754.93852 | AF100: 10690.1245
A101: LRKPCIGS | B101: 070919 | C101: 1 | D101: 2400 | E101: 60 | F101: 1 | G101: 1 | H101: KW | I101: 10605.05765 | J101: 10552.02318 | K101: 10403.78513 | L101: 10343.62424 | M101: 10460.0897 | N101: 10495.67768 | O101: 10248.97571 | P101: 10181.01414 | Q101: 10262.43136 | R101: 10209.43336 | S101: 10375.69097 | T101: 10349.00279 | U101: 10418.17851 | V101: 10413.20923 | W101: 10394.24981 | X101: 10377.33629 | Y101: 10392.84263 | Z101: 10279.82106 | AA101: 10113.35914 | AB101: 10117.29271 | AC101: 10060.28672 | AD101: 10217.40741 | AE101: 10347.84889 | AF101: 10378.04715
A102: LRKPCIGS | B102: 071019 | C102: 1 | D102: 2400 | E102: 60 | F102: 1 | G102: 1 | H102: KW | I102: 10369.92452 | J102: 10436.28303 | K102: 10232.37802 | L102: 10118.91572 | M102: 10082.83995 | N102: 10100.98921 | O102: 10173.59948 | P102: 10430.65215 | Q102: 10495.94807 | R102: 10436.82066 | S102: 10308.0099 | T102: 10244.21175 | U102: 10136.77262 | V102: 10176.12866 | W102: 10136.01007 | X102: 10199.92905 | Y102: 10399.89979 | Z102: 10367.02254 | AA102: 10210.70718 | AB102: 10047.94238 | AC102: 10063.56604 | AD102: 10437.2649 | AE102: 10657.53152 | AF102: 10686.84474
A103: LRKPCIGS | B103: 071119 | C103: 1 | D103: 2400 | E103: 60 | F103: 1 | G103: 1 | H103: KW | I103: 10755.31343 | J103: 10672.11391 | K103: 10647.78418 | L103: 10628.66418 | M103: 10523.11648 | N103: 10463.91712 | O103: 10249.41374 | P103: 10054.34987 | Q103: 10041.59908 | R103: 10068.94559 | S103: 10100.28123 | T103: 10135.97812 | U103: 10179.10623 | V103: 10289.43059 | W103: 10137.31022 | X103: 10185.59771 | Y103: 10186.50981 | Z103: 10087.93932 | AA103: 9824.870303 | AB103: 9953.529821 | AC103: 10122.37862 | AD103: 10384.21315 | AE103: 10775.38381 | AF103: 10823.41776
A104: LRKPCIGS | B104: 071219 | C104: 1 | D104: 2400 | E104: 60 | F104: 1 | G104: 1 | H104: KW | I104: 10791.29412 | J104: 10601.01103 | K104: 10592.87027 | L104: 10559.12792 | M104: 10458.2364 | N104: 10406.75736 | O104: 10411.14143 | P104: 10476.35147 | Q104: 10555.20955 | R104: 10515.33741 | S104: 10383.14873 | T104: 10401.22963 | U104: 10481.05201 | V104: 10478.08607 | W104: 10563.95588 | X104: 10485.09643 | Y104: 10377.39524 | Z104: 10259.69328 | AA104: 10345.63153 | AB104: 10353.30884 | AC104: 10178.41986 | AD104: 9951.498066 | AE104: 9969.480961 | AF104: 10011.68953
A105: LRKPCIGS | B105: 071319 | C105: 1 | D105: 2400 | E105: 60 | F105: 1 | G105: 1 | H105: KW | I105: 9901.664853 | J105: 9884.198832 | K105: 9703.3489 | L105: 9669.715718 | M105: 9728.195824 | N105: 9711.297466 | O105: 9786.683747 | P105: 9960.654218 | Q105: 9997.987518 | R105: 10034.31182 | S105: 10047.09058 | T105: 10059.70807 | U105: 10073.79826 | V105: 10083.33049 | W105: 10006.76773 | X105: 9832.716303 | Y105: 9849.033618 | Z105: 9924.364332 | AA105: 9881.049795 | AB105: 9871.342242 | AC105: 9885.132634 | AD105: 9882.672279 | AE105: 9826.368476 | AF105: 9788.779324
A106: LRKPCIGS | B106: 071419 | C106: 1 | D106: 2400 | E106: 60 | F106: 1 | G106: 1 | H106: KW | I106: 9736.876489 | J106: 9677.162111 | K106: 9593.503605 | L106: 9629.9819 | M106: 9623.460442 | N106: 9550.216997 | O106: 9507.648089 | P106: 9511.177116 | Q106: 9495.44335 | R106: 9550.640789 | S106: 9559.748039 | T106: 9597.384347 | U106: 9594.748724 | V106: 9602.357105 | W106: 9603.105926 | X106: 9617.049624 | Y106: 9576.223376 | Z106: 9604.266208 | AA106: 9621.492213 | AB106: 9593.834689 | AC106: 9609.145971 | AD106: 9643.180747 | AE106: 9615.308729 | AF106: 9615.7478
A107: LRKPCIGS | B107: 071519 | C107: 1 | D107: 2400 | E107: 60 | F107: 1 | G107: 1 | H107: KW | I107: 9654.522176 | J107: 9655.166129 | K107: 9591.561158 | L107: 9578.360311 | M107: 9613.400861 | N107: 9670.199229 | O107: 9696.672416 | P107: 9631.401479 | Q107: 9760.116276 | R107: 9733.326497 | S107: 9875.072487 | T107: 9780.981339 | U107: 9780.329155 | V107: 9737.590316 | W107: 9728.052824 | X107: 9772.50335 | Y107: 9878.683289 | Z107: 9815.863076 | AA107: 9817.425837 | AB107: 9749.602808 | AC107: 9811.619632 | AD107: 9944.872279 | AE107: 10123.15236 | AF107: 10223.37534
A108: LRKPCIGS | B108: 071619 | C108: 1 | D108: 2400 | E108: 60 | F108: 1 | G108: 1 | H108: KW | I108: 10096.91726 | J108: 10022.25971 | K108: 9934.943174 | L108: 9891.356229 | M108: 9878.268968 | N108: 9837.837961 | O108: 9567.720842 | P108: 9550.931311 | Q108: 9749.694037 | R108: 9724.369637 | S108: 9819.763345 | T108: 9884.882574 | U108: 9862.574695 | V108: 9822.677084 | W108: 9831.220818 | X108: 9819.900705 | Y108: 9753.134195 | Z108: 9677.132484 | AA108: 9712.603774 | AB108: 9809.757289 | AC108: 9769.749368 | AD108: 9878.986197 | AE108: 9974.701213 | AF108: 10088.33173
A109: LRKPCIGS | B109: 071719 | C109: 1 | D109: 2400 | E109: 60 | F109: 1 | G109: 1 | H109: KW | I109: 10000.13926 | J109: 9937.251555 | K109: 9863.118016 | L109: 9775.471308 | M109: 9733.405705 | N109: 9728.466963 | O109: 9702.003163 | P109: 9838.414508 | Q109: 9970.308663 | R109: 9833.869726 | S109: 9851.529276 | T109: 9944.394805 | U109: 10029.02913 | V109: 10046.3647 | W109: 9980.214953 | X109: 9837.779692 | Y109: 9688.720921 | Z109: 9766.986855 | AA109: 9645.466032 | AB109: 9592.264787 | AC109: 9552.308047 | AD109: 9786.624366 | AE109: 9904.943903 | AF109: 9901.927566
A110: LRKPCIGS | B110: 071819 | C110: 1 | D110: 2400 | E110: 60 | F110: 1 | G110: 1 | H110: KW | I110: 9806.66385 | J110: 9717.203868 | K110: 9592.166461 | L110: 9605.875379 | M110: 9742.167908 | N110: 9827.599571 | O110: 9604.507626 | P110: 9546.295174 | Q110: 9629.471021 | R110: 9650.438166 | S110: 9658.105289 | T110: 9755.151305 | U110: 9705.820884 | V110: 9744.803582 | W110: 9652.384692 | X110: 9592.988697 | Y110: 9561.889945 | Z110: 9614.722032 | AA110: 9623.063229 | AB110: 9668.975745 | AC110: 9449.010018 | AD110: 9660.353053 | AE110: 9928.412642 | AF110: 9943.567955
A111: LRKPCIGS | B111: 071919 | C111: 1 | D111: 2400 | E111: 60 | F111: 1 | G111: 1 | H111: KW | I111: 9900.532997 | J111: 9909.419318 | K111: 9825.414163 | L111: 9887.573997 | M111: 9859.142253 | N111: 9880.395511 | O111: 9829.807437 | P111: 9752.346142 | Q111: 9931.924237 | R111: 9966.941603 | S111: 10059.56707 | T111: 10020.63282 | U111: 9933.752761 | V111: 10042.48679 | W111: 9943.789963 | X111: 9743.367858 | Y111: 9763.600187 | Z111: 9810.048868 | AA111: 9776.112971 | AB111: 9804.650353 | AC111: 9830.18565 | AD111: 9981.390021 | AE111: 9912.675526 | AF111: 9915.620311
A112: LRKPCIGS | B112: 072019 | C112: 1 | D112: 2400 | E112: 60 | F112: 1 | G112: 1 | H112: KW | I112: 9816.407618 | J112: 9723.470166 | K112: 9661.732579 | L112: 9648.684987 | M112: 9651.519666 | N112: 9646.206808 | O112: 9672.354766 | P112: 9717.842197 | Q112: 9766.386847 | R112: 9724.175279 | S112: 9717.206926 | T112: 9683.762076 | U112: 9704.010318 | V112: 9660.918092 | W112: 9676.776005 | X112: 9693.658974 | Y112: 9675.9465 | Z112: 9621.785592 | AA112: 9612.181111 | AB112: 9602.519034 | AC112: 9666.037034 | AD112: 9723.923171 | AE112: 9706.43205 | AF112: 9636.166718
A113: LRKPCIGS | B113: 072119 | C113: 1 | D113: 2400 | E113: 60 | F113: 1 | G113: 1 | H113: KW | I113: 9604.237621 | J113: 9574.526542 | K113: 9583.808932 | L113: 9586.017466 | M113: 9627.329205 | N113: 9640.110211 | O113: 9635.946603 | P113: 9623.560263 | Q113: 9650.819887 | R113: 9634.064713 | S113: 9657.157758 | T113: 9725.596063 | U113: 9656.945216 | V113: 9637.452795 | W113: 9632.256655 | X113: 9648.45905 | Y113: 9562.159553 | Z113: 9577.029726 | AA113: 9485.211316 | AB113: 9555.069413 | AC113: 9515.110511 | AD113: 9505.566226 | AE113: 9565.126142 | AF113: 9639.207753
A114: LRKPCIGS | B114: 072219 | C114: 1 | D114: 2400 | E114: 60 | F114: 1 | G114: 1 | H114: KW | I114: 9680.815287 | J114: 9644.565653 | K114: 9634.110766 | L114: 9608.139082 | M114: 9601.436842 | N114: 9622.419674 | O114: 9655.261516 | P114: 9612.118179 | Q114: 9766.324687 | R114: 9746.619455 | S114: 9799.348168 | T114: 9769.995379 | U114: 9753.755092 | V114: 9669.959161 | W114: 9647.922184 | X114: 9569.355739 | Y114: 9628.251003 | Z114: 9636.233829 | AA114: 9577.448082 | AB114: 9486.618326 | AC114: 9345.055911 | AD114: 9624.130445 | AE114: 9938.619358 | AF114: 9939.572345
A115: LRKPCIGS | B115: 072319 | C115: 1 | D115: 2400 | E115: 60 | F115: 1 | G115: 1 | H115: KW | I115: 9863.325118 | J115: 9827.098892 | K115: 9767.371582 | L115: 9712.317753 | M115: 9830.609229 | N115: 9877.118345 | O115: 9754.714684 | P115: 9595.745179 | Q115: 9680.258234 | R115: 9688.774916 | S115: 9653.618797 | T115: 9754.231258 | U115: 9773.304697 | V115: 9792.865347 | W115: 9666.641753 | X115: 9645.524739 | Y115: 9680.539913 | Z115: 9781.955242 | AA115: 9683.067016 | AB115: 9719.861895 | AC115: 9753.009903 | AD115: 9845.115913 | AE115: 9921.417774 | AF115: 10020.51907
A116: LRKPCIGS | B116: 072419 | C116: 1 | D116: 2400 | E116: 60 | F116: 1 | G116: 1 | H116: KW | I116: 9987.459705 | J116: 9877.078637 | K116: 9803.205079 | L116: 9742.700308 | M116: 9566.445647 | N116: 9532.926058 | O116: 9316.557574 | P116: 9553.944161 | Q116: 9526.605471 | R116: 9627.410476 | S116: 9702.533087 | T116: 9653.874618 | U116: 9693.801121 | V116: 9792.183121 | W116: 9745.061579 | X116: 9629.814279 | Y116: 9504.033408 | Z116: 9603.436566 | AA116: 9544.273834 | AB116: 9494.091418 | AC116: 9514.523774 | AD116: 9842.957566 | AE116: 9910.496929 | AF116: 9902.725416
A117: LRKPCIGS | B117: 072519 | C117: 1 | D117: 2400 | E117: 60 | F117: 1 | G117: 1 | H117: KW | I117: 9883.399039 | J117: 9752.720042 | K117: 9419.231808 | L117: 9447.021763 | M117: 9566.729353 | N117: 9819.460116 | O117: 9800.772245 | P117: 9667.154321 | Q117: 9804.858239 | R117: 9823.084903 | S117: 9906.436224 | T117: 9911.348692 | U117: 9834.848311 | V117: 9967.071384 | W117: 9797.454892 | X117: 9764.751245 | Y117: 9703.507203 | Z117: 9621.413297 | AA117: 9597.279318 | AB117: 9655.526571 | AC117: 9560.100979 | AD117: 9778.591145 | AE117: 10012.45084 | AF117: 10069.02357
A118: LRKPCIGS | B118: 072619 | C118: 1 | D118: 2400 | E118: 60 | F118: 1 | G118: 1 | H118: KW | I118: 10065.36759 | J118: 9929.602939 | K118: 9732.644103 | L118: 9676.096234 | M118: 9697.541042 | N118: 9716.40875 | O118: 9542.677997 | P118: 9507.038547 | Q118: 9546.263926 | R118: 9578.610953 | S118: 9640.685945 | T118: 9617.347461 | U118: 9671.335468 | V118: 9630.252095 | W118: 9609.426 | X118: 9549.787126 | Y118: 9555.652024 | Z118: 9539.266226 | AA118: 9478.368797 | AB118: 9483.863713 | AC118: 9451.595203 | AD118: 9712.342434 | AE118: 9853.381892 | AF118: 9817.473982
A119: LRKPCIGS | B119: 072719 | C119: 1 | D119: 2400 | E119: 60 | F119: 1 | G119: 1 | H119: KW | I119: 9892.342805 | J119: 9909.790645 | K119: 9707.958589 | L119: 9588.5084 | M119: 9703.651218 | N119: 9596.479342 | O119: 9634.949271 | P119: 9861.778284 | Q119: 9888.396989 | R119: 9931.717868 | S119: 9942.195424 | T119: 9958.751855 | U119: 9952.373195 | V119: 9956.542387 | W119: 9855.420616 | X119: 9811.307118 | Y119: 9809.636103 | Z119: 9792.062608 | AA119: 9926.194571 | AB119: 9837.260824 | AC119: 9823.773318 | AD119: 9814.166216 | AE119: 9822.228553 | AF119: 9873.757087
A120: LRKPCIGS | B120: 072819 | C120: 1 | D120: 2400 | E120: 60 | F120: 1 | G120: 1 | H120: KW | I120: 9778.220347 | J120: 9617.654097 | K120: 9556.174216 | L120: 9540.836313 | M120: 9481.115908 | N120: 9531.102305 | O120: 9555.788289 | P120: 9557.555429 | Q120: 9536.031376 | R120: 9547.755974 | S120: 9536.989116 | T120: 9534.012755 | U120: 9587.314624 | V120: 9577.652542 | W120: 9549.908439 | X120: 9494.439176 | Y120: 9505.363495 | Z120: 9542.212955 | AA120: 9558.707518 | AB120: 9539.717553 | AC120: 9571.774779 | AD120: 9652.113745 | AE120: 9775.537611 | AF120: 9658.689224
A121: LRKPCIGS | B121: 072919 | C121: 1 | D121: 2400 | E121: 60 | F121: 1 | G121: 1 | H121: KW | I121: 9724.238437 | J121: 9812.515474 | K121: 9666.741071 | L121: 9655.111237 | M121: 9718.816308 | N121: 9598.954284 | O121: 9558.94545 | P121: 9744.452503 | Q121: 9957.5137 | R121: 9943.775039 | S121: 9937.752808 | T121: 9939.713297 | U121: 9988.386784 | V121: 9993.312811 | W121: 9878.033555 | X121: 9893.716316 | Y121: 9854.945632 | Z121: 9811.232726 | AA121: 10018.02013 | AB121: 9814.216379 | AC121: 9745.946374 | AD121: 9965.608297 | AE121: 10131.31428 | AF121: 10134.49487
A122: LRKPCIGS | B122: 073019 | C122: 1 | D122: 2400 | E122: 60 | F122: 1 | G122: 1 | H122: KW | I122: 10129.66737 | J122: 9959.540161 | K122: 9775.235032 | L122: 9739.110434 | M122: 9677.683845 | N122: 9640.218647 | O122: 9737.394437 | P122: 9783.045613 | Q122: 10008.32699 | R122: 9955.699726 | S122: 9860.173297 | T122: 9878.022626 | U122: 9894.049553 | V122: 9941.794589 | W122: 9976.228026 | X122: 10045.33561 | Y122: 10015.75395 | Z122: 9815.451434 | AA122: 9715.011008 | AB122: 9706.796703 | AC122: 9634.453532 | AD122: 10013.00888 | AE122: 10324.67446 | AF122: 10180.89385
A123: LRKPCIGS | B123: 073119 | C123: 1 | D123: 2400 | E123: 60 | F123: 1 | G123: 1 | H123: KW | I123: 10121.10212 | J123: 10091.69333 | K123: 9983.536916 | L123: 9919.478589 | M123: 9834.102011 | N123: 9810.679408 | O123: 9833.263092 | P123: 9875.368626 | Q123: 10054.99821 | R123: 9995.371234 | S123: 9865.159495 | T123: 9894.735984 | U123: 9997.541374 | V123: 9978.613966 | W123: 9790.618716 | X123: 9878.372276 | Y123: 9635.869 | Z123: 9680.280221 | AA123: 9639.335534 | AB123: 9617.138847 | AC123: 9590.637153 | AD123: 9761.010026 | AE123: 10029.69807 | AF123: 10064.53388
A124: LRKPCIGS | B124: 080119 | C124: 1 | D124: 2400 | E124: 60 | F124: 1 | G124: 1 | H124: KW | I124: 9978.790768 | J124: 9989.360574 | K124: 9869.161482 | L124: 9770.847703 | M124: 9728.046679 | N124: 9782.258545 | O124: 9716.483579 | P124: 9682.265863 | Q124: 9752.501716 | R124: 9733.278511 | S124: 9712.83305 | T124: 9839.981334 | U124: 9897.035939 | V124: 10017.47797 | W124: 9882.664197 | X124: 9842.709532 | Y124: 9845.135124 | Z124: 9761.035674 | AA124: 9688.614087 | AB124: 9622.703632 | AC124: 9591.020489 | AD124: 9864.001955 | AE124: 10278.83424 | AF124: 10262.23308
A125: LRKPCIGS | B125: 080219 | C125: 1 | D125: 2400 | E125: 60 | F125: 1 | G125: 1 | H125: KW | I125: 10172.0777 | J125: 10151.60739 | K125: 10057.99472 | L125: 9954.168645 | M125: 9939.553942 | N125: 9990.795668 | O125: 10018.10012 | P125: 9910.058705 | Q125: 9903.231945 | R125: 9947.541032 | S125: 10031.67413 | T125: 10111.81788 | U125: 10054.06834 | V125: 10085.18145 | W125: 10020.74234 | X125: 9972.518087 | Y125: 9974.439179 | Z125: 9929.355534 | AA125: 9907.982389 | AB125: 9855.085045 | AC125: 9856.990561 | AD125: 9840.736861 | AE125: 9849.093221 | AF125: 9866.632724
A126: LRKPCIGS | B126: 080319 | C126: 1 | D126: 2400 | E126: 60 | F126: 1 | G126: 1 | H126: KW | I126: 9852.622095 | J126: 9878.355826 | K126: 9824.129316 | L126: 9718.9608 | M126: 9708.672239 | N126: 9733.693621 | O126: 9699.554847 | P126: 9734.503342 | Q126: 9811.106355 | R126: 9793.268779 | S126: 9758.683376 | T126: 9709.205074 | U126: 9729.403916 | V126: 9731.545774 | W126: 9657.094353 | X126: 9648.854789 | Y126: 9662.129797 | Z126: 9718.608784 | AA126: 9691.925268 | AB126: 9681.783661 | AC126: 9675.513313 | AD126: 9631.506842 | AE126: 9653.515882 | AF126: 9730.08505
A127: LRKPCIGS | B127: 080419 | C127: 1 | D127: 2400 | E127: 60 | F127: 1 | G127: 1 | H127: KW | I127: 9709.701726 | J127: 9663.632826 | K127: 9636.263929 | L127: 9616.640176 | M127: 9622.440179 | N127: 9614.842458 | O127: 9598.329082 | P127: 9617.427982 | Q127: 9596.539108 | R127: 9577.523182 | S127: 9557.066311 | T127: 9518.369755 | U127: 9564.005718 | V127: 9630.916182 | W127: 9677.018847 | X127: 9629.984911 | Y127: 9611.250463 | Z127: 9694.779234 | AA127: 9639.679563 | AB127: 9654.884358 | AC127: 9651.710089 | AD127: 9694.272821 | AE127: 9640.2806 | AF127: 9614.710187
A128: LRKPCIGS | B128: 080519 | C128: 1 | D128: 2400 | E128: 60 | F128: 1 | G128: 1 | H128: KW | I128: 9658.310624 | J128: 9685.988545 | K128: 9657.576076 | L128: 9625.031216 | M128: 9610.050176 | N128: 9630.291389 | O128: 9608.506426 | P128: 9528.944532 | Q128: 9759.674447 | R128: 9835.535511 | S128: 9929.372003 | T128: 9961.438003 | U128: 9989.102542 | V128: 10034.6872 | W128: 10039.69448 | X128: 9992.340729 | Y128: 9915.591582 | Z128: 9898.453566 | AA128: 9807.821242 | AB128: 9803.481542 | AC128: 9813.640505 | AD128: 9935.664274 | AE128: 10110.72357 | AF128: 10030.45958
A129: LRKPCIGS | B129: 080619 | C129: 1 | D129: 2400 | E129: 60 | F129: 1 | G129: 1 | H129: KW | I129: 10086.65954 | J129: 10046.02712 | K129: 9905.373692 | L129: 9747.400237 | M129: 9765.326018 | N129: 9763.269718 | O129: 9734.828984 | P129: 9752.465674 | Q129: 9940.819382 | R129: 9998.848176 | S129: 9895.105697 | T129: 9841.098863 | U129: 9932.007884 | V129: 9959.617968 | W129: 9941.920305 | X129: 9939.554655 | Y129: 9943.016839 | Z129: 9742.701645 | AA129: 9716.187721 | AB129: 9745.278087 | AC129: 9783.185029 | AD129: 9979.062289 | AE129: 9986.304492 | AF129: 10053.3448
A130: LRKPCIGS | B130: 080719 | C130: 1 | D130: 2400 | E130: 60 | F130: 1 | G130: 1 | H130: KW | I130: 10045.63553 | J130: 10054.18445 | K130: 9908.06775 | L130: 9690.638421 | M130: 9738.476747 | N130: 9776.961084 | O130: 9615.644687 | P130: 9586.532137 | Q130: 9661.159284 | R130: 9725.782732 | S130: 9629.493376 | T130: 9603.956379 | U130: 9604.854776 | V130: 9672.955126 | W130: 9708.268337 | X130: 9671.046453 | Y130: 9716.803666 | Z130: 9724.139287 | AA130: 9595.574232 | AB130: 9641.045413 | AC130: 9568.835247 | AD130: 9723.752116 | AE130: 10011.78721 | AF130: 9896.260766
A131: LRKPCIGS | B131: 080819 | C131: 1 | D131: 2400 | E131: 60 | F131: 1 | G131: 1 | H131: KW | I131: 9839.510289 | J131: 9738.684616 | K131: 9715.924711 | L131: 9813.837584 | M131: 9624.970897 | N131: 9675.916834 | O131: 9613.642189 | P131: 9577.428526 | Q131: 9775.54025 | R131: 9891.9782 | S131: 9945.078103 | T131: 9953.839758 | U131: 9939.353589 | V131: 9925.385224 | W131: 9965.581332 | X131: 9925.69635 | Y131: 9964.108018 | Z131: 9941.033095 | AA131: 9760.279342 | AB131: 9749.723453 | AC131: 9879.501547 | AD131: 10081.86841 | AE131: 10219.21544 | AF131: 10152.03897
A132: LRKPCIGS | B132: 080919 | C132: 1 | D132: 2400 | E132: 60 | F132: 1 | G132: 1 | H132: KW | I132: 10220.8263 | J132: 10175.69648 | K132: 9995.92755 | L132: 9911.035276 | M132: 9927.534926 | N132: 9940.460513 | O132: 9858.253147 | P132: 9751.889447 | Q132: 9991.661982 | R132: 10002.42815 | S132: 9907.853216 | T132: 9879.926332 | U132: 9824.642632 | V132: 9850.661482 | W132: 9721.784218 | X132: 9657.038889 | Y132: 9718.774616 | Z132: 9729.830887 | AA132: 9747.86095 | AB132: 9747.486974 | AC132: 9707.126434 | AD132: 9936.504284 | AE132: 10060.78977 | AF132: 9994.278663
A133: LRKPCIGS | B133: 081019 | C133: 1 | D133: 2400 | E133: 60 | F133: 1 | G133: 1 | H133: KW | I133: 9927.746482 | J133: 9777.262055 | K133: 9704.488679 | L133: 9628.756939 | M133: 9656.659316 | N133: 9656.868684 | O133: 9804.202334 | P133: 9938.643389 | Q133: 10015.5883 | R133: 10018.60689 | S133: 10019.49205 | T133: 10090.01237 | U133: 10065.43386 | V133: 10107.26083 | W133: 10085.81289 | X133: 10019.89784 | Y133: 9953.284826 | Z133: 9906.335424 | AA133: 9930.775032 | AB133: 10022.99627 | AC133: 10031.76342 | AD133: 9962.031197 | AE133: 9889.034045 | AF133: 9859.323858
A134: LRKPCIGS | B134: 081119 | C134: 1 | D134: 2400 | E134: 60 | F134: 1 | G134: 1 | H134: KW | I134: 9733.854858 | J134: 9597.636516 | K134: 9606.930934 | L134: 9599.037661 | M134: 9604.006803 | N134: 9570.046295 | O134: 9536.553892 | P134: 9489.896766 | Q134: 9530.046871 | R134: 9534.520161 | S134: 9510.592753 | T134: 9516.559345 | U134: 9453.294953 | V134: 9426.673929 | W134: 9451.836368 | X134: 9509.739511 | Y134: 9510.990542 | Z134: 9454.352058 | AA134: 9467.739621 | AB134: 9478.800187 | AC134: 9478.645621 | AD134: 9503.490353 | AE134: 9517.231676 | AF134: 9487.304521
A135: LRKPCIGS | B135: 081219 | C135: 1 | D135: 2400 | E135: 60 | F135: 1 | G135: 1 | H135: KW | I135: 9470.035447 | J135: 9462.941405 | K135: 9505.475732 | L135: 9518.763234 | M135: 9480.193787 | N135: 9551.615505 | O135: 9710.042142 | P135: 9878.623458 | Q135: 9926.687337 | R135: 9947.208011 | S135: 9911.862868 | T135: 9879.261718 | U135: 9931.720697 | V135: 10080.6485 | W135: 9999.466432 | X135: 9980.5442 | Y135: 9961.698758 | Z135: 9808.759676 | AA135: 9819.972763 | AB135: 9879.3776 | AC135: 9909.743334 | AD135: 10140.3212 | AE135: 10384.43918 | AF135: 10205.94406
A136: LRKPCIGS | B136: 081319 | C136: 1 | D136: 2400 | E136: 60 | F136: 1 | G136: 1 | H136: KW | I136: 10132.36094 | J136: 10208.46878 | K136: 10016.66584 | L136: 9990.219853 | M136: 10092.27919 | N136: 10102.05682 | O136: 9973.546274 | P136: 9830.072634 | Q136: 9827.960145 | R136: 9462.413658 | S136: 9333.605484 | T136: 9174.009197 | U136: 9182.109674 | V136: 9256.187066 | W136: 9233.73535 | X136: 9196.932261 | Y136: 9194.962537 | Z136: 9096.925095 | AA136: 9064.066076 | AB136: 9010.720484 | AC136: 9091.138779 | AD136: 9295.588958 | AE136: 9446.859453 | AF136: 9475.048379
A137: LRKPCIGS | B137: 081419 | C137: 1 | D137: 2400 | E137: 60 | F137: 1 | G137: 1 | H137: KW | I137: 9435.983542 | J137: 9293.437511 | K137: 9164.671655 | L137: 8929.776326 | M137: 8957.973016 | N137: 9124.829587 | O137: 9114.646616 | P137: 9027.550787 | Q137: 9119.183813 | R137: 9245.164529 | S137: 9429.538189 | T137: 9354.172689 | U137: 9308.732187 | V137: 9454.361339 | W137: 9409.814684 | X137: 9285.041439 | Y137: 9408.97615 | Z137: 9262.108121 | AA137: 9106.010397 | AB137: 9087.229047 | AC137: 9257.549782 | AD137: 9440.300995 | AE137: 9646.980182 | AF137: 9612.577529
A138: LRKPCIGS | B138: 081519 | C138: 1 | D138: 2400 | E138: 60 | F138: 1 | G138: 1 | H138: KW | I138: 9409.664063 | J138: 9368.863045 | K138: 9301.659484 | L138: 9257.635347 | M138: 9340.967305 | N138: 9332.380903 | O138: 9380.452032 | P138: 9383.360371 | Q138: 9619.558676 | R138: 9511.281718 | S138: 9450.037226 | T138: 9480.912355 | U138: 9483.817032 | V138: 9538.447005 | W138: 9598.464713 | X138: 9682.448955 | Y138: 9722.598145 | Z138: 9639.074579 | AA138: 9513.122447 | AB138: 9512.860524 | AC138: 9530.247997 | AD138: 9867.385268 | AE138: 9957.398703 | AF138: 9965.7518
A139: LRKPCIGS | B139: 081619 | C139: 1 | D139: 2400 | E139: 60 | F139: 1 | G139: 1 | H139: KW | I139: 9801.645411 | J139: 9661.1067 | K139: 9559.694576 | L139: 9485.430668 | M139: 9468.224855 | N139: 9516.480476 | O139: 9462.99415 | P139: 9408.719376 | Q139: 9549.523358 | R139: 9764.657029 | S139: 9873.65405 | T139: 9782.57125 | U139: 9805.714047 | V139: 9922.929024 | W139: 9928.138297 | X139: 9721.981861 | Y139: 9636.878121 | Z139: 9611.400332 | AA139: 9566.150242 | AB139: 9600.125361 | AC139: 9789.512853 | AD139: 9934.859582 | AE139: 9968.534818 | AF139: 10000.23701
A140: LRKPCIGS | B140: 081719 | C140: 1 | D140: 2400 | E140: 60 | F140: 1 | G140: 1 | H140: KW | I140: 9760.838482 | J140: 9755.975121 | K140: 9661.789866 | L140: 9491.271803 | M140: 9553.010297 | N140: 9503.508384 | O140: 9249.496924 | P140: 9151.021776 | Q140: 9162.417887 | R140: 9144.487003 | S140: 9175.036511 | T140: 9212.434939 | U140: 9297.679761 | V140: 9420.226226 | W140: 9435.104697 | X140: 9473.876853 | Y140: 9358.251311 | Z140: 9401.485716 | AA140: 9387.892753 | AB140: 9357.170445 | AC140: 9391.567282 | AD140: 9365.354866 | AE140: 9355.079763 | AF140: 9374.053663
A141: LRKPCIGS | B141: 081819 | C141: 1 | D141: 2400 | E141: 60 | F141: 1 | G141: 1 | H141: KW | I141: 9360.537437 | J141: 9338.75365 | K141: 9347.814339 | L141: 9338.113463 | M141: 9300.483303 | N141: 9344.363268 | O141: 9345.221184 | P141: 9286.302271 | Q141: 9294.049708 | R141: 9340.340139 | S141: 9373.483229 | T141: 9409.033034 | U141: 9465.697442 | V141: 9489.217471 | W141: 9494.495724 | X141: 9495.893 | Y141: 9435.940874 | Z141: 9452.490592 | AA141: 9433.175313 | AB141: 9441.866224 | AC141: 9501.715061 | AD141: 9552.706753 | AE141: 9560.855374 | AF141: 9606.643147
A142: LRKPCIGS | B142: 081919 | C142: 1 | D142: 2400 | E142: 60 | F142: 1 | G142: 1 | H142: KW | I142: 9738.461097 | J142: 9760.961484 | K142: 9756.454263 | L142: 9719.115855 | M142: 9728.676905 | N142: 9780.443608 | O142: 9775.61725 | P142: 9891.086482 | Q142: 10076.80949 | R142: 9994.454708 | S142: 9979.833668 | T142: 10011.04695 | U142: 10019.92164 | V142: 10022.90987 | W142: 10108.24309 | X142: 10017.94265 | Y142: 10118.64066 | Z142: 10075.02642 | AA142: 10083.8754 | AB142: 10077.91972 | AC142: 10162.99882 | AD142: 10404.96206 | AE142: 10476.64311 | AF142: 10492.15217
A143: LRKPCIGS | B143: 082019 | C143: 1 | D143: 2400 | E143: 60 | F143: 1 | G143: 1 | H143: KW | I143: 10412.42477 | J143: 10317.0545 | K143: 10082.60636 | L143: 10078.67095 | M143: 10165.51001 | N143: 10144.79105 | O143: 10105.75226 | P143: 10085.38026 | Q143: 10333.07647 | R143: 10346.04991 | S143: 10305.42081 | T143: 10075.33817 | U143: 9808.944945 | V143: 10192.60948 | W143: 10197.87038 | X143: 10118.99667 | Y143: 10094.33615 | Z143: 10066.44168 | AA143: 9928.372987 | AB143: 9940.389266 | AC143: 9981.86815 | AD143: 10118.79683 | AE143: 10325.49446 | AF143: 10303.18287
A144: LRKPCIGS | B144: 082119 | C144: 1 | D144: 2400 | E144: 60 | F144: 1 | G144: 1 | H144: KW | I144: 10258.93883 | J144: 10160.61651 | K144: 10023.21551 | L144: 9950.388997 | M144: 9942.499439 | N144: 9882.6142 | O144: 9883.388161 | P144: 9894.908937 | Q144: 10070.45454 | R144: 10105.79785 | S144: 10022.28773 | T144: 10132.73914 | U144: 10148.34789 | V144: 10208.05804 | W144: 10106.09849 | X144: 10061.49699 | Y144: 10079.34819 | Z144: 10084.94033 | AA144: 10042.61172 | AB144: 9998.708582 | AC144: 9992.187034 | AD144: 10094.88558 | AE144: 10241.53831 | AF144: 10306.97235
A145: LRKPCIGS | B145: 082219 | C145: 1 | D145: 2400 | E145: 60 | F145: 1 | G145: 1 | H145: KW | I145: 10261.18659 | J145: 10199.43978 | K145: 10128.39422 | L145: 10039.77273 | M145: 10003.63874 | N145: 10089.57265 | O145: 10187.95529 | P145: 10192.96682 | Q145: 10333.1042 | R145: 10126.05242 | S145: 10066.35376 | T145: 10036.10663 | U145: 10052.80796 | V145: 10089.21729 | W145: 10110.37954 | X145: 9989.722837 | Y145: 10361.99192 | Z145: 9869.425661 | AA145: 9619.096642 | AB145: 9610.5086 | AC145: 9614.681587 | AD145: 9666.434637 | AE145: 9900.581292 | AF145: 9962.125611
A146: LRKPCIGS | B146: 082319 | C146: 1 | D146: 2400 | E146: 60 | F146: 1 | G146: 1 | H146: KW | I146: 9998.209782 | J146: 9887.514276 | K146: 9776.601726 | L146: 9749.410292 | M146: 9785.436166 | N146: 9804.226216 | O146: 9687.440103 | P146: 9635.154311 | Q146: 9633.313284 | R146: 9695.780361 | S146: 9678.392863 | T146: 9620.588347 | U146: 9655.066911 | V146: 9718.163745 | W146: 9715.571111 | X146: 9645.799953 | Y146: 9653.122905 | Z146: 9628.179416 | AA146: 9554.695371 | AB146: 9603.790911 | AC146: 9630.657432 | AD146: 9739.543695 | AE146: 9974.082613 | AF146: 9936.195911
A147: LRKPCIGS | B147: 082419 | C147: 1 | D147: 2400 | E147: 60 | F147: 1 | G147: 1 | H147: KW | I147: 9897.209932 | J147: 9839.140661 | K147: 9697.884732 | L147: 9610.660289 | M147: 9628.243853 | N147: 9717.436411 | O147: 9863.005776 | P147: 9838.918484 | Q147: 9916.510429 | R147: 9933.669639 | S147: 9932.409661 | T147: 9881.205576 | U147: 9833.673711 | V147: 9821.271216 | W147: 9825.506876 | X147: 9738.446566 | Y147: 9820.370026 | Z147: 9827.261892 | AA147: 9790.017032 | AB147: 9776.497268 | AC147: 9800.4045 | AD147: 9726.757676 | AE147: 9635.084276 | AF147: 9578.531947
A148: LRKPCIGS | B148: 082519 | C148: 1 | D148: 2400 | E148: 60 | F148: 1 | G148: 1 | H148: KW | I148: 9493.794384 | J148: 9463.668221 | K148: 9391.494663 | L148: 9401.539592 | M148: 9420.119008 | N148: 9400.682139 | O148: 9389.779592 | P148: 9382.511111 | Q148: 9384.496721 | R148: 9414.591139 | S148: 9436.531116 | T148: 9479.529355 | U148: 9445.962421 | V148: 9480.654584 | W148: 9469.301039 | X148: 9496.114408 | Y148: 9509.130445 | Z148: 9494.335042 | AA148: 9503.038566 | AB148: 9476.987479 | AC148: 9525.1972 | AD148: 9581.062739 | AE148: 9719.652111 | AF148: 9795.082247
A149: LRKPCIGS | B149: 082619 | C149: 1 | D149: 2400 | E149: 60 | F149: 1 | G149: 1 | H149: KW | I149: 9807.834263 | J149: 9813.246824 | K149: 9844.925429 | L149: 9844.083784 | M149: 9693.934721 | N149: 9716.540076 | O149: 9833.295858 | P149: 9781.267003 | Q149: 9756.981 | R149: 9807.840039 | S149: 9980.669895 | T149: 9978.491437 | U149: 10013.57901 | V149: 10127.79917 | W149: 10092.89446 | X149: 10068.74143 | Y149: 10009.17236 | Z149: 9985.710432 | AA149: 9880.158332 | AB149: 9813.124034 | AC149: 9870.039008 | AD149: 10090.89712 | AE149: 10425.84925 | AF149: 10417.54805
A150: LRKPCIGS | B150: 082719 | C150: 1 | D150: 2400 | E150: 60 | F150: 1 | G150: 1 | H150: KW | I150: 10340.69389 | J150: 10252.91012 | K150: 10094.49516 | L150: 10065.89372 | M150: 10149.55265 | N150: 10044.36192 | O150: 10053.96287 | P150: 9916.338155 | Q150: 10028.16766 | R150: 10029.1962 | S150: 10112.72747 | T150: 10065.30337 | U150: 10116.65653 | V150: 10298.33456 | W150: 10255.46917 | X150: 10136.09719 | Y150: 10093.51311 | Z150: 10041.24661 | AA150: 9962.624795 | AB150: 9900.325842 | AC150: 9917.442663 | AD150: 9977.924432 | AE150: 10171.52088 | AF150: 10172.29374
A151: LRKPCIGS | B151: 082819 | C151: 1 | D151: 2400 | E151: 60 | F151: 1 | G151: 1 | H151: KW | I151: 10120.97609 | J151: 9927.614571 | K151: 9792.549366 | L151: 9845.845487 | M151: 9736.159497 | N151: 9711.619739 | O151: 9677.882547 | P151: 9688.597037 | Q151: 9737.760784 | R151: 9976.847147 | S151: 10073.94206 | T151: 9980.927697 | U151: 10018.13135 | V151: 10094.3431 | W151: 10150.72777 | X151: 10066.05731 | Y151: 10030.74384 | Z151: 10001.35245 | AA151: 9828.021037 | AB151: 9741.641371 | AC151: 9848.29235 | AD151: 10082.47321 | AE151: 10420.99369 | AF151: 10288.34263
A152: LRKPCIGS | B152: 082919 | C152: 1 | D152: 2400 | E152: 60 | F152: 1 | G152: 1 | H152: KW | I152: 10354.83317 | J152: 10226.96744 | K152: 9834.383632 | L152: 9701.721234 | M152: 9779.269368 | N152: 9748.772758 | O152: 9597.894679 | P152: 9525.757332 | Q152: 9702.267484 | R152: 9898.720392 | S152: 9917.448363 | T152: 9991.400074 | U152: 9951.334216 | V152: 10066.7926 | W152: 10118.3529 | X152: 9986.085671 | Y152: 9983.523132 | Z152: 9934.801563 | AA152: 9795.0242 | AB152: 9954.574239 | AC152: 10071.13368 | AD152: 10172.95662 | AE152: 10402.84072 | AF152: 10367.02787
A153: LRKPCIGS | B153: 083019 | C153: 1 | D153: 2400 | E153: 60 | F153: 1 | G153: 1 | H153: KW | I153: 10223.05649 | J153: 10101.08025 | K153: 9963.961824 | L153: 9991.627595 | M153: 10015.3697 | N153: 10044.55322 | O153: 9950.585921 | P153: 9613.296966 | Q153: 9894.493405 | R153: 9991.392589 | S153: 10083.11513 | T153: 10001.43809 | U153: 9916.904226 | V153: 10075.95874 | W153: 10098.50239 | X153: 10007.59991 | Y153: 9979.616408 | Z153: 9933.31185 | AA153: 9938.359932 | AB153: 9995.930529 | AC153: 10020.81614 | AD153: 10169.09408 | AE153: 9989.655884 | AF153: 10077.81333
A154: LRKPCIGS | B154: 083119 | C154: 1 | D154: 2400 | E154: 60 | F154: 1 | G154: 1 | H154: KW | I154: 9929.853942 | J154: 9897.211626 | K154: 9771.683253 | L154: 9710.026913 | M154: 9728.680866 | N154: 9712.608153 | O154: 9701.0899 | P154: 9744.033679 | Q154: 9756.977289 | R154: 9715.089129 | S154: 9735.549303 | T154: 9735.541376 | U154: 9666.814232 | V154: 9701.00795 | W154: 9720.874716 | X154: 9729.954542 | Y154: 9700.2292 | Z154: 9690.398237 | AA154: 9638.832018 | AB154: 9735.654103 | AC154: 9736.004389 | AD154: 9720.211584 | AE154: 9701.371089 | AF154: 9687.420089
A155: LRKPCIGS | B155: 090119 | C155: 1 | D155: 2400 | E155: 60 | F155: 1 | G155: 1 | H155: KW | I155: 9665.670508 | J155: 9661.489097 | K155: 9636.174055 | L155: 9618.213395 | M155: 9694.496729 | N155: 9739.132903 | O155: 9696.488242 | P155: 9625.356753 | Q155: 9583.279671 | R155: 9594.332174 | S155: 9645.402918 | T155: 9659.495121 | U155: 9683.495058 | V155: 9662.313484 | W155: 9644.755574 | X155: 9640.530326 | Y155: 9614.740608 | Z155: 9629.053455 | AA155: 9617.690939 | AB155: 9611.242982 | AC155: 9590.532721 | AD155: 9519.877126 | AE155: 9469.127518 | AF155: 9497.159387
A156: LRKPCIGS | B156: 090219 | C156: 1 | D156: 2400 | E156: 60 | F156: 1 | G156: 1 | H156: KW | I156: 9509.218005 | J156: 9523.295511 | K156: 9537.726687 | L156: 9464.338387 | M156: 9415.818918 | N156: 9437.841587 | O156: 9251.840763 | P156: 8954.228168 | Q156: 8941.565876 | R156: 8964.049679 | S156: 9020.354476 | T156: 9004.729976 | U156: 9029.252092 | V156: 9038.255189 | W156: 9015.770208 | X156: 9060.341187 | Y156: 9085.997576 | Z156: 9051.269013 | AA156: 8984.373392 | AB156: 8983.118758 | AC156: 9046.489887 | AD156: 9307.683753 | AE156: 9578.719758 | AF156: 9596.496437
A157: LRKPCIGS | B157: 090319 | C157: 1 | D157: 2400 | E157: 60 | F157: 1 | G157: 1 | H157: KW | I157: 9649.528784 | J157: 9814.068458 | K157: 9680.705592 | L157: 9709.56595 | M157: 9747.760371 | N157: 9663.293495 | O157: 9636.169818 | P157: 9595.512874 | Q157: 9672.181358 | R157: 9753.32585 | S157: 9942.633426 | T157: 9926.827366 | U157: 9858.801882 | V157: 9916.271992 | W157: 9814.409071 | X157: 9670.857376 | Y157: 9711.573082 | Z157: 9676.713097 | AA157: 9573.124726 | AB157: 9527.771847 | AC157: 9513.138224 | AD157: 9683.013482 | AE157: 9757.211684 | AF157: 9751.682929
A158: LRKPCIGS | B158: 090419 | C158: 1 | D158: 2400 | E158: 60 | F158: 1 | G158: 1 | H158: KW | I158: 9630.855008 | J158: 9533.965116 | K158: 9486.855982 | L158: 9275.009997 | M158: 9297.020105 | N158: 9298.104992 | O158: 9448.521968 | P158: 9415.805576 | Q158: 9513.619508 | R158: 9595.634492 | S158: 9640.103368 | T158: 9680.607687 | U158: 9720.451379 | V158: 9691.344576 | W158: 9679.424029 | X158: 9621.402766 | Y158: 9726.748034 | Z158: 9576.864387 | AA158: 9448.239163 | AB158: 9378.149879 | AC158: 9544.046379 | AD158: 9766.438747 | AE158: 10143.10114 | AF158: 10190.70638
A159: LRKPCIGS | B159: 090519 | C159: 1 | D159: 2400 | E159: 60 | F159: 1 | G159: 1 | H159: KW | I159: 10061.3735 | J159: 9960.946824 | K159: 9755.950671 | L159: 9564.071947 | M159: 9666.399174 | N159: 9669.161416 | O159: 9491.697111 | P159: 9630.420363 | Q159: 9729.090961 | R159: 9654.554521 | S159: 9715.920716 | T159: 9666.622355 | U159: 9624.688916 | V159: 9766.760861 | W159: 9799.843434 | X159: 9735.600974 | Y159: 9636.678189 | Z159: 9604.248439 | AA159: 9532.270358 | AB159: 9475.832347 | AC159: 9310.879505 | AD159: 9624.95885 | AE159: 9935.600034 | AF159: 9897.270332
A160: LRKPCIGS | B160: 090619 | C160: 1 | D160: 2400 | E160: 60 | F160: 1 | G160: 1 | H160: KW | I160: 9863.693408 | J160: 9712.063313 | K160: 9654.109587 | L160: 9639.588013 | M160: 9618.487026 | N160: 9655.021584 | O160: 9660.091776 | P160: 9716.248045 | Q160: 9868.616803 | R160: 9823.814376 | S160: 9961.239182 | T160: 9843.872095 | U160: 10104.80484 | V160: 10195.12432 | W160: 10064.59873 | X160: 9909.232168 | Y160: 9939.552155 | Z160: 9952.70025 | AA160: 9852.091497 | AB160: 9936.628003 | AC160: 10047.13068 | AD160: 10149.82862 | AE160: 10354.49652 | AF160: 10299.68511
A161: LRKPCIGS | B161: 090719 | C161: 1 | D161: 2400 | E161: 60 | F161: 1 | G161: 1 | H161: KW | I161: 10285.04913 | J161: 10161.73273 | K161: 10029.83818 | L161: 10001.16957 | M161: 10003.51989 | N161: 9974.418813 | O161: 9962.198947 | P161: 9995.996305 | Q161: 10021.7303 | R161: 10009.10247 | S161: 10064.7084 | T161: 10069.86453 | U161: 10155.69228 | V161: 10099.53172 | W161: 10106.22266 | X161: 10009.21423 | Y161: 10036.99573 | Z161: 10000.58058 | AA161: 10034.69267 | AB161: 9656.058253 | AC161: 9542.339584 | AD161: 9522.512913 | AE161: 9660.986642 | AF161: 9508.576674
A162: LRKPCIGS | B162: 090819 | C162: 1 | D162: 2400 | E162: 60 | F162: 1 | G162: 1 | H162: KW | I162: 9447.150989 | J162: 9334.755021 | K162: 9240.518339 | L162: 9234.587829 | M162: 9265.853766 | N162: 9225.590939 | O162: 9228.927797 | P162: 9175.208976 | Q162: 9168.25845 | R162: 9196.975697 | S162: 9209.835903 | T162: 9210.523761 | U162: 9206.720842 | V162: 9193.70105 | W162: 9181.355679 | X162: 9153.788682 | Y162: 9155.387808 | Z162: 9158.733418 | AA162: 9166.307484 | AB162: 9177.338184 | AC162: 9252.035995 | AD162: 9222.693782 | AE162: 9356.427613 | AF162: 9390.128332
A163: LRKPCIGS | B163: 090919 | C163: 1 | D163: 2400 | E163: 60 | F163: 1 | G163: 1 | H163: KW | I163: 9433.829603 | J163: 9433.494818 | K163: 9311.937553 | L163: 9321.296168 | M163: 9438.102589 | N163: 9460.127813 | O163: 9317.616103 | P163: 9178.482153 | Q163: 9312.701595 | R163: 9380.497779 | S163: 9412.161003 | T163: 9526.454297 | U163: 9571.316076 | V163: 9601.059226 | W163: 9682.401213 | X163: 9664.642908 | Y163: 9607.217134 | Z163: 9601.927205 | AA163: 9587.990466 | AB163: 9547.080821 | AC163: 9586.344703 | AD163: 9759.689803 | AE163: 9920.210126 | AF163: 9862.352882
A164: LRKPCIGS | B164: 091019 | C164: 1 | D164: 2400 | E164: 60 | F164: 1 | G164: 1 | H164: KW | I164: 9840.466058 | J164: 9731.268016 | K164: 9498.913242 | L164: 9467.603366 | M164: 9507.328021 | N164: 9536.130413 | O164: 9398.897882 | P164: 9190.126866 | Q164: 9196.202279 | R164: 9366.260982 | S164: 9558.484226 | T164: 9667.779958 | U164: 9673.073245 | V164: 9699.554803 | W164: 9622.318271 | X164: 9590.663418 | Y164: 9560.669053 | Z164: 9394.916642 | AA164: 9429.799658 | AB164: 9474.678495 | AC164: 9451.824295 | AD164: 9591.404616 | AE164: 9768.171542 | AF164: 9815.279524
A165: LRKPCIGS | B165: 091119 | C165: 1 | D165: 2400 | E165: 60 | F165: 1 | G165: 1 | H165: KW | I165: 9883.407792 | J165: 9641.441289 | K165: 9468.427353 | L165: 9349.263011 | M165: 9241.777513 | N165: 9216.332776 | O165: 9229.280861 | P165: 9361.66805 | Q165: 9400.517145 | R165: 9475.387145 | S165: 9467.704058 | T165: 9429.444579 | U165: 9368.450903 | V165: 9607.255813 | W165: 9656.545329 | X165: 9499.909642 | Y165: 9480.976126 | Z165: 9497.123829 | AA165: 9525.697442 | AB165: 9528.591463 | AC165: 9490.836795 | AD165: 9629.389611 | AE165: 9806.765489 | AF165: 9693.149011
A166: LRKPCIGS | B166: 091219 | C166: 1 | D166: 2400 | E166: 60 | F166: 1 | G166: 1 | H166: KW | I166: 9659.513726 | J166: 9551.955058 | K166: 9454.907905 | L166: 9424.259884 | M166: 9416.698008 | N166: 9415.446574 | O166: 9405.162292 | P166: 9336.124989 | Q166: 9492.304155 | R166: 9452.199589 | S166: 9516.969339 | T166: 9497.5693 | U166: 9599.689058 | V166: 9589.636358 | W166: 9523.315121 | X166: 9367.107003 | Y166: 9475.002608 | Z166: 9441.432116 | AA166: 9410.593255 | AB166: 9388.106079 | AC166: 9457.054208 | AD166: 9534.080692 | AE166: 9741.741339 | AF166: 9721.225087
A167: LRKPCIGS | B167: 091319 | C167: 1 | D167: 2400 | E167: 60 | F167: 1 | G167: 1 | H167: KW | I167: 9929.681305 | J167: 9754.327342 | K167: 9588.305289 | L167: 9457.932747 | M167: 9653.185997 | N167: 9690.214113 | O167: 9316.489518 | P167: 9254.879976 | Q167: 9491.444155 | R167: 9554.23275 | S167: 9510.205145 | T167: 9595.877518 | U167: 9577.978308 | V167: 9452.671263 | W167: 9272.171174 | X167: 9254.333245 | Y167: 9310.500374 | Z167: 9391.289466 | AA167: 9316.520647 | AB167: 9294.727871 | AC167: 9195.249845 | AD167: 9359.522261 | AE167: 9347.335995 | AF167: 9384.999634
A168: LRKPCIGS | B168: 091419 | C168: 1 | D168: 2400 | E168: 60 | F168: 1 | G168: 1 | H168: KW | I168: 9383.906729 | J168: 9299.294347 | K168: 9205.182297 | L168: 9180.909174 | M168: 9188.841205 | N168: 9169.211337 | O168: 9186.223263 | P168: 9169.597016 | Q168: 9124.759942 | R168: 9085.919608 | S168: 9102.447066 | T168: 9117.376305 | U168: 9147.043387 | V168: 9138.784679 | W168: 9116.485142 | X168: 9097.993797 | Y168: 9118.529866 | Z168: 9092.848729 | AA168: 9070.41495 | AB168: 9043.017753 | AC168: 9095.384589 | AD168: 9071.331247 | AE168: 9055.264539 | AF168: 9050.276013
A169: LRKPCIGS | B169: 091519 | C169: 1 | D169: 2400 | E169: 60 | F169: 1 | G169: 1 | H169: KW | I169: 9074.979237 | J169: 9054.450271 | K169: 9036.159521 | L169: 9020.090455 | M169: 9024.674945 | N169: 9029.012621 | O169: 9037.011816 | P169: 8997.328387 | Q169: 8951.208747 | R169: 8959.641284 | S169: 8978.106555 | T169: 8981.438468 | U169: 9018.517755 | V169: 9019.561284 | W169: 9025.902734 | X169: 8614.940158 | Y169: 8581.44395 | Z169: 8584.841508 | AA169: 8586.763729 | AB169: 8773.631082 | AC169: 9019.072179 | AD169: 8998.593308 | AE169: 8984.736592 | AF169: 8996.093695
A170: LRKPCIGS | B170: 091619 | C170: 1 | D170: 2400 | E170: 60 | F170: 1 | G170: 1 | H170: KW | I170: 9111.994295 | J170: 9136.872558 | K170: 9113.867879 | L170: 9139.687679 | M170: 9114.716542 | N170: 9122.584839 | O170: 9219.585618 | P170: 9072.852005 | Q170: 9377.767055 | R170: 9313.515055 | S170: 9410.464405 | T170: 9486.195942 | U170: 9450.279071 | V170: 9397.427311 | W170: 9459.996963 | X170: 9418.707416 | Y170: 9678.3704 | Z170: 9784.040216 | AA170: 9681.647724 | AB170: 9741.505382 | AC170: 9633.947142 | AD170: 9579.785689 | AE170: 9880.320079 | AF170: 9781.840613
A171: LRKPCIGS | B171: 091719 | C171: 1 | D171: 2400 | E171: 60 | F171: 1 | G171: 1 | H171: KW | I171: 9865.311655 | J171: 9674.091092 | K171: 9504.497474 | L171: 9474.660661 | M171: 9459.300011 | N171: 9415.224021 | O171: 9502.430271 | P171: 9518.904616 | Q171: 9661.582539 | R171: 9638.869082 | S171: 9652.144192 | T171: 9533.061271 | U171: 9414.254934 | V171: 9650.698805 | W171: 9668.030334 | X171: 9546.545271 | Y171: 9514.435574 | Z171: 9478.392534 | AA171: 9476.471295 | AB171: 9507.772074 | AC171: 9509.891816 | AD171: 9641.587255 | AE171: 9749.170384 | AF171: 9750.857587
A172: LRKPCIGS | B172: 091819 | C172: 1 | D172: 2400 | E172: 60 | F172: 1 | G172: 1 | H172: KW | I172: 9786.106558 | J172: 9661.168892 | K172: 9515.065221 | L172: 9415.555734 | M172: 9517.863316 | N172: 9530.619097 | O172: 9542.222687 | P172: 9366.177134 | Q172: 9640.174155 | R172: 9646.153245 | S172: 9575.693468 | T172: 9552.541084 | U172: 9526.211421 | V172: 9533.672668 | W172: 9412.991211 | X172: 9413.348242 | Y172: 9348.887105 | Z172: 9325.357795 | AA172: 9284.887384 | AB172: 9448.633882 | AC172: 9417.810884 | AD172: 9561.356266 | AE172: 9741.294103 | AF172: 9735.332089
A173: LRKPCIGS | B173: 091919 | C173: 1 | D173: 2400 | E173: 60 | F173: 1 | G173: 1 | H173: KW | I173: 9603.860997 | J173: 9638.877939 | K173: 9631.784529 | L173: 9251.794911 | M173: 9204.393095 | N173: 9293.106495 | O173: 9248.946 | P173: 9225.721245 | Q173: 9222.208537 | R173: 9287.954611 | S173: 9388.692797 | T173: 9464.902726 | U173: 9419.544574 | V173: 9493.027116 | W173: 9484.377561 | X173: 9503.693363 | Y173: 9488.921892 | Z173: 9467.051 | AA173: 9357.8769 | AB173: 9432.550797 | AC173: 9447.154511 | AD173: 9576.084397 | AE173: 9791.401871 | AF173: 9743.440784
A174: LRKPCIGS | B174: 092019 | C174: 1 | D174: 2400 | E174: 60 | F174: 1 | G174: 1 | H174: KW | I174: 9739.111924 | J174: 9549.751568 | K174: 9420.611347 | L174: 9322.471626 | M174: 9207.435384 | N174: 9209.463629 | O174: 9320.101589 | P174: 9426.808989 | Q174: 9497.138108 | R174: 9443.118247 | S174: 9437.363018 | T174: 9288.257897 | U174: 9389.354824 | V174: 9444.062618 | W174: 9520.265132 | X174: 9395.9074 | Y174: 9381.06275 | Z174: 9377.233882 | AA174: 9329.096421 | AB174: 9288.726224 | AC174: 9235.790626 | AD174: 9369.113276 | AE174: 9372.402668 | AF174: 9354.45735
A175: LRKPCIGS | B175: 092119 | C175: 1 | D175: 2400 | E175: 60 | F175: 1 | G175: 1 | H175: KW | I175: 9318.712774 | J175: 9256.049774 | K175: 9185.903603 | L175: 9089.423389 | M175: 9066.725279 | N175: 9047.276826 | O175: 9129.438463 | P175: 9172.808313 | Q175: 9160.623447 | R175: 9137.439521 | S175: 9107.846376 | T175: 9125.458405 | U175: 9138.841797 | V175: 9186.530753 | W175: 9157.0552 | X175: 9149.291995 | Y175: 9122.766584 | Z175: 9133.719645 | AA175: 9081.014634 | AB175: 9058.898366 | AC175: 9024.297476 | AD175: 8960.771829 | AE175: 8960.071329 | AF175: 8906.626389
A176: LRKPCIGS | B176: 092219 | C176: 1 | D176: 2400 | E176: 60 | F176: 1 | G176: 1 | H176: KW | I176: 8908.062739 | J176: 8902.120058 | K176: 8856.097537 | L176: 8837.102563 | M176: 8834.816087 | N176: 8832.604155 | O176: 8856.050742 | P176: 8881.904405 | Q176: 8869.602782 | R176: 8854.863066 | S176: 8849.5509 | T176: 8853.386137 | U176: 8892.112503 | V176: 8915.606358 | W176: 8932.970589 | X176: 8942.349205 | Y176: 8942.367376 | Z176: 8957.014137 | AA176: 8969.129084 | AB176: 8990.62875 | AC176: 8993.773663 | AD176: 8993.849053 | AE176: 8938.804234 | AF176: 8993.072458
A177: LRKPCIGS | B177: 092319 | C177: 1 | D177: 2400 | E177: 60 | F177: 1 | G177: 1 | H177: KW | I177: 9028.741179 | J177: 9044.171613 | K177: 9019.470947 | L177: 9019.336684 | M177: 8974.690379 | N177: 9079.559566 | O177: 9127.258547 | P177: 9018.475211 | Q177: 9070.696074 | R177: 9092.514471 | S177: 9069.567897 | T177: 9106.991813 | U177: 9132.138392 | V177: 9082.461053 | W177: 9167.838863 | X177: 9319.027868 | Y177: 9323.278455 | Z177: 9376.239411 | AA177: 9272.111903 | AB177: 9266.096897 | AC177: 9265.244605 | AD177: 9571.023303 | AE177: 9632.67565 | AF177: 9586.983571
A178: LRKPCIGS | B178: 092419 | C178: 1 | D178: 2400 | E178: 60 | F178: 1 | G178: 1 | H178: KW | I178: 9656.29265 | J178: 9705.5347 | K178: 9446.217163 | L178: 9476.495916 | M178: 9518.267342 | N178: 9398.686116 | O178: 9351.576297 | P178: 9207.571684 | Q178: 9192.265587 | R178: 9242.200545 | S178: 9432.906984 | T178: 9444.0414 | U178: 9481.634716 | V178: 9538.809211 | W178: 9477.536442 | X178: 9516.43715 | Y178: 9487.5921 | Z178: 9420.359255 | AA178: 9372.384808 | AB178: 9348.901105 | AC178: 9305.587108 | AD178: 9427.001397 | AE178: 9589.269461 | AF178: 9649.527121
A179: LRKPCIGS | B179: 092519 | C179: 1 | D179: 2400 | E179: 60 | F179: 1 | G179: 1 | H179: KW | I179: 9646.581068 | J179: 9537.988853 | K179: 9389.674376 | L179: 9318.454432 | M179: 9304.946761 | N179: 9313.859555 | O179: 9275.304853 | P179: 9156.701295 | Q179: 9235.797174 | R179: 9286.337239 | S179: 9363.933842 | T179: 9440.083784 | U179: 9543.669639 | V179: 9540.813611 | W179: 9467.230663 | X179: 9450.986303 | Y179: 9391.790737 | Z179: 9418.203453 | AA179: 9362.576084 | AB179: 9355.890413 | AC179: 9383.306797 | AD179: 9623.752939 | AE179: 9783.427966 | AF179: 9681.740168
A180: LRKPCIGS | B180: 092619 | C180: 1 | D180: 2400 | E180: 60 | F180: 1 | G180: 1 | H180: KW | I180: 9785.270858 | J180: 9712.882789 | K180: 9453.616892 | L180: 9455.409416 | M180: 9478.181132 | N180: 9432.168695 | O180: 9396.574479 | P180: 9330.193074 | Q180: 9444.550795 | R180: 9564.431768 | S180: 9658.626755 | T180: 9605.220616 | U180: 9555.705466 | V180: 9667.668721 | W180: 9690.694989 | X180: 9732.460624 | Y180: 9650.214292 | Z180: 9555.621861 | AA180: 9441.00625 | AB180: 9483.772321 | AC180: 9415.602237 | AD180: 9589.945213 | AE180: 9689.447837 | AF180: 9741.847287
A181: LRKPCIGS | B181: 092719 | C181: 1 | D181: 2400 | E181: 60 | F181: 1 | G181: 1 | H181: KW | I181: 9741.917682 | J181: 9631.03275 | K181: 9534.949655 | L181: 9411.223961 | M181: 9376.368105 | N181: 9394.597889 | O181: 9309.445884 | P181: 9331.713511 | Q181: 9517.551563 | R181: 9463.509958 | S181: 9437.717984 | T181: 9474.754916 | U181: 9422.417853 | V181: 9512.316947 | W181: 9483.624076 | X181: 9539.150871 | Y181: 9474.917566 | Z181: 9446.802339 | AA181: 9320.248871 | AB181: 9326.149176 | AC181: 9309.914939 | AD181: 9451.263968 | AE181: 9460.566884 | AF181: 9395.904716
A182: LRKPCIGS | B182: 092819 | C182: 1 | D182: 2400 | E182: 60 | F182: 1 | G182: 1 | H182: KW | I182: 9346.133563 | J182: 9234.584353 | K182: 9163.834105 | L182: 9113.029429 | M182: 9129.638942 | N182: 9122.819947 | O182: 9121.652574 | P182: 9161.229263 | Q182: 9168.500839 | R182: 9199.396029 | S182: 9209.268276 | T182: 9192.273003 | U182: 9211.656305 | V182: 9206.363858 | W182: 9239.083563 | X182: 9175.336808 | Y182: 9203.823589 | Z182: 9227.354471 | AA182: 9209.279837 | AB182: 9229.027676 | AC182: 9225.410892 | AD182: 9227.554324 | AE182: 9223.325682 | AF182: 9183.917392
A183: LRKPCIGS | B183: 092919 | C183: 1 | D183: 2400 | E183: 60 | F183: 1 | G183: 1 | H183: KW | I183: 9161.634937 | J183: 9127.075132 | K183: 9094.794761 | L183: 9108.319976 | M183: 9158.748211 | N183: 9120.68 | O183: 9108.827432 | P183: 9070.466147 | Q183: 9041.431082 | R183: 9013.183992 | S183: 9019.768879 | T183: 9028.568782 | U183: 9082.095839 | V183: 9094.007918 | W183: 9120.139447 | X183: 9154.743484 | Y183: 9147.778876 | Z183: 9161.550937 | AA183: 9187.324571 | AB183: 9219.863424 | AC183: 9252.545542 | AD183: 9305.008682 | AE183: 9380.715476 | AF183: 9378.905837
A184: LRKPCIGS | B184: 093019 | C184: 1 | D184: 2400 | E184: 60 | F184: 1 | G184: 1 | H184: KW | I184: 9468.311903 | J184: 9388.862184 | K184: 9396.819582 | L184: 9351.373961 | M184: 9469.809663 | N184: 9423.488295 | O184: 9359.604237 | P184: 9349.112603 | Q184: 9651.704676 | R184: 9662.477363 | S184: 9778.652058 | T184: 9781.022432 | U184: 9750.206576 | V184: 9783.197303 | W184: 9812.729642 | X184: 9604.632316 | Y184: 9626.698458 | Z184: 9624.169239 | AA184: 9588.402203 | AB184: 9642.467984 | AC184: 9659.134453 | AD184: 9656.02205 | AE184: 9831.449347 | AF184: 9913.166213
A185: LRKPCIGS | B185: 100119 | C185: 1 | D185: 2400 | E185: 60 | F185: 1 | G185: 1 | H185: KW | I185: 9864.637753 | J185: 9712.467863 | K185: 9630.272976 | L185: 9568.936908 | M185: 9602.52525 | N185: 9559.415124 | O185: 9597.144455 | P185: 9540.864574 | Q185: 9820.059418 | R185: 9787.800721 | S185: 9804.190092 | T185: 9791.925847 | U185: 9798.272771 | V185: 9817.825455 | W185: 9789.051842 | X185: 9703.728068 | Y185: 9649.183403 | Z185: 9668.501832 | AA185: 9552.587968 | AB185: 9532.985766 | AC185: 9583.709237 | AD185: 9823.369303 | AE185: 9970.175726 | AF185: 9933.06075
A186: LRKPCIGS | B186: 100219 | C186: 1 | D186: 2400 | E186: 60 | F186: 1 | G186: 1 | H186: KW | I186: 9902.634879 | J186: 9790.01555 | K186: 9571.471468 | L186: 9630.737239 | M186: 9680.391442 | N186: 9680.008466 | O186: 9596.915576 | P186: 9527.885016 | Q186: 9636.736429 | R186: 9681.236271 | S186: 9629.436505 | T186: 9728.215332 | U186: 9735.425008 | V186: 9710.957726 | W186: 9682.277695 | X186: 9610.703703 | Y186: 9654.346213 | Z186: 9607.483389 | AA186: 9604.766855 | AB186: 9614.902321 | AC186: 9578.511379 | AD186: 9811.155221 | AE186: 10032.53857 | AF186: 10075.27146
A187: LRKPCIGS | B187: 100319 | C187: 1 | D187: 2400 | E187: 60 | F187: 1 | G187: 1 | H187: KW | I187: 10005.71597 | J187: 9729.958608 | K187: 9582.538266 | L187: 9517.053305 | M187: 9461.1007 | N187: 9411.933953 | O187: 9374.271811 | P187: 9522.294195 | Q187: 9829.557184 | R187: 9862.528187 | S187: 9861.753466 | T187: 9824.118226 | U187: 9901.691655 | V187: 9907.190682 | W187: 10001.59296 | X187: 9915.710047 | Y187: 9754.458182 | Z187: 9581.288013 | AA187: 9578.409968 | AB187: 9510.886697 | AC187: 9574.933355 | AD187: 9817.011508 | AE187: 10071.11436 | AF187: 9993.687176
A188: LRKPCIGS | B188: 100419 | C188: 1 | D188: 2400 | E188: 60 | F188: 1 | G188: 1 | H188: KW | I188: 10023.7998 | J188: 9978.9561 | K188: 9880.437566 | L188: 9820.335111 | M188: 9844.234666 | N188: 9772.363545 | O188: 9596.938979 | P188: 9495.371732 | Q188: 9576.739945 | R188: 9674.391479 | S188: 9616.366324 | T188: 9627.851521 | U188: 9627.539616 | V188: 9667.500834 | W188: 9525.927187 | X188: 9638.731834 | Y188: 9582.114534 | Z188: 9482.281042 | AA188: 9329.919574 | AB188: 9298.925492 | AC188: 9284.318734 | AD188: 9551.220382 | AE188: 9596.691647 | AF188: 9575.584053
A189: LRKPCIGS | B189: 100519 | C189: 1 | D189: 2400 | E189: 60 | F189: 1 | G189: 1 | H189: KW | I189: 9511.66635 | J189: 9420.500755 | K189: 9279.701055 | L189: 9214.249587 | M189: 9246.626155 | N189: 9237.962395 | O189: 9252.529384 | P189: 9277.993305 | Q189: 9236.486595 | R189: 9281.084158 | S189: 9286.578829 | T189: 9188.594239 | U189: 9212.945545 | V189: 9216.101561 | W189: 9232.344174 | X189: 9273.067755 | Y189: 9288.998461 | Z189: 9246.948968 | AA189: 9236.401708 | AB189: 9230.111147 | AC189: 9248.7219 | AD189: 9262.902529 | AE189: 9277.095871 | AF189: 9190.201182
A190: LRKPCIGS | B190: 100619 | C190: 1 | D190: 2400 | E190: 60 | F190: 1 | G190: 1 | H190: KW | I190: 9156.506526 | J190: 9058.675374 | K190: 9031.373663 | L190: 9042.239526 | M190: 9100.027003 | N190: 9081.357939 | O190: 9074.664329 | P190: 9065.434553 | Q190: 9026.369358 | R190: 9031.135826 | S190: 9072.866642 | T190: 9079.030026 | U190: 9095.900789 | V190: 9087.890805 | W190: 9059.118439 | X190: 9077.345579 | Y190: 9101.963687 | Z190: 9079.033187 | AA190: 9076.965134 | AB190: 9092.986721 | AC190: 9193.188071 | AD190: 9279.122508 | AE190: 9321.685418 | AF190: 9280.726105
A191: LRKPCIGS | B191: 100719 | C191: 1 | D191: 2400 | E191: 60 | F191: 1 | G191: 1 | H191: KW | I191: 9276.583482 | J191: 9296.921187 | K191: 9302.789866 | L191: 9299.938087 | M191: 9386.733105 | N191: 9389.001839 | O191: 9225.600037 | P191: 9435.543858 | Q191: 9617.058526 | R191: 9667.527968 | S191: 9657.971545 | T191: 9627.779484 | U191: 9581.254489 | V191: 9638.230821 | W191: 9610.900634 | X191: 9600.467071 | Y191: 9570.638432 | Z191: 9652.053274 | AA191: 9491.728311 | AB191: 9513.831026 | AC191: 9492.967613 | AD191: 9832.109313 | AE191: 9927.565171 | AF191: 9813.539539
A192: LRKPCIGS | B192: 100819 | C192: 1 | D192: 2400 | E192: 60 | F192: 1 | G192: 1 | H192: KW | I192: 9836.465711 | J192: 9824.764542 | K192: 9674.018771 | L192: 9605.252434 | M192: 9690.042218 | N192: 9511.312463 | O192: 9547.972474 | P192: 9519.798618 | Q192: 9615.507266 | R192: 9661.746574 | S192: 9732.256784 | T192: 9629.785526 | U192: 9673.888903 | V192: 9757.276176 | W192: 9760.887287 | X192: 9685.885058 | Y192: 9653.915142 | Z192: 9650.8839 | AA192: 9553.780758 | AB192: 9560.562329 | AC192: 9534.685987 | AD192: 9723.100553 | AE192: 9748.202008 | AF192: 9811.907161
A193: LRKPCIGS | B193: 100919 | C193: 1 | D193: 2400 | E193: 60 | F193: 1 | G193: 1 | H193: KW | I193: 9920.350916 | J193: 9772.495679 | K193: 9718.993539 | L193: 9634.014682 | M193: 9624.685384 | N193: 9632.749926 | O193: 9583.230676 | P193: 9539.713829 | Q193: 9605.503124 | R193: 9561.434274 | S193: 9651.862437 | T193: 9619.105666 | U193: 9629.281013 | V193: 9629.284603 | W193: 9718.882947 | X193: 9592.558376 | Y193: 9627.860208 | Z193: 9722.667574 | AA193: 9573.509547 | AB193: 9530.030024 | AC193: 9490.209084 | AD193: 9235.879089 | AE193: 9313.554589 | AF193: 9205.331984
A194: LRKPCIGS | B194: 101019 | C194: 1 | D194: 2400 | E194: 60 | F194: 1 | G194: 1 | H194: KW | I194: 9133.847274 | J194: 8295.434887 | K194: 7817.885282 | L194: 7776.526497 | M194: 7727.855261 | N194: 7824.88795 | O194: 7771.544213 | P194: 7716.412311 | Q194: 7729.559371 | R194: 7669.654211 | S194: 7719.316816 | T194: 7623.319566 | U194: 7488.650403 | V194: 7901.053161 | W194: 7994.918666 | X194: 7932.128766 | Y194: 8067.172024 | Z194: 8244.3662 | AA194: 8339.76085 | AB194: 8378.0005 | AC194: 8423.460684 | AD194: 8557.541526 | AE194: 8891.668155 | AF194: 8990.878039
A195: LRKPCIGS | B195: 101119 | C195: 1 | D195: 2400 | E195: 60 | F195: 1 | G195: 1 | H195: KW | I195: 8981.414129 | J195: 8981.38015 | K195: 8845.892942 | L195: 8764.949721 | M195: 8757.855824 | N195: 8786.615674 | O195: 8782.082953 | P195: 8843.381834 | Q195: 8922.04295 | R195: 8987.015997 | S195: 9261.635632 | T195: 9301.417008 | U195: 9162.526726 | V195: 9272.471279 | W195: 9319.365474 | X195: 9425.580658 | Y195: 9363.870255 | Z195: 9349.598134 | AA195: 9381.852239 | AB195: 9336.253568 | AC195: 9343.006776 | AD195: 9412.209776 | AE195: 9381.153824 | AF195: 9371.042539
A196: LRKPCIGS | B196: 101219 | C196: 1 | D196: 2400 | E196: 60 | F196: 1 | G196: 1 | H196: KW | I196: 9368.344755 | J196: 9326.013292 | K196: 9258.703442 | L196: 9263.591308 | M196: 9230.201555 | N196: 9225.131897 | O196: 9236.280463 | P196: 9226.986758 | Q196: 9198.692482 | R196: 9173.292421 | S196: 9180.932321 | T196: 9160.870766 | U196: 9067.226445 | V196: 9064.891724 | W196: 9168.168613 | X196: 9142.755332 | Y196: 9158.092932 | Z196: 9188.977653 | AA196: 9172.329732 | AB196: 9228.312713 | AC196: 9196.316482 | AD196: 9189.46965 | AE196: 9192.704734 | AF196: 9232.935966
A197: LRKPCIGS | B197: 101319 | C197: 1 | D197: 2400 | E197: 60 | F197: 1 | G197: 1 | H197: KW | I197: 9238.455997 | J197: 9194.195779 | K197: 9217.286271 | L197: 9207.930768 | M197: 9218.27085 | N197: 9249.473505 | O197: 9170.4813 | P197: 9158.963326 | Q197: 9117.121166 | R197: 9098.580405 | S197: 9132.065113 | T197: 9130.325184 | U197: 9039.083232 | V197: 9054.030121 | W197: 9084.366171 | X197: 9096.247116 | Y197: 9088.788155 | Z197: 9105.944503 | AA197: 9119.717453 | AB197: 9118.767189 | AC197: 9098.760808 | AD197: 9145.052137 | AE197: 9145.575887 | AF197: 9200.31735
A198: LRKPCIGS | B198: 101419 | C198: 1 | D198: 2400 | E198: 60 | F198: 1 | G198: 1 | H198: KW | I198: 9215.961445 | J198: 9210.919739 | K198: 9202.918034 | L198: 9195.114105 | M198: 9218.605363 | N198: 9299.302658 | O198: 9225.482816 | P198: 9178.464558 | Q198: 9307.124455 | R198: 9209.440797 | S198: 9180.086787 | T198: 9279.647142 | U198: 9539.761092 | V198: 9594.739826 | W198: 9628.045682 | X198: 9846.286629 | Y198: 9936.619545 | Z198: 9890.8144 | AA198: 9942.255303 | AB198: 9932.861555 | AC198: 10037.87422 | AD198: 10283.03738 | AE198: 10558.21978 | AF198: 10371.83669
A199: LRKPCIGS | B199: 101519 | C199: 1 | D199: 2400 | E199: 60 | F199: 1 | G199: 1 | H199: KW | I199: 10313.42762 | J199: 10208.3452 | K199: 10192.34426 | L199: 10154.84459 | M199: 10257.07309 | N199: 10299.31635 | O199: 10238.55026 | P199: 10114.14165 | Q199: 10030.23149 | R199: 9977.866863 | S199: 9905.054989 | T199: 9926.498987 | U199: 10078.85799 | V199: 10201.99138 | W199: 10275.47178 | X199: 10290.42119 | Y199: 10266.54319 | Z199: 10358.38126 | AA199: 10219.52191 | AB199: 10128.79801 | AC199: 10079.88147 | AD199: 10237.30994 | AE199: 10298.60058 | AF199: 10327.78558
A200: LRKPCIGS | B200: 101619 | C200: 1 | D200: 2400 | E200: 60 | F200: 1 | G200: 1 | H200: KW | I200: 10376.50722 | J200: 10345.46296 | K200: 10163.26857 | L200: 10068.81438 | M200: 10060.31125 | N200: 10158.17111 | O200: 10201.59115 | P200: 10167.66641 | Q200: 10271.70185 | R200: 10293.47674 | S200: 10251.48118 | T200: 10072.96803 | U200: 10092.27849 | V200: 10190.07602 | W200: 10102.96001 | X200: 10088.18089 | Y200: 9956.004445 | Z200: 9881.357858 | AA200: 9880.718434 | AB200: 9953.873937 | AC200: 10005.74364 | AD200: 10322.89298 | AE200: 10452.00497 | AF200: 10476.61956
... 167 more rows

Sheet Expanded kW
A1: Month | B1: Holiday? | C1: On or Off Peak | D1: Date/Time | E1: Class | F1: Demand | G1: Monthly Weight | H1: Expanded | J1: Load shape in local time.
A2: =MONTH(D2) -> 4 | B2: =IF(ISNA(VLOOKUP(DATE(YEAR(D2),MONTH(D2),DAY(D2)),Holidays,1,FALSE)),FALSE,TRUE) -> FALSE | C2: =IF(OR(HOUR(D2)<PkStart,HOUR(D2)>OPkStart-1,WEEKDAY(D2,2)>5,B2)=TRUE,"OFF","ON") -> OFF | D2: =TYBegin -> 2019-04-01 | E2: ='LR 8760 Loads'!A2 -> LRKPCIGS | F2: 9636.102539 | G2: =IF(SUMIF($A$2:$A$8785,A2,$F$2:$F$8785)=0,0,F2/SUMIF($A$2:$A$8785,A2,$F$2:$F$8785)) -> 0.001386043131 | H2: =G2*SUMIF('Manual Inputs'!$B$11:$B$22,'Expanded kW'!A2,'Manual Inputs'!$C$11:$C$22) -> 163428.5495
A3: 4 | B3: FALSE | C3: OFF | D3: =+D2+1/24 -> 2019-04-01T01:00:00 | E3: =+E2 -> LRKPCIGS | F3: 9728.469727 | G3: 0.001399329095 | H3: =G3*SUMIF('Manual Inputs'!$B$11:$B$22,'Expanded kW'!A3,'Manual Inputs'!$C$11:$C$22) -> 164995.0994
A4: 4 | B4: FALSE | C4: OFF | D4: =+D3+1/24 -> 2019-04-01T02:00:00 | E4: =+E3 -> LRKPCIGS | F4: 9743.063477 | G4: 0.001401428239 | H4: =G4*SUMIF('Manual Inputs'!$B$11:$B$22,'Expanded kW'!A4,'Manual Inputs'!$C$11:$C$22) -> 165242.6098
A5: 4 | B5: FALSE | C5: OFF | D5: 2019-04-01T03:00:00 | E5: LRKPCIGS | F5: 9646.176758 | G5: 0.001387492192 | H5: =G5*SUMIF('Manual Inputs'!$B$11:$B$22,'Expanded kW'!A5,'Manual Inputs'!$C$11:$C$22) -> 163599.4085
A6: 4 | B6: FALSE | C6: OFF | D6: 2019-04-01T04:00:00 | E6: LRKPCIGS | F6: 9768.59375 | G6: 0.001405100477 | H6: =G6*SUMIF('Manual Inputs'!$B$11:$B$22,'Expanded kW'!A6,'Manual Inputs'!$C$11:$C$22) -> 165675.6039
A7: 4 | B7: FALSE | C7: OFF | D7: 2019-04-01T05:00:00 | E7: LRKPCIGS | F7: 9704.146484 | G7: 0.001395830475 | H7: =G7*SUMIF('Manual Inputs'!$B$11:$B$22,'Expanded kW'!A7,'Manual Inputs'!$C$11:$C$22) -> 164582.5766
A8: 4 | B8: FALSE | C8: OFF | D8: 2019-04-01T06:00:00 | E8: LRKPCIGS | F8: 9627.358398 | G8: 0.001384785387 | H8: =G8*SUMIF('Manual Inputs'!$B$11:$B$22,'Expanded kW'!A8,'Manual Inputs'!$C$11:$C$22) -> 163280.2487
A9: 4 | B9: FALSE | C9: ON | D9: 2019-04-01T07:00:00 | E9: LRKPCIGS | F9: 9596.735352 | G9: 0.001380380612 | H9: =G9*SUMIF('Manual Inputs'!$B$11:$B$22,'Expanded kW'!A9,'Manual Inputs'!$C$11:$C$22) -> 162760.881
A10: 4 | B10: FALSE | C10: ON | D10: 2019-04-01T08:00:00 | E10: LRKPCIGS | F10: 9638.893555 | G10: 0.001386444587 | H10: =G10*SUMIF('Manual Inputs'!$B$11:$B$22,'Expanded kW'!A10,'Manual Inputs'!$C$11:$C$22) -> 163475.8852
A11: 4 | B11: FALSE | C11: ON | D11: 2019-04-01T09:00:00 | E11: LRKPCIGS | F11: 9614.483398 | G11: 0.001382933465 | H11: =G11*SUMIF('Manual Inputs'!$B$11:$B$22,'Expanded kW'!A11,'Manual Inputs'!$C$11:$C$22) -> 163061.8883
A12: 4 | B12: FALSE | C12: ON | D12: 2019-04-01T10:00:00 | E12: LRKPCIGS | F12: 9587.461914 | G12: 0.001379046734 | H12: =G12*SUMIF('Manual Inputs'!$B$11:$B$22,'Expanded kW'!A12,'Manual Inputs'!$C$11:$C$22) -> 162603.6033
A13: 4 | B13: FALSE | C13: ON | D13: 2019-04-01T11:00:00 | E13: LRKPCIGS | F13: 9536.141602 | G13: 0.001371664894 | H13: =G13*SUMIF('Manual Inputs'!$B$11:$B$22,'Expanded kW'!A13,'Manual Inputs'!$C$11:$C$22) -> 161733.2094
A14: 4 | B14: FALSE | C14: ON | D14: 2019-04-01T12:00:00 | E14: LRKPCIGS | F14: 9712.848633 | G14: 0.001397082179 | H14: =G14*SUMIF('Manual Inputs'!$B$11:$B$22,'Expanded kW'!A14,'Manual Inputs'!$C$11:$C$22) -> 164730.1653
A15: 4 | B15: FALSE | C15: ON | D15: 2019-04-01T13:00:00 | E15: LRKPCIGS | F15: 9777.693359 | G15: 0.001406409351 | H15: =G15*SUMIF('Manual Inputs'!$B$11:$B$22,'Expanded kW'!A15,'Manual Inputs'!$C$11:$C$22) -> 165829.9335
A16: 4 | B16: FALSE | C16: ON | D16: 2019-04-01T14:00:00 | E16: LRKPCIGS | F16: 9692.266602 | G16: 0.001394121689 | H16: =G16*SUMIF('Manual Inputs'!$B$11:$B$22,'Expanded kW'!A16,'Manual Inputs'!$C$11:$C$22) -> 164381.0935
A17: 4 | B17: FALSE | C17: ON | D17: 2019-04-01T15:00:00 | E17: LRKPCIGS | F17: 9594.185547 | G17: 0.001380013851 | H17: =G17*SUMIF('Manual Inputs'!$B$11:$B$22,'Expanded kW'!A17,'Manual Inputs'!$C$11:$C$22) -> 162717.6363
A18: 4 | B18: FALSE | C18: ON | D18: 2019-04-01T16:00:00 | E18: LRKPCIGS | F18: 9576.890625 | G18: 0.001377526175 | H18: =G18*SUMIF('Manual Inputs'!$B$11:$B$22,'Expanded kW'!A18,'Manual Inputs'!$C$11:$C$22) -> 162424.3139
A19: 4 | B19: FALSE | C19: ON | D19: 2019-04-01T17:00:00 | E19: LRKPCIGS | F19: 9562.026367 | G19: 0.001375388121 | H19: =G19*SUMIF('Manual Inputs'!$B$11:$B$22,'Expanded kW'!A19,'Manual Inputs'!$C$11:$C$22) -> 162172.2157
A20: 4 | B20: FALSE | C20: ON | D20: 2019-04-01T18:00:00 | E20: LRKPCIGS | F20: 9597.009766 | G20: 0.001380420083 | H20: =G20*SUMIF('Manual Inputs'!$B$11:$B$22,'Expanded kW'!A20,'Manual Inputs'!$C$11:$C$22) -> 162765.5351
A21: 4 | B21: FALSE | C21: ON | D21: 2019-04-01T19:00:00 | E21: LRKPCIGS | F21: 9785.306641 | G21: 0.001407504435 | H21: =G21*SUMIF('Manual Inputs'!$B$11:$B$22,'Expanded kW'!A21,'Manual Inputs'!$C$11:$C$22) -> 165959.055
A22: 4 | B22: FALSE | C22: ON | D22: 2019-04-01T20:00:00 | E22: LRKPCIGS | F22: 9862.130859 | G22: 0.00141855472 | H22: =G22*SUMIF('Manual Inputs'!$B$11:$B$22,'Expanded kW'!A22,'Manual Inputs'!$C$11:$C$22) -> 167261.9957
A23: 4 | B23: FALSE | C23: OFF | D23: 2019-04-01T21:00:00 | E23: LRKPCIGS | F23: 10004.96973 | G23: 0.001439100457 | H23: =G23*SUMIF('Manual Inputs'!$B$11:$B$22,'Expanded kW'!A23,'Manual Inputs'!$C$11:$C$22) -> 169684.5466
A24: 4 | B24: FALSE | C24: OFF | D24: 2019-04-01T22:00:00 | E24: LRKPCIGS | F24: 10003.77051 | G24: 0.001438927963 | H24: =G24*SUMIF('Manual Inputs'!$B$11:$B$22,'Expanded kW'!A24,'Manual Inputs'!$C$11:$C$22) -> 169664.2078
A25: 4 | B25: FALSE | C25: OFF | D25: 2019-04-01T23:00:00 | E25: LRKPCIGS | F25: 9941.785156 | G25: 0.001430012079 | H25: =G25*SUMIF('Manual Inputs'!$B$11:$B$22,'Expanded kW'!A25,'Manual Inputs'!$C$11:$C$22) -> 168612.9347
A26: 4 | B26: FALSE | C26: OFF | D26: 2019-04-02 | E26: LRKPCIGS | F26: 9910.961914 | G26: 0.001425578508 | H26: =G26*SUMIF('Manual Inputs'!$B$11:$B$22,'Expanded kW'!A26,'Manual Inputs'!$C$11:$C$22) -> 168090.1717
A27: 4 | B27: FALSE | C27: OFF | D27: 2019-04-02T01:00:00 | E27: LRKPCIGS | F27: 9867.899414 | G27: 0.00141938446 | H27: =G27*SUMIF('Manual Inputs'!$B$11:$B$22,'Expanded kW'!A27,'Manual Inputs'!$C$11:$C$22) -> 167359.8306
A28: 4 | B28: FALSE | C28: OFF | D28: 2019-04-02T02:00:00 | E28: LRKPCIGS | F28: 9736.373047 | G28: 0.001400465897 | H28: =G28*SUMIF('Manual Inputs'!$B$11:$B$22,'Expanded kW'!A28,'Manual Inputs'!$C$11:$C$22) -> 165129.1399
A29: 4 | B29: FALSE | C29: OFF | D29: 2019-04-02T03:00:00 | E29: LRKPCIGS | F29: 9708.012695 | G29: 0.001396386585 | H29: =G29*SUMIF('Manual Inputs'!$B$11:$B$22,'Expanded kW'!A29,'Manual Inputs'!$C$11:$C$22) -> 164648.1476
A30: 4 | B30: FALSE | C30: OFF | D30: 2019-04-02T04:00:00 | E30: LRKPCIGS | F30: 9735.216797 | G30: 0.001400299584 | H30: =G30*SUMIF('Manual Inputs'!$B$11:$B$22,'Expanded kW'!A30,'Manual Inputs'!$C$11:$C$22) -> 165109.5299
A31: 4 | B31: FALSE | C31: OFF | D31: 2019-04-02T05:00:00 | E31: LRKPCIGS | F31: 9897.527344 | G31: 0.001423646099 | H31: =G31*SUMIF('Manual Inputs'!$B$11:$B$22,'Expanded kW'!A31,'Manual Inputs'!$C$11:$C$22) -> 167862.321
A32: 4 | B32: FALSE | C32: OFF | D32: 2019-04-02T06:00:00 | E32: LRKPCIGS | F32: 9756.688477 | G32: 0.001403388039 | H32: =G32*SUMIF('Manual Inputs'!$B$11:$B$22,'Expanded kW'!A32,'Manual Inputs'!$C$11:$C$22) -> 165473.6902
A33: 4 | B33: FALSE | C33: ON | D33: 2019-04-02T07:00:00 | E33: LRKPCIGS | F33: 9873.717773 | G33: 0.001420221365 | H33: =G33*SUMIF('Manual Inputs'!$B$11:$B$22,'Expanded kW'!A33,'Manual Inputs'!$C$11:$C$22) -> 167458.5101
A34: 4 | B34: FALSE | C34: ON | D34: 2019-04-02T08:00:00 | E34: LRKPCIGS | F34: 10068.95117 | G34: 0.001448303456 | H34: =G34*SUMIF('Manual Inputs'!$B$11:$B$22,'Expanded kW'!A34,'Manual Inputs'!$C$11:$C$22) -> 170769.6736
A35: 4 | B35: FALSE | C35: ON | D35: 2019-04-02T09:00:00 | E35: LRKPCIGS | F35: 10050.53613 | G35: 0.001445654663 | H35: =G35*SUMIF('Manual Inputs'!$B$11:$B$22,'Expanded kW'!A35,'Manual Inputs'!$C$11:$C$22) -> 170457.3541
A36: 4 | B36: FALSE | C36: ON | D36: 2019-04-02T10:00:00 | E36: LRKPCIGS | F36: 10097.93066 | G36: 0.001452471825 | H36: =G36*SUMIF('Manual Inputs'!$B$11:$B$22,'Expanded kW'!A36,'Manual Inputs'!$C$11:$C$22) -> 171261.1665
A37: 4 | B37: FALSE | C37: ON | D37: 2019-04-02T11:00:00 | E37: LRKPCIGS | F37: 10074.28027 | G37: 0.001449069986 | H37: =G37*SUMIF('Manual Inputs'!$B$11:$B$22,'Expanded kW'!A37,'Manual Inputs'!$C$11:$C$22) -> 170860.0553
A38: 4 | B38: FALSE | C38: ON | D38: 2019-04-02T12:00:00 | E38: LRKPCIGS | F38: 10029.1709 | G38: 0.001442581519 | H38: =G38*SUMIF('Manual Inputs'!$B$11:$B$22,'Expanded kW'!A38,'Manual Inputs'!$C$11:$C$22) -> 170094.9991
A39: 4 | B39: FALSE | C39: ON | D39: 2019-04-02T13:00:00 | E39: LRKPCIGS | F39: 10062.71875 | G39: 0.001447406994 | H39: =G39*SUMIF('Manual Inputs'!$B$11:$B$22,'Expanded kW'!A39,'Manual Inputs'!$C$11:$C$22) -> 170663.9716
A40: 4 | B40: FALSE | C40: ON | D40: 2019-04-02T14:00:00 | E40: LRKPCIGS | F40: 9917.485352 | G40: 0.00142651683 | H40: =G40*SUMIF('Manual Inputs'!$B$11:$B$22,'Expanded kW'!A40,'Manual Inputs'!$C$11:$C$22) -> 168200.8093
A41: 4 | B41: FALSE | C41: ON | D41: 2019-04-02T15:00:00 | E41: LRKPCIGS | F41: 9927.886719 | G41: 0.001428012948 | H41: =G41*SUMIF('Manual Inputs'!$B$11:$B$22,'Expanded kW'!A41,'Manual Inputs'!$C$11:$C$22) -> 168377.2168
A42: 4 | B42: FALSE | C42: ON | D42: 2019-04-02T16:00:00 | E42: LRKPCIGS | F42: 9977.852539 | G42: 0.00143519996 | H42: =G42*SUMIF('Manual Inputs'!$B$11:$B$22,'Expanded kW'!A42,'Manual Inputs'!$C$11:$C$22) -> 169224.6384
A43: 4 | B43: FALSE | C43: ON | D43: 2019-04-02T17:00:00 | E43: LRKPCIGS | F43: 9936.898438 | G43: 0.001429309181 | H43: =G43*SUMIF('Manual Inputs'!$B$11:$B$22,'Expanded kW'!A43,'Manual Inputs'!$C$11:$C$22) -> 168530.0558
A44: 4 | B44: FALSE | C44: ON | D44: 2019-04-02T18:00:00 | E44: LRKPCIGS | F44: 9788.955078 | G44: 0.001408029221 | H44: =G44*SUMIF('Manual Inputs'!$B$11:$B$22,'Expanded kW'!A44,'Manual Inputs'!$C$11:$C$22) -> 166020.9326
A45: 4 | B45: FALSE | C45: ON | D45: 2019-04-02T19:00:00 | E45: LRKPCIGS | F45: 9809.246094 | G45: 0.001410947851 | H45: =G45*SUMIF('Manual Inputs'!$B$11:$B$22,'Expanded kW'!A45,'Manual Inputs'!$C$11:$C$22) -> 166365.0687
A46: 4 | B46: FALSE | C46: ON | D46: 2019-04-02T20:00:00 | E46: LRKPCIGS | F46: 9789.62207 | G46: 0.00140812516 | H46: =G46*SUMIF('Manual Inputs'!$B$11:$B$22,'Expanded kW'!A46,'Manual Inputs'!$C$11:$C$22) -> 166032.2448
A47: 4 | B47: FALSE | C47: OFF | D47: 2019-04-02T21:00:00 | E47: LRKPCIGS | F47: 10220.9873 | G47: 0.001470172115 | H47: =G47*SUMIF('Manual Inputs'!$B$11:$B$22,'Expanded kW'!A47,'Manual Inputs'!$C$11:$C$22) -> 173348.2104
A48: 4 | B48: FALSE | C48: OFF | D48: 2019-04-02T22:00:00 | E48: LRKPCIGS | F48: 10631.06641 | G48: 0.001529157303 | H48: =G48*SUMIF('Manual Inputs'!$B$11:$B$22,'Expanded kW'!A48,'Manual Inputs'!$C$11:$C$22) -> 180303.1626
A49: 4 | B49: FALSE | C49: OFF | D49: 2019-04-02T23:00:00 | E49: LRKPCIGS | F49: 10597.16992 | G49: 0.001524281681 | H49: =G49*SUMIF('Manual Inputs'!$B$11:$B$22,'Expanded kW'!A49,'Manual Inputs'!$C$11:$C$22) -> 179728.2773
A50: 4 | B50: FALSE | C50: OFF | D50: 2019-04-03 | E50: LRKPCIGS | F50: 10570.29004 | G50: 0.001520415318 | H50: =G50*SUMIF('Manual Inputs'!$B$11:$B$22,'Expanded kW'!A50,'Manual Inputs'!$C$11:$C$22) -> 179272.3938
A51: 4 | B51: FALSE | C51: OFF | D51: 2019-04-03T01:00:00 | E51: LRKPCIGS | F51: 10520.55176 | G51: 0.001513261035 | H51: =G51*SUMIF('Manual Inputs'!$B$11:$B$22,'Expanded kW'!A51,'Manual Inputs'!$C$11:$C$22) -> 178428.8313
A52: 4 | B52: FALSE | C52: OFF | D52: 2019-04-03T02:00:00 | E52: LRKPCIGS | F52: 10269.16895 | G52: 0.001477102493 | H52: =G52*SUMIF('Manual Inputs'!$B$11:$B$22,'Expanded kW'!A52,'Manual Inputs'!$C$11:$C$22) -> 174165.3722
A53: 4 | B53: FALSE | C53: OFF | D53: 2019-04-03T03:00:00 | E53: LRKPCIGS | F53: 10146.19629 | G53: 0.001459414283 | H53: =G53*SUMIF('Manual Inputs'!$B$11:$B$22,'Expanded kW'!A53,'Manual Inputs'!$C$11:$C$22) -> 172079.7528
A54: 4 | B54: FALSE | C54: OFF | D54: 2019-04-03T04:00:00 | E54: LRKPCIGS | F54: 10129.0625 | G54: 0.001456949783 | H54: =G54*SUMIF('Manual Inputs'!$B$11:$B$22,'Expanded kW'!A54,'Manual Inputs'!$C$11:$C$22) -> 171789.1633
A55: 4 | B55: FALSE | C55: OFF | D55: 2019-04-03T05:00:00 | E55: LRKPCIGS | F55: 10166.2998 | G55: 0.001462305943 | H55: =G55*SUMIF('Manual Inputs'!$B$11:$B$22,'Expanded kW'!A55,'Manual Inputs'!$C$11:$C$22) -> 172420.7089
A56: 4 | B56: FALSE | C56: OFF | D56: 2019-04-03T06:00:00 | E56: LRKPCIGS | F56: 10206.0625 | G56: 0.001468025352 | H56: =G56*SUMIF('Manual Inputs'!$B$11:$B$22,'Expanded kW'!A56,'Manual Inputs'!$C$11:$C$22) -> 173095.0853
A57: 4 | B57: FALSE | C57: ON | D57: 2019-04-03T07:00:00 | E57: LRKPCIGS | F57: 10201.34473 | G57: 0.001467346755 | H57: =G57*SUMIF('Manual Inputs'!$B$11:$B$22,'Expanded kW'!A57,'Manual Inputs'!$C$11:$C$22) -> 173015.0717
A58: 4 | B58: FALSE | C58: ON | D58: 2019-04-03T08:00:00 | E58: LRKPCIGS | F58: 10126.4834 | G58: 0.001456578809 | H58: =G58*SUMIF('Manual Inputs'!$B$11:$B$22,'Expanded kW'!A58,'Manual Inputs'!$C$11:$C$22) -> 171745.4217
A59: 4 | B59: FALSE | C59: ON | D59: 2019-04-03T09:00:00 | E59: LRKPCIGS | F59: 9942.257812 | G59: 0.001430080066 | H59: =G59*SUMIF('Manual Inputs'!$B$11:$B$22,'Expanded kW'!A59,'Manual Inputs'!$C$11:$C$22) -> 168620.9509
A60: 4 | B60: FALSE | C60: ON | D60: 2019-04-03T10:00:00 | E60: LRKPCIGS | F60: 9741.617188 | G60: 0.001401220207 | H60: =G60*SUMIF('Manual Inputs'!$B$11:$B$22,'Expanded kW'!A60,'Manual Inputs'!$C$11:$C$22) -> 165218.0807
A61: 4 | B61: FALSE | C61: ON | D61: 2019-04-03T11:00:00 | E61: LRKPCIGS | F61: 9741.46582 | G61: 0.001401198434 | H61: =G61*SUMIF('Manual Inputs'!$B$11:$B$22,'Expanded kW'!A61,'Manual Inputs'!$C$11:$C$22) -> 165215.5135
A62: 4 | B62: FALSE | C62: ON | D62: 2019-04-03T12:00:00 | E62: LRKPCIGS | F62: 9788.37207 | G62: 0.001407945362 | H62: =G62*SUMIF('Manual Inputs'!$B$11:$B$22,'Expanded kW'!A62,'Manual Inputs'!$C$11:$C$22) -> 166011.0447
A63: 4 | B63: FALSE | C63: ON | D63: 2019-04-03T13:00:00 | E63: LRKPCIGS | F63: 9738.655273 | G63: 0.001400794169 | H63: =G63*SUMIF('Manual Inputs'!$B$11:$B$22,'Expanded kW'!A63,'Manual Inputs'!$C$11:$C$22) -> 165167.8466
A64: 4 | B64: FALSE | C64: ON | D64: 2019-04-03T14:00:00 | E64: LRKPCIGS | F64: 9623.319336 | G64: 0.001384204414 | H64: =G64*SUMIF('Manual Inputs'!$B$11:$B$22,'Expanded kW'!A64,'Manual Inputs'!$C$11:$C$22) -> 163211.7461
A65: 4 | B65: FALSE | C65: ON | D65: 2019-04-03T15:00:00 | E65: LRKPCIGS | F65: 9645.914062 | G65: 0.001387454407 | H65: =G65*SUMIF('Manual Inputs'!$B$11:$B$22,'Expanded kW'!A65,'Manual Inputs'!$C$11:$C$22) -> 163594.9532
A66: =MONTH(D66) -> 4 | B66: =IF(ISNA(VLOOKUP(DATE(YEAR(D66),MONTH(D66),DAY(D66)),Holidays,1,FALSE)),FALSE,TRUE) -> FALSE | C66: =IF(OR(HOUR(D66)<PkStart,HOUR(D66)>OPkStart-1,WEEKDAY(D66,2)>5,B66)=TRUE,"OFF","ON") -> ON | D66: 2019-04-03T16:00:00 | E66: LRKPCIGS | F66: 9613.741211 | G66: =IF(SUMIF($A$2:$A$8785,A66,$F$2:$F$8785)=0,0,F66/SUMIF($A$2:$A$8785,A66,$F$2:$F$8785)) -> 0.00138282671 | H66: =G66*SUMIF('Manual Inputs'!$B$11:$B$22,'Expanded kW'!A66,'Manual Inputs'!$C$11:$C$22) -> 163049.3008
A67: 4 | B67: FALSE | C67: ON | D67: 2019-04-03T17:00:00 | E67: LRKPCIGS | F67: 9681.739258 | G67: 0.001392607451 | H67: =G67*SUMIF('Manual Inputs'!$B$11:$B$22,'Expanded kW'!A67,'Manual Inputs'!$C$11:$C$22) -> 164202.5495
A68: 4 | B68: FALSE | C68: ON | D68: =+D67+1/24 -> 2019-04-03T18:00:00 | E68: =+E67 -> LRKPCIGS | F68: 9647.936523 | G68: 0.001387745315 | H68: =G68*SUMIF('Manual Inputs'!$B$11:$B$22,'Expanded kW'!A68,'Manual Inputs'!$C$11:$C$22) -> 163629.2542
A69: 4 | B69: FALSE | C69: ON | D69: 2019-04-03T19:00:00 | E69: LRKPCIGS | F69: 9553.932617 | G69: 0.001374223928 | H69: =G69*SUMIF('Manual Inputs'!$B$11:$B$22,'Expanded kW'!A69,'Manual Inputs'!$C$11:$C$22) -> 162034.9455
A70: 4 | B70: FALSE | C70: ON | D70: 2019-04-03T20:00:00 | E70: LRKPCIGS | F70: 9554.727539 | G70: 0.001374338268 | H70: =G70*SUMIF('Manual Inputs'!$B$11:$B$22,'Expanded kW'!A70,'Manual Inputs'!$C$11:$C$22) -> 162048.4274
A71: 4 | B71: FALSE | C71: OFF | D71: 2019-04-03T21:00:00 | E71: LRKPCIGS | F71: 9789.792969 | G71: 0.001408149742 | H71: =G71*SUMIF('Manual Inputs'!$B$11:$B$22,'Expanded kW'!A71,'Manual Inputs'!$C$11:$C$22) -> 166035.1432
A72: 4 | B72: FALSE | C72: OFF | D72: 2019-04-03T22:00:00 | E72: LRKPCIGS | F72: 9854.233398 | G72: 0.00141741876 | H72: =G72*SUMIF('Manual Inputs'!$B$11:$B$22,'Expanded kW'!A72,'Manual Inputs'!$C$11:$C$22) -> 167128.0546
A73: 4 | B73: FALSE | C73: OFF | D73: 2019-04-03T23:00:00 | E73: LRKPCIGS | F73: 10051.87598 | G73: 0.001445847385 | H73: =G73*SUMIF('Manual Inputs'!$B$11:$B$22,'Expanded kW'!A73,'Manual Inputs'!$C$11:$C$22) -> 170480.0778
A74: 4 | B74: FALSE | C74: OFF | D74: 2019-04-04 | E74: LRKPCIGS | F74: 10120.62695 | G74: 0.001455736426 | H74: =G74*SUMIF('Manual Inputs'!$B$11:$B$22,'Expanded kW'!A74,'Manual Inputs'!$C$11:$C$22) -> 171646.0962
A75: 4 | B75: FALSE | C75: OFF | D75: 2019-04-04T01:00:00 | E75: LRKPCIGS | F75: 10005.45508 | G75: 0.001439170269 | H75: =G75*SUMIF('Manual Inputs'!$B$11:$B$22,'Expanded kW'!A75,'Manual Inputs'!$C$11:$C$22) -> 169692.7782
A76: 4 | B76: FALSE | C76: OFF | D76: 2019-04-04T02:00:00 | E76: LRKPCIGS | F76: 10003.30566 | G76: 0.001438861101 | H76: =G76*SUMIF('Manual Inputs'!$B$11:$B$22,'Expanded kW'!A76,'Manual Inputs'!$C$11:$C$22) -> 169656.3241
A77: 4 | B77: FALSE | C77: OFF | D77: 2019-04-04T03:00:00 | E77: LRKPCIGS | F77: 9963.668945 | G77: 0.001433159812 | H77: =G77*SUMIF('Manual Inputs'!$B$11:$B$22,'Expanded kW'!A77,'Manual Inputs'!$C$11:$C$22) -> 168984.0843
A78: 4 | B78: FALSE | C78: OFF | D78: 2019-04-04T04:00:00 | E78: LRKPCIGS | F78: 9971.072266 | G78: 0.001434224695 | H78: =G78*SUMIF('Manual Inputs'!$B$11:$B$22,'Expanded kW'!A78,'Manual Inputs'!$C$11:$C$22) -> 169109.6448
A79: 4 | B79: FALSE | C79: OFF | D79: 2019-04-04T05:00:00 | E79: LRKPCIGS | F79: 9923.347656 | G79: 0.001427360056 | H79: =G79*SUMIF('Manual Inputs'!$B$11:$B$22,'Expanded kW'!A79,'Manual Inputs'!$C$11:$C$22) -> 168300.2342
A80: 4 | B80: FALSE | C80: OFF | D80: 2019-04-04T06:00:00 | E80: LRKPCIGS | F80: 9929.020508 | G80: 0.001428176031 | H80: =G80*SUMIF('Manual Inputs'!$B$11:$B$22,'Expanded kW'!A80,'Manual Inputs'!$C$11:$C$22) -> 168396.4459
A81: 4 | B81: FALSE | C81: ON | D81: 2019-04-04T07:00:00 | E81: LRKPCIGS | F81: 9881.696289 | G81: 0.001421368983 | H81: =G81*SUMIF('Manual Inputs'!$B$11:$B$22,'Expanded kW'!A81,'Manual Inputs'!$C$11:$C$22) -> 167593.8259
A82: 4 | B82: FALSE | C82: ON | D82: 2019-04-04T08:00:00 | E82: LRKPCIGS | F82: 9954.341797 | G82: 0.001431818208 | H82: =G82*SUMIF('Manual Inputs'!$B$11:$B$22,'Expanded kW'!A82,'Manual Inputs'!$C$11:$C$22) -> 168825.8956
A83: 4 | B83: FALSE | C83: ON | D83: 2019-04-04T09:00:00 | E83: LRKPCIGS | F83: 10057.23926 | G83: 0.001446618831 | H83: =G83*SUMIF('Manual Inputs'!$B$11:$B$22,'Expanded kW'!A83,'Manual Inputs'!$C$11:$C$22) -> 170571.0392
A84: 4 | B84: FALSE | C84: ON | D84: 2019-04-04T10:00:00 | E84: LRKPCIGS | F84: 9971.133789 | G84: 0.001434233544 | H84: =G84*SUMIF('Manual Inputs'!$B$11:$B$22,'Expanded kW'!A84,'Manual Inputs'!$C$11:$C$22) -> 169110.6882
A85: 4 | B85: FALSE | C85: ON | D85: 2019-04-04T11:00:00 | E85: LRKPCIGS | F85: 10059.1123 | G85: 0.001446888248 | H85: =G85*SUMIF('Manual Inputs'!$B$11:$B$22,'Expanded kW'!A85,'Manual Inputs'!$C$11:$C$22) -> 170602.8062
A86: 4 | B86: FALSE | C86: ON | D86: 2019-04-04T12:00:00 | E86: LRKPCIGS | F86: 9880.948242 | G86: 0.001421261385 | H86: =G86*SUMIF('Manual Inputs'!$B$11:$B$22,'Expanded kW'!A86,'Manual Inputs'!$C$11:$C$22) -> 167581.139
A87: 4 | B87: FALSE | C87: ON | D87: 2019-04-04T13:00:00 | E87: LRKPCIGS | F87: 9997.045898 | G87: 0.001437960705 | H87: =G87*SUMIF('Manual Inputs'!$B$11:$B$22,'Expanded kW'!A87,'Manual Inputs'!$C$11:$C$22) -> 169550.1583
A88: 4 | B88: FALSE | C88: ON | D88: 2019-04-04T14:00:00 | E88: LRKPCIGS | F88: 9927.527344 | G88: 0.001427961256 | H88: =G88*SUMIF('Manual Inputs'!$B$11:$B$22,'Expanded kW'!A88,'Manual Inputs'!$C$11:$C$22) -> 168371.1218
A89: 4 | B89: FALSE | C89: ON | D89: 2019-04-04T15:00:00 | E89: LRKPCIGS | F89: 9765.558594 | G89: 0.001404663904 | H89: =G89*SUMIF('Manual Inputs'!$B$11:$B$22,'Expanded kW'!A89,'Manual Inputs'!$C$11:$C$22) -> 165624.1276
A90: 4 | B90: FALSE | C90: ON | D90: 2019-04-04T16:00:00 | E90: LRKPCIGS | F90: 9800.241211 | G90: 0.001409652602 | H90: =G90*SUMIF('Manual Inputs'!$B$11:$B$22,'Expanded kW'!A90,'Manual Inputs'!$C$11:$C$22) -> 166212.3457
A91: 4 | B91: FALSE | C91: ON | D91: 2019-04-04T17:00:00 | E91: LRKPCIGS | F91: 9725.232422 | G91: 0.001398863445 | H91: =G91*SUMIF('Manual Inputs'!$B$11:$B$22,'Expanded kW'!A91,'Manual Inputs'!$C$11:$C$22) -> 164940.1947
A92: 4 | B92: FALSE | C92: ON | D92: 2019-04-04T18:00:00 | E92: LRKPCIGS | F92: 9677.327148 | G92: 0.00139197282 | H92: =G92*SUMIF('Manual Inputs'!$B$11:$B$22,'Expanded kW'!A92,'Manual Inputs'!$C$11:$C$22) -> 164127.72
A93: 4 | B93: FALSE | C93: ON | D93: 2019-04-04T19:00:00 | E93: LRKPCIGS | F93: 9671.808594 | G93: 0.001391179039 | H93: =G93*SUMIF('Manual Inputs'!$B$11:$B$22,'Expanded kW'!A93,'Manual Inputs'!$C$11:$C$22) -> 164034.1251
A94: 4 | B94: FALSE | C94: ON | D94: 2019-04-04T20:00:00 | E94: LRKPCIGS | F94: 9633.509766 | G94: 0.00138567019 | H94: =G94*SUMIF('Manual Inputs'!$B$11:$B$22,'Expanded kW'!A94,'Manual Inputs'!$C$11:$C$22) -> 163384.576
A95: 4 | B95: FALSE | C95: OFF | D95: 2019-04-04T21:00:00 | E95: LRKPCIGS | F95: 9725.880859 | G95: 0.001398956716 | H95: =G95*SUMIF('Manual Inputs'!$B$11:$B$22,'Expanded kW'!A95,'Manual Inputs'!$C$11:$C$22) -> 164951.1922
A96: 4 | B96: FALSE | C96: OFF | D96: 2019-04-04T22:00:00 | E96: LRKPCIGS | F96: 9738.333008 | G96: 0.001400747815 | H96: =G96*SUMIF('Manual Inputs'!$B$11:$B$22,'Expanded kW'!A96,'Manual Inputs'!$C$11:$C$22) -> 165162.3809
A97: 4 | B97: FALSE | C97: OFF | D97: 2019-04-04T23:00:00 | E97: LRKPCIGS | F97: 9655.196289 | G97: 0.001388789549 | H97: =G97*SUMIF('Manual Inputs'!$B$11:$B$22,'Expanded kW'!A97,'Manual Inputs'!$C$11:$C$22) -> 163752.38
A98: 4 | B98: FALSE | C98: OFF | D98: 2019-04-05 | E98: LRKPCIGS | F98: 9654.00293 | G98: 0.001388617898 | H98: =G98*SUMIF('Manual Inputs'!$B$11:$B$22,'Expanded kW'!A98,'Manual Inputs'!$C$11:$C$22) -> 163732.1406
A99: 4 | B99: FALSE | C99: OFF | D99: 2019-04-05T01:00:00 | E99: LRKPCIGS | F99: 9605.334961 | G99: 0.001381617567 | H99: =G99*SUMIF('Manual Inputs'!$B$11:$B$22,'Expanded kW'!A99,'Manual Inputs'!$C$11:$C$22) -> 162906.7306
A100: 4 | B100: FALSE | C100: OFF | D100: 2019-04-05T02:00:00 | E100: LRKPCIGS | F100: 9437.035156 | G100: 0.001357409565 | H100: =G100*SUMIF('Manual Inputs'!$B$11:$B$22,'Expanded kW'!A100,'Manual Inputs'!$C$11:$C$22) -> 160052.3615
A101: 4 | B101: FALSE | C101: OFF | D101: 2019-04-05T03:00:00 | E101: LRKPCIGS | F101: 9313.769531 | G101: 0.001339679215 | H101: =G101*SUMIF('Manual Inputs'!$B$11:$B$22,'Expanded kW'!A101,'Manual Inputs'!$C$11:$C$22) -> 157961.7733
A102: 4 | B102: FALSE | C102: OFF | D102: 2019-04-05T04:00:00 | E102: LRKPCIGS | F102: 9498.041016 | G102: 0.00136618456 | H102: =G102*SUMIF('Manual Inputs'!$B$11:$B$22,'Expanded kW'!A102,'Manual Inputs'!$C$11:$C$22) -> 161087.0225
A103: 4 | B103: FALSE | C103: OFF | D103: 2019-04-05T05:00:00 | E103: LRKPCIGS | F103: 9490.119141 | G103: 0.001365045089 | H103: =G103*SUMIF('Manual Inputs'!$B$11:$B$22,'Expanded kW'!A103,'Manual Inputs'!$C$11:$C$22) -> 160952.6673
A104: 4 | B104: FALSE | C104: OFF | D104: 2019-04-05T06:00:00 | E104: LRKPCIGS | F104: 9412.489258 | G104: 0.001353878918 | H104: =G104*SUMIF('Manual Inputs'!$B$11:$B$22,'Expanded kW'!A104,'Manual Inputs'!$C$11:$C$22) -> 159636.0625
A105: 4 | B105: FALSE | C105: ON | D105: 2019-04-05T07:00:00 | E105: LRKPCIGS | F105: 9821.15918 | G105: 0.001412661412 | H105: =G105*SUMIF('Manual Inputs'!$B$11:$B$22,'Expanded kW'!A105,'Manual Inputs'!$C$11:$C$22) -> 166567.115
A106: 4 | B106: FALSE | C106: ON | D106: 2019-04-05T08:00:00 | E106: LRKPCIGS | F106: 9905.133789 | G106: 0.001424740199 | H106: =G106*SUMIF('Manual Inputs'!$B$11:$B$22,'Expanded kW'!A106,'Manual Inputs'!$C$11:$C$22) -> 167991.3265
A107: 4 | B107: FALSE | C107: ON | D107: 2019-04-05T09:00:00 | E107: LRKPCIGS | F107: 9846.835938 | G107: 0.00141635472 | H107: =G107*SUMIF('Manual Inputs'!$B$11:$B$22,'Expanded kW'!A107,'Manual Inputs'!$C$11:$C$22) -> 167002.5934
A108: 4 | B108: FALSE | C108: ON | D108: 2019-04-05T10:00:00 | E108: LRKPCIGS | F108: 9733.577148 | G108: 0.001400063739 | H108: =G108*SUMIF('Manual Inputs'!$B$11:$B$22,'Expanded kW'!A108,'Manual Inputs'!$C$11:$C$22) -> 165081.7214
A109: 4 | B109: FALSE | C109: ON | D109: 2019-04-05T11:00:00 | E109: LRKPCIGS | F109: 9727.210938 | G109: 0.001399148032 | H109: =G109*SUMIF('Manual Inputs'!$B$11:$B$22,'Expanded kW'!A109,'Manual Inputs'!$C$11:$C$22) -> 164973.7503
A110: 4 | B110: FALSE | C110: ON | D110: 2019-04-05T12:00:00 | E110: LRKPCIGS | F110: 9598.447266 | G110: 0.001380626851 | H110: =G110*SUMIF('Manual Inputs'!$B$11:$B$22,'Expanded kW'!A110,'Manual Inputs'!$C$11:$C$22) -> 162789.9151
A111: 4 | B111: FALSE | C111: ON | D111: 2019-04-05T13:00:00 | E111: LRKPCIGS | F111: 9672.361328 | G111: 0.001391258543 | H111: =G111*SUMIF('Manual Inputs'!$B$11:$B$22,'Expanded kW'!A111,'Manual Inputs'!$C$11:$C$22) -> 164043.4995
A112: 4 | B112: FALSE | C112: ON | D112: 2019-04-05T14:00:00 | E112: LRKPCIGS | F112: 9656.074219 | G112: 0.001388915829 | H112: =G112*SUMIF('Manual Inputs'!$B$11:$B$22,'Expanded kW'!A112,'Manual Inputs'!$C$11:$C$22) -> 163767.2697
A113: 4 | B113: FALSE | C113: ON | D113: 2019-04-05T15:00:00 | E113: LRKPCIGS | F113: 9597.761719 | G113: 0.001380528243 | H113: =G113*SUMIF('Manual Inputs'!$B$11:$B$22,'Expanded kW'!A113,'Manual Inputs'!$C$11:$C$22) -> 162778.2882
A114: 4 | B114: FALSE | C114: ON | D114: 2019-04-05T16:00:00 | E114: LRKPCIGS | F114: 9468.185547 | G114: 0.001361890193 | H114: =G114*SUMIF('Manual Inputs'!$B$11:$B$22,'Expanded kW'!A114,'Manual Inputs'!$C$11:$C$22) -> 160580.673
A115: 4 | B115: FALSE | C115: ON | D115: 2019-04-05T17:00:00 | E115: LRKPCIGS | F115: 9446.709961 | G115: 0.001358801175 | H115: =G115*SUMIF('Manual Inputs'!$B$11:$B$22,'Expanded kW'!A115,'Manual Inputs'!$C$11:$C$22) -> 160216.4465
A116: 4 | B116: FALSE | C116: ON | D116: 2019-04-05T18:00:00 | E116: LRKPCIGS | F116: 9442.368164 | G116: 0.001358176657 | H116: =G116*SUMIF('Manual Inputs'!$B$11:$B$22,'Expanded kW'!A116,'Manual Inputs'!$C$11:$C$22) -> 160142.8095
A117: 4 | B117: FALSE | C117: ON | D117: 2019-04-05T19:00:00 | E117: LRKPCIGS | F117: 9429.301758 | G117: 0.001356297204 | H117: =G117*SUMIF('Manual Inputs'!$B$11:$B$22,'Expanded kW'!A117,'Manual Inputs'!$C$11:$C$22) -> 159921.2029
A118: 4 | B118: FALSE | C118: ON | D118: 2019-04-05T20:00:00 | E118: LRKPCIGS | F118: 9435.794922 | G118: 0.001357231172 | H118: =G118*SUMIF('Manual Inputs'!$B$11:$B$22,'Expanded kW'!A118,'Manual Inputs'!$C$11:$C$22) -> 160031.3271
A119: 4 | B119: FALSE | C119: OFF | D119: 2019-04-05T21:00:00 | E119: LRKPCIGS | F119: 9616.705078 | G119: 0.001383253028 | H119: =G119*SUMIF('Manual Inputs'!$B$11:$B$22,'Expanded kW'!A119,'Manual Inputs'!$C$11:$C$22) -> 163099.5681
A120: 4 | B120: FALSE | C120: OFF | D120: 2019-04-05T22:00:00 | E120: LRKPCIGS | F120: 9739.68457 | G120: 0.001400942222 | H120: =G120*SUMIF('Manual Inputs'!$B$11:$B$22,'Expanded kW'!A120,'Manual Inputs'!$C$11:$C$22) -> 165185.3035
A121: 4 | B121: FALSE | C121: OFF | D121: 2019-04-05T23:00:00 | E121: LRKPCIGS | F121: 9806.262695 | G121: 0.001410518723 | H121: =G121*SUMIF('Manual Inputs'!$B$11:$B$22,'Expanded kW'!A121,'Manual Inputs'!$C$11:$C$22) -> 166314.4702
A122: 4 | B122: FALSE | C122: OFF | D122: 2019-04-06 | E122: LRKPCIGS | F122: 9767.970703 | G122: 0.001405010858 | H122: =G122*SUMIF('Manual Inputs'!$B$11:$B$22,'Expanded kW'!A122,'Manual Inputs'!$C$11:$C$22) -> 165665.037
A123: 4 | B123: FALSE | C123: OFF | D123: 2019-04-06T01:00:00 | E123: LRKPCIGS | F123: 9698.893555 | G123: 0.001395074901 | H123: =G123*SUMIF('Manual Inputs'!$B$11:$B$22,'Expanded kW'!A123,'Manual Inputs'!$C$11:$C$22) -> 164493.4868
A124: 4 | B124: FALSE | C124: OFF | D124: 2019-04-06T02:00:00 | E124: LRKPCIGS | F124: 9601.780273 | G124: 0.001381106266 | H124: =G124*SUMIF('Manual Inputs'!$B$11:$B$22,'Expanded kW'!A124,'Manual Inputs'!$C$11:$C$22) -> 162846.443
A125: 4 | B125: FALSE | C125: OFF | D125: 2019-04-06T03:00:00 | E125: LRKPCIGS | F125: 9664.199219 | G125: 0.001390084517 | H125: =G125*SUMIF('Manual Inputs'!$B$11:$B$22,'Expanded kW'!A125,'Manual Inputs'!$C$11:$C$22) -> 163905.0699
A126: 4 | B126: FALSE | C126: OFF | D126: 2019-04-06T04:00:00 | E126: LRKPCIGS | F126: 9667.475586 | G126: 0.001390555785 | H126: =G126*SUMIF('Manual Inputs'!$B$11:$B$22,'Expanded kW'!A126,'Manual Inputs'!$C$11:$C$22) -> 163960.6372
A127: 4 | B127: FALSE | C127: OFF | D127: 2019-04-06T05:00:00 | E127: LRKPCIGS | F127: 9717.03125 | G127: 0.001397683801 | H127: =G127*SUMIF('Manual Inputs'!$B$11:$B$22,'Expanded kW'!A127,'Manual Inputs'!$C$11:$C$22) -> 164801.1026
A128: 4 | B128: FALSE | C128: OFF | D128: 2019-04-06T06:00:00 | E128: LRKPCIGS | F128: 9765.819336 | G128: 0.001404701409 | H128: =G128*SUMIF('Manual Inputs'!$B$11:$B$22,'Expanded kW'!A128,'Manual Inputs'!$C$11:$C$22) -> 165628.5498
A129: 4 | B129: FALSE | C129: OFF | D129: 2019-04-06T07:00:00 | E129: LRKPCIGS | F129: 9901.81543 | G129: 0.001424262891 | H129: =G129*SUMIF('Manual Inputs'!$B$11:$B$22,'Expanded kW'!A129,'Manual Inputs'!$C$11:$C$22) -> 167935.0471
A130: =MONTH(D130) -> 4 | B130: =IF(ISNA(VLOOKUP(DATE(YEAR(D130),MONTH(D130),DAY(D130)),Holidays,1,FALSE)),FALSE,TRUE) -> FALSE | C130: =IF(OR(HOUR(D130)<PkStart,HOUR(D130)>OPkStart-1,WEEKDAY(D130,2)>5,B130)=TRUE,"OFF","ON") -> OFF | D130: 2019-04-06T08:00:00 | E130: LRKPCIGS | F130: 9949.145508 | G130: =IF(SUMIF($A$2:$A$8785,A130,$F$2:$F$8785)=0,0,F130/SUMIF($A$2:$A$8785,A130,$F$2:$F$8785)) -> 0.001431070782 | H130: =G130*SUMIF('Manual Inputs'!$B$11:$B$22,'Expanded kW'!A130,'Manual Inputs'!$C$11:$C$22) -> 168737.7664
A131: 4 | B131: FALSE | C131: OFF | D131: 2019-04-06T09:00:00 | E131: LRKPCIGS | F131: 9966.234375 | G131: 0.00143352882 | H131: =G131*SUMIF('Manual Inputs'!$B$11:$B$22,'Expanded kW'!A131,'Manual Inputs'!$C$11:$C$22) -> 169027.594
A132: 4 | B132: FALSE | C132: OFF | D132: =+D131+1/24 -> 2019-04-06T10:00:00 | E132: =+E131 -> LRKPCIGS | F132: 9899.426758 | G132: 0.001423919308 | H132: =G132*SUMIF('Manual Inputs'!$B$11:$B$22,'Expanded kW'!A132,'Manual Inputs'!$C$11:$C$22) -> 167894.5351
A133: 4 | B133: FALSE | C133: OFF | D133: 2019-04-06T11:00:00 | E133: LRKPCIGS | F133: 9885.921875 | G133: 0.001421976785 | H133: =G133*SUMIF('Manual Inputs'!$B$11:$B$22,'Expanded kW'!A133,'Manual Inputs'!$C$11:$C$22) -> 167665.492
A134: 4 | B134: FALSE | C134: OFF | D134: 2019-04-06T12:00:00 | E134: LRKPCIGS | F134: 9897.420898 | G134: 0.001423630788 | H134: =G134*SUMIF('Manual Inputs'!$B$11:$B$22,'Expanded kW'!A134,'Manual Inputs'!$C$11:$C$22) -> 167860.5157
A135: 4 | B135: FALSE | C135: OFF | D135: 2019-04-06T13:00:00 | E135: LRKPCIGS | F135: 9850.964844 | G135: 0.001416948616 | H135: =G135*SUMIF('Manual Inputs'!$B$11:$B$22,'Expanded kW'!A135,'Manual Inputs'!$C$11:$C$22) -> 167072.6198
A136: 4 | B136: FALSE | C136: OFF | D136: 2019-04-06T14:00:00 | E136: LRKPCIGS | F136: 9750.956055 | G136: 0.001402563496 | H136: =G136*SUMIF('Manual Inputs'!$B$11:$B$22,'Expanded kW'!A136,'Manual Inputs'!$C$11:$C$22) -> 165376.4681
A137: 4 | B137: FALSE | C137: OFF | D137: 2019-04-06T15:00:00 | E137: LRKPCIGS | F137: 9671.227539 | G137: 0.001391095461 | H137: =G137*SUMIF('Manual Inputs'!$B$11:$B$22,'Expanded kW'!A137,'Manual Inputs'!$C$11:$C$22) -> 164024.2704
A138: 4 | B138: FALSE | C138: OFF | D138: 2019-04-06T16:00:00 | E138: LRKPCIGS | F138: 9645.557617 | G138: 0.001387403136 | H138: =G138*SUMIF('Manual Inputs'!$B$11:$B$22,'Expanded kW'!A138,'Manual Inputs'!$C$11:$C$22) -> 163588.9079
A139: 4 | B139: FALSE | C139: OFF | D139: 2019-04-06T17:00:00 | E139: LRKPCIGS | F139: 9656.595703 | G139: 0.001388990839 | H139: =G139*SUMIF('Manual Inputs'!$B$11:$B$22,'Expanded kW'!A139,'Manual Inputs'!$C$11:$C$22) -> 163776.1141
A140: 4 | B140: FALSE | C140: OFF | D140: 2019-04-06T18:00:00 | E140: LRKPCIGS | F140: 9594.045898 | G140: 0.001379993765 | H140: =G140*SUMIF('Manual Inputs'!$B$11:$B$22,'Expanded kW'!A140,'Manual Inputs'!$C$11:$C$22) -> 162715.2678
A141: 4 | B141: FALSE | C141: OFF | D141: 2019-04-06T19:00:00 | E141: LRKPCIGS | F141: 9609.583008 | G141: 0.0013822286 | H141: =G141*SUMIF('Manual Inputs'!$B$11:$B$22,'Expanded kW'!A141,'Manual Inputs'!$C$11:$C$22) -> 162978.7776
A142: 4 | B142: FALSE | C142: OFF | D142: 2019-04-06T20:00:00 | E142: LRKPCIGS | F142: 9551.874023 | G142: 0.001373927823 | H142: =G142*SUMIF('Manual Inputs'!$B$11:$B$22,'Expanded kW'!A142,'Manual Inputs'!$C$11:$C$22) -> 162000.0317
A143: 4 | B143: FALSE | C143: OFF | D143: 2019-04-06T21:00:00 | E143: LRKPCIGS | F143: 9571.78125 | G143: 0.00137679125 | H143: =G143*SUMIF('Manual Inputs'!$B$11:$B$22,'Expanded kW'!A143,'Manual Inputs'!$C$11:$C$22) -> 162337.6588
A144: 4 | B144: FALSE | C144: OFF | D144: 2019-04-06T22:00:00 | E144: LRKPCIGS | F144: 9577.145508 | G144: 0.001377562837 | H144: =G144*SUMIF('Manual Inputs'!$B$11:$B$22,'Expanded kW'!A144,'Manual Inputs'!$C$11:$C$22) -> 162428.6367
A145: 4 | B145: FALSE | C145: OFF | D145: 2019-04-06T23:00:00 | E145: LRKPCIGS | F145: 9576.567383 | G145: 0.00137747968 | H145: =G145*SUMIF('Manual Inputs'!$B$11:$B$22,'Expanded kW'!A145,'Manual Inputs'!$C$11:$C$22) -> 162418.8317
A146: 4 | B146: FALSE | C146: OFF | D146: 2019-04-07 | E146: LRKPCIGS | F146: 9564.898438 | G146: 0.001375801236 | H146: =G146*SUMIF('Manual Inputs'!$B$11:$B$22,'Expanded kW'!A146,'Manual Inputs'!$C$11:$C$22) -> 162220.9261
A147: 4 | B147: FALSE | C147: OFF | D147: 2019-04-07T01:00:00 | E147: LRKPCIGS | F147: 9517.692383 | G147: 0.001369011185 | H147: =G147*SUMIF('Manual Inputs'!$B$11:$B$22,'Expanded kW'!A147,'Manual Inputs'!$C$11:$C$22) -> 161420.3102
A148: 4 | B148: FALSE | C148: OFF | D148: 2019-04-07T02:00:00 | E148: LRKPCIGS | F148: 9495.84668 | G148: 0.00136586893 | H148: =G148*SUMIF('Manual Inputs'!$B$11:$B$22,'Expanded kW'!A148,'Manual Inputs'!$C$11:$C$22) -> 161049.8065
A149: 4 | B149: FALSE | C149: OFF | D149: 2019-04-07T03:00:00 | E149: LRKPCIGS | F149: 9480.430664 | G149: 0.001363651513 | H149: =G149*SUMIF('Manual Inputs'!$B$11:$B$22,'Expanded kW'!A149,'Manual Inputs'!$C$11:$C$22) -> 160788.3505
A150: 4 | B150: FALSE | C150: OFF | D150: 2019-04-07T04:00:00 | E150: LRKPCIGS | F150: 9436.975586 | G150: 0.001357400997 | H150: =G150*SUMIF('Manual Inputs'!$B$11:$B$22,'Expanded kW'!A150,'Manual Inputs'!$C$11:$C$22) -> 160051.3512
A151: 4 | B151: FALSE | C151: OFF | D151: 2019-04-07T05:00:00 | E151: LRKPCIGS | F151: 9461.285156 | G151: 0.00136089765 | H151: =G151*SUMIF('Manual Inputs'!$B$11:$B$22,'Expanded kW'!A151,'Manual Inputs'!$C$11:$C$22) -> 160463.6422
A152: 4 | B152: FALSE | C152: OFF | D152: 2019-04-07T06:00:00 | E152: LRKPCIGS | F152: 9406.519531 | G152: 0.001353020242 | H152: =G152*SUMIF('Manual Inputs'!$B$11:$B$22,'Expanded kW'!A152,'Manual Inputs'!$C$11:$C$22) -> 159534.8158
A153: 4 | B153: FALSE | C153: OFF | D153: 2019-04-07T07:00:00 | E153: LRKPCIGS | F153: 9387.740234 | G153: 0.001350319055 | H153: =G153*SUMIF('Manual Inputs'!$B$11:$B$22,'Expanded kW'!A153,'Manual Inputs'!$C$11:$C$22) -> 159216.3184
A154: 4 | B154: FALSE | C154: OFF | D154: 2019-04-07T08:00:00 | E154: LRKPCIGS | F154: 9391.394531 | G154: 0.001350844683 | H154: =G154*SUMIF('Manual Inputs'!$B$11:$B$22,'Expanded kW'!A154,'Manual Inputs'!$C$11:$C$22) -> 159278.2954
A155: 4 | B155: FALSE | C155: OFF | D155: 2019-04-07T09:00:00 | E155: LRKPCIGS | F155: 9462.757812 | G155: 0.001361109475 | H155: =G155*SUMIF('Manual Inputs'!$B$11:$B$22,'Expanded kW'!A155,'Manual Inputs'!$C$11:$C$22) -> 160488.6185
A156: 4 | B156: FALSE | C156: OFF | D156: 2019-04-07T10:00:00 | E156: LRKPCIGS | F156: 9506.823242 | G156: 0.001367447783 | H156: =G156*SUMIF('Manual Inputs'!$B$11:$B$22,'Expanded kW'!A156,'Manual Inputs'!$C$11:$C$22) -> 161235.9693
A157: 4 | B157: FALSE | C157: OFF | D157: 2019-04-07T11:00:00 | E157: LRKPCIGS | F157: 9487.041016 | G157: 0.001364602336 | H157: =G157*SUMIF('Manual Inputs'!$B$11:$B$22,'Expanded kW'!A157,'Manual Inputs'!$C$11:$C$22) -> 160900.4622
A158: 4 | B158: FALSE | C158: OFF | D158: 2019-04-07T12:00:00 | E158: LRKPCIGS | F158: 9459.495117 | G158: 0.001360640174 | H158: =G158*SUMIF('Manual Inputs'!$B$11:$B$22,'Expanded kW'!A158,'Manual Inputs'!$C$11:$C$22) -> 160433.2831
A159: 4 | B159: FALSE | C159: OFF | D159: 2019-04-07T13:00:00 | E159: LRKPCIGS | F159: 9452.225586 | G159: 0.001359594535 | H159: =G159*SUMIF('Manual Inputs'!$B$11:$B$22,'Expanded kW'!A159,'Manual Inputs'!$C$11:$C$22) -> 160309.9916
A160: 4 | B160: FALSE | C160: OFF | D160: 2019-04-07T14:00:00 | E160: LRKPCIGS | F160: 9450.264648 | G160: 0.001359312476 | H160: =G160*SUMIF('Manual Inputs'!$B$11:$B$22,'Expanded kW'!A160,'Manual Inputs'!$C$11:$C$22) -> 160276.7341
A161: 4 | B161: FALSE | C161: OFF | D161: 2019-04-07T15:00:00 | E161: LRKPCIGS | F161: 9432.423828 | G161: 0.001356746278 | H161: =G161*SUMIF('Manual Inputs'!$B$11:$B$22,'Expanded kW'!A161,'Manual Inputs'!$C$11:$C$22) -> 159974.1533
A162: 4 | B162: FALSE | C162: OFF | D162: 2019-04-07T16:00:00 | E162: LRKPCIGS | F162: 9409.936523 | G162: 0.001353511737 | H162: =G162*SUMIF('Manual Inputs'!$B$11:$B$22,'Expanded kW'!A162,'Manual Inputs'!$C$11:$C$22) -> 159592.768
A163: 4 | B163: FALSE | C163: OFF | D163: 2019-04-07T17:00:00 | E163: LRKPCIGS | F163: 9355.337891 | G163: 0.001345658348 | H163: =G163*SUMIF('Manual Inputs'!$B$11:$B$22,'Expanded kW'!A163,'Manual Inputs'!$C$11:$C$22) -> 158666.7738
A164: 4 | B164: FALSE | C164: OFF | D164: 2019-04-07T18:00:00 | E164: LRKPCIGS | F164: 9328.869141 | G164: 0.001341851121 | H164: =G164*SUMIF('Manual Inputs'!$B$11:$B$22,'Expanded kW'!A164,'Manual Inputs'!$C$11:$C$22) -> 158217.8631
A165: 4 | B165: FALSE | C165: OFF | D165: 2019-04-07T19:00:00 | E165: LRKPCIGS | F165: 9383.294922 | G165: 0.001349679647 | H165: =G165*SUMIF('Manual Inputs'!$B$11:$B$22,'Expanded kW'!A165,'Manual Inputs'!$C$11:$C$22) -> 159140.9258
A166: 4 | B166: FALSE | C166: OFF | D166: 2019-04-07T20:00:00 | E166: LRKPCIGS | F166: 9408.763672 | G166: 0.001353343036 | H166: =G166*SUMIF('Manual Inputs'!$B$11:$B$22,'Expanded kW'!A166,'Manual Inputs'!$C$11:$C$22) -> 159572.8764
A167: 4 | B167: FALSE | C167: OFF | D167: 2019-04-07T21:00:00 | E167: LRKPCIGS | F167: 9301.34668 | G167: 0.00133789233 | H167: =G167*SUMIF('Manual Inputs'!$B$11:$B$22,'Expanded kW'!A167,'Manual Inputs'!$C$11:$C$22) -> 157751.0815
A168: 4 | B168: FALSE | C168: OFF | D168: 2019-04-07T22:00:00 | E168: LRKPCIGS | F168: 9037.503906 | G168: 0.001299941565 | H168: =G168*SUMIF('Manual Inputs'!$B$11:$B$22,'Expanded kW'!A168,'Manual Inputs'!$C$11:$C$22) -> 153276.3012
A169: 4 | B169: FALSE | C169: OFF | D169: 2019-04-07T23:00:00 | E169: LRKPCIGS | F169: 9075.861328 | G169: 0.001305458841 | H169: =G169*SUMIF('Manual Inputs'!$B$11:$B$22,'Expanded kW'!A169,'Manual Inputs'!$C$11:$C$22) -> 153926.844
A170: 4 | B170: FALSE | C170: OFF | D170: 2019-04-08 | E170: LRKPCIGS | F170: 9042.959961 | G170: 0.001300726356 | H170: =G170*SUMIF('Manual Inputs'!$B$11:$B$22,'Expanded kW'!A170,'Manual Inputs'!$C$11:$C$22) -> 153368.836
A171: 4 | B171: FALSE | C171: OFF | D171: 2019-04-08T01:00:00 | E171: LRKPCIGS | F171: 9008.351562 | G171: 0.001295748334 | H171: =G171*SUMIF('Manual Inputs'!$B$11:$B$22,'Expanded kW'!A171,'Manual Inputs'!$C$11:$C$22) -> 152781.8767
A172: 4 | B172: FALSE | C172: OFF | D172: 2019-04-08T02:00:00 | E172: LRKPCIGS | F172: 9006.594727 | G172: 0.001295495633 | H172: =G172*SUMIF('Manual Inputs'!$B$11:$B$22,'Expanded kW'!A172,'Manual Inputs'!$C$11:$C$22) -> 152752.0807
A173: 4 | B173: FALSE | C173: OFF | D173: 2019-04-08T03:00:00 | E173: LRKPCIGS | F173: 9007.139648 | G173: 0.001295574014 | H173: =G173*SUMIF('Manual Inputs'!$B$11:$B$22,'Expanded kW'!A173,'Manual Inputs'!$C$11:$C$22) -> 152761.3226
A174: 4 | B174: FALSE | C174: OFF | D174: 2019-04-08T04:00:00 | E174: LRKPCIGS | F174: 8999.242188 | G174: 0.001294438054 | H174: =G174*SUMIF('Manual Inputs'!$B$11:$B$22,'Expanded kW'!A174,'Manual Inputs'!$C$11:$C$22) -> 152627.3814
A175: 4 | B175: FALSE | C175: OFF | D175: 2019-04-08T05:00:00 | E175: LRKPCIGS | F175: 9046.291992 | G175: 0.00130120563 | H175: =G175*SUMIF('Manual Inputs'!$B$11:$B$22,'Expanded kW'!A175,'Manual Inputs'!$C$11:$C$22) -> 153425.3473
A176: 4 | B176: FALSE | C176: OFF | D176: 2019-04-08T06:00:00 | E176: LRKPCIGS | F176: 9177.693359 | G176: 0.001320106214 | H176: =G176*SUMIF('Manual Inputs'!$B$11:$B$22,'Expanded kW'!A176,'Manual Inputs'!$C$11:$C$22) -> 155653.9179
A177: 4 | B177: FALSE | C177: ON | D177: 2019-04-08T07:00:00 | E177: LRKPCIGS | F177: 9527.932617 | G177: 0.001370484125 | H177: =G177*SUMIF('Manual Inputs'!$B$11:$B$22,'Expanded kW'!A177,'Manual Inputs'!$C$11:$C$22) -> 161593.9848
A178: 4 | B178: FALSE | C178: ON | D178: 2019-04-08T08:00:00 | E178: LRKPCIGS | F178: 9629.011719 | G178: 0.001385023198 | H178: =G178*SUMIF('Manual Inputs'!$B$11:$B$22,'Expanded kW'!A178,'Manual Inputs'!$C$11:$C$22) -> 163308.289
A179: 4 | B179: FALSE | C179: ON | D179: 2019-04-08T09:00:00 | E179: LRKPCIGS | F179: 9754.1875 | G179: 0.001403028302 | H179: =G179*SUMIF('Manual Inputs'!$B$11:$B$22,'Expanded kW'!A179,'Manual Inputs'!$C$11:$C$22) -> 165431.2735
A180: 4 | B180: FALSE | C180: ON | D180: 2019-04-08T10:00:00 | E180: LRKPCIGS | F180: 9578.845703 | G180: 0.00137780739 | H180: =G180*SUMIF('Manual Inputs'!$B$11:$B$22,'Expanded kW'!A180,'Manual Inputs'!$C$11:$C$22) -> 162457.4721
A181: 4 | B181: FALSE | C181: ON | D181: 2019-04-08T11:00:00 | E181: LRKPCIGS | F181: 9775.65625 | G181: 0.001406116336 | H181: =G181*SUMIF('Manual Inputs'!$B$11:$B$22,'Expanded kW'!A181,'Manual Inputs'!$C$11:$C$22) -> 165795.3841
A182: 4 | B182: FALSE | C182: ON | D182: 2019-04-08T12:00:00 | E182: LRKPCIGS | F182: 9674.253906 | G182: 0.001391530769 | H182: =G182*SUMIF('Manual Inputs'!$B$11:$B$22,'Expanded kW'!A182,'Manual Inputs'!$C$11:$C$22) -> 164075.5977
A183: 4 | B183: FALSE | C183: ON | D183: 2019-04-08T13:00:00 | E183: LRKPCIGS | F183: 9774.424805 | G183: 0.001405939207 | H183: =G183*SUMIF('Manual Inputs'!$B$11:$B$22,'Expanded kW'!A183,'Manual Inputs'!$C$11:$C$22) -> 165774.4988
A184: 4 | B184: FALSE | C184: ON | D184: 2019-04-08T14:00:00 | E184: LRKPCIGS | F184: 9823.586914 | G184: 0.001413010614 | H184: =G184*SUMIF('Manual Inputs'!$B$11:$B$22,'Expanded kW'!A184,'Manual Inputs'!$C$11:$C$22) -> 166608.2894
A185: 4 | B185: FALSE | C185: ON | D185: 2019-04-08T15:00:00 | E185: LRKPCIGS | F185: 9651.267578 | G185: 0.001388224449 | H185: =G185*SUMIF('Manual Inputs'!$B$11:$B$22,'Expanded kW'!A185,'Manual Inputs'!$C$11:$C$22) -> 163685.749
A186: 4 | B186: FALSE | C186: ON | D186: 2019-04-08T16:00:00 | E186: LRKPCIGS | F186: 9537.130859 | G186: 0.001371807187 | H186: =G186*SUMIF('Manual Inputs'!$B$11:$B$22,'Expanded kW'!A186,'Manual Inputs'!$C$11:$C$22) -> 161749.9873
A187: 4 | B187: FALSE | C187: ON | D187: 2019-04-08T17:00:00 | E187: LRKPCIGS | F187: 9590.375977 | G187: 0.001379465888 | H187: =G187*SUMIF('Manual Inputs'!$B$11:$B$22,'Expanded kW'!A187,'Manual Inputs'!$C$11:$C$22) -> 162653.0258
A188: 4 | B188: FALSE | C188: ON | D188: 2019-04-08T18:00:00 | E188: LRKPCIGS | F188: 9542.494141 | G188: 0.001372578634 | H188: =G188*SUMIF('Manual Inputs'!$B$11:$B$22,'Expanded kW'!A188,'Manual Inputs'!$C$11:$C$22) -> 161840.9487
A189: 4 | B189: FALSE | C189: ON | D189: 2019-04-08T19:00:00 | E189: LRKPCIGS | F189: 9459.453125 | G189: 0.001360634134 | H189: =G189*SUMIF('Manual Inputs'!$B$11:$B$22,'Expanded kW'!A189,'Manual Inputs'!$C$11:$C$22) -> 160432.5709
A190: 4 | B190: FALSE | C190: ON | D190: 2019-04-08T20:00:00 | E190: LRKPCIGS | F190: 9596.074219 | G190: 0.001380285515 | H190: =G190*SUMIF('Manual Inputs'!$B$11:$B$22,'Expanded kW'!A190,'Manual Inputs'!$C$11:$C$22) -> 162749.6682
A191: 4 | B191: FALSE | C191: OFF | D191: 2019-04-08T21:00:00 | E191: LRKPCIGS | F191: 9687.009766 | G191: 0.001393365554 | H191: =G191*SUMIF('Manual Inputs'!$B$11:$B$22,'Expanded kW'!A191,'Manual Inputs'!$C$11:$C$22) -> 164291.9374
A192: 4 | B192: FALSE | C192: OFF | D192: 2019-04-08T22:00:00 | E192: LRKPCIGS | F192: 9756.582031 | G192: 0.001403372728 | H192: =G192*SUMIF('Manual Inputs'!$B$11:$B$22,'Expanded kW'!A192,'Manual Inputs'!$C$11:$C$22) -> 165471.8848
A193: 4 | B193: FALSE | C193: OFF | D193: 2019-04-08T23:00:00 | E193: LRKPCIGS | F193: 9653.704102 | G193: 0.001388574915 | H193: =G193*SUMIF('Manual Inputs'!$B$11:$B$22,'Expanded kW'!A193,'Manual Inputs'!$C$11:$C$22) -> 163727.0725
A194: =MONTH(D194) -> 4 | B194: =IF(ISNA(VLOOKUP(DATE(YEAR(D194),MONTH(D194),DAY(D194)),Holidays,1,FALSE)),FALSE,TRUE) -> FALSE | C194: =IF(OR(HOUR(D194)<PkStart,HOUR(D194)>OPkStart-1,WEEKDAY(D194,2)>5,B194)=TRUE,"OFF","ON") -> OFF | D194: 2019-04-09 | E194: LRKPCIGS | F194: 9585.472656 | G194: =IF(SUMIF($A$2:$A$8785,A194,$F$2:$F$8785)=0,0,F194/SUMIF($A$2:$A$8785,A194,$F$2:$F$8785)) -> 0.001378760602 | H194: =G194*SUMIF('Manual Inputs'!$B$11:$B$22,'Expanded kW'!A194,'Manual Inputs'!$C$11:$C$22) -> 162569.8654
A195: 4 | B195: FALSE | C195: OFF | D195: 2019-04-09T01:00:00 | E195: LRKPCIGS | F195: 9598.795898 | G195: 0.001380676998 | H195: =G195*SUMIF('Manual Inputs'!$B$11:$B$22,'Expanded kW'!A195,'Manual Inputs'!$C$11:$C$22) -> 162795.8279
A196: 4 | B196: FALSE | C196: OFF | D196: =+D195+1/24 -> 2019-04-09T02:00:00 | E196: =+E195 -> LRKPCIGS | F196: 9429.894531 | G196: 0.001356382468 | H196: =G196*SUMIF('Manual Inputs'!$B$11:$B$22,'Expanded kW'!A196,'Manual Inputs'!$C$11:$C$22) -> 159931.2564
A197: 4 | B197: FALSE | C197: OFF | D197: 2019-04-09T03:00:00 | E197: LRKPCIGS | F197: 9323.481445 | G197: 0.001341076163 | H197: =G197*SUMIF('Manual Inputs'!$B$11:$B$22,'Expanded kW'!A197,'Manual Inputs'!$C$11:$C$22) -> 158126.4877
A198: 4 | B198: FALSE | C198: OFF | D198: 2019-04-09T04:00:00 | E198: LRKPCIGS | F198: 9388.59375 | G198: 0.001350441823 | H198: =G198*SUMIF('Manual Inputs'!$B$11:$B$22,'Expanded kW'!A198,'Manual Inputs'!$C$11:$C$22) -> 159230.794
A199: 4 | B199: FALSE | C199: OFF | D199: 2019-04-09T05:00:00 | E199: LRKPCIGS | F199: 9299.674805 | G199: 0.00133765185 | H199: =G199*SUMIF('Manual Inputs'!$B$11:$B$22,'Expanded kW'!A199,'Manual Inputs'!$C$11:$C$22) -> 157722.7264
A200: 4 | B200: FALSE | C200: OFF | D200: 2019-04-09T06:00:00 | E200: LRKPCIGS | F200: 9334.295898 | G200: 0.001342631698 | H200: =G200*SUMIF('Manual Inputs'!$B$11:$B$22,'Expanded kW'!A200,'Manual Inputs'!$C$11:$C$22) -> 158309.9011
... 8585 more rows

Sheet Monthly Data
A1: ='Manual Inputs'!D1 -> Kentucky Power Co.
A2: =+'Manual Inputs'!D2 -> Kentucky
A3: Monthly Summary of Sample Data
A4: =CustClass & " Customers" -> Industrial General Svc - Subtransmission Customers
A5: ="For the Test Year Ended " & TEXT(+DATE(YEAR(ReportYr)+1,MONTH(ReportYr),DAY(ReportYr))-1,"Mmmm d, yyyy") -> For the Test Year Ended March 31, 2020
A6: ="Based on Sample Period Ended " & TEXT(+DATE(YEAR(TYBegin)+1,MONTH(TYBegin),DAY(TYBegin))-1,"Mmmm d, yyyy") -> Based on Sample Period Ended March 31, 2020
C8: ON | E8: OFF
C9: NCP | H9: SNCP | N9: Energy
A10: Year | B10: Month | C10: On-Peak | D10: LF | E10: Off-Peak | F10: LF | H10: On-Peak | I10: LF | J10: Off-Peak | K10: LF | M10: CP | N10: On-Peak | O10: Off-Peak | P10: Total
A11: =+'Manual Inputs'!A11 -> 2019 | B11: =+'Manual Inputs'!B11 -> 4 | C11: =MAX(IF('Expanded kW'!$A$2:$A$8785=$B11,IF('Expanded kW'!$C$2:$C$8785=C$8,'Expanded kW'!$F$2:$F$8785,0),0)) -> 10201.34473 | D11: =IF(C11=0,0,$P11/C11/COUNTIF('Expanded kW'!$A$2:$A$8785,'Monthly Data'!$B11)) -> 0.9465307941 | E11: =MAX(IF('Expanded kW'!$A$2:$A$8785=$B11,IF('Expanded kW'!$C$2:$C$8785=E$8,'Expanded kW'!$F$2:$F$8785,0),0)) -> 10631.06641 | F11: =IF(E11=0,0,$P11/E11/COUNTIF('Expanded kW'!$A$2:$A$8785,'Monthly Data'!$B11)) -> 0.9082707751 | H11: =+'LR Monthly'!G2 -> 11048.25254 | I11: =IF(H11=0,0,$P11/H11/COUNTIF('Expanded kW'!$A$2:$A$8785,'Monthly Data'!$B11)) -> 0.8739741321 | J11: =+'LR Monthly'!H2 -> 11400.76852 | K11: =IF(J11=0,0,$P11/J11/COUNTIF('Expanded kW'!$A$2:$A$8785,'Monthly Data'!$B11)) -> 0.8469505284 | M11: =VLOOKUP('Manual Inputs'!E27,'Expanded kW'!$D$2:$F$8785,3) -> 9627.358398 | N11: =SUMIFS('Expanded kW'!$F$2:$F$8785,'Expanded kW'!$A$2:$A$8785,$B11,'Expanded kW'!$C$2:$C$8785,C$8) -> 2995442.323 | O11: =SUMIFS('Expanded kW'!$F$2:$F$8785,'Expanded kW'!$A$2:$A$8785,$B11,'Expanded kW'!$C$2:$C$8785,E$8) -> 3956796.263 | P11: =SUM(N11:O11) -> 6952238.586
A12: =+'Manual Inputs'!A12 -> 2019 | B12: =+'Manual Inputs'!B12 -> 5 | C12: =MAX(IF('Expanded kW'!$A$2:$A$8785=$B12,IF('Expanded kW'!$C$2:$C$8785=C$8,'Expanded kW'!$F$2:$F$8785,0),0)) -> 10202.25977 | D12: =IF(C12=0,0,$P12/C12/COUNTIF('Expanded kW'!$A$2:$A$8785,'Monthly Data'!$B12)) -> 0.9026888217 | E12: =MAX(IF('Expanded kW'!$A$2:$A$8785=$B12,IF('Expanded kW'!$C$2:$C$8785=E$8,'Expanded kW'!$F$2:$F$8785,0),0)) -> 10444.62598 | F12: =IF(E12=0,0,$P12/E12/COUNTIF('Expanded kW'!$A$2:$A$8785,'Monthly Data'!$B12)) -> 0.881742043 | H12: =+'LR Monthly'!G3 -> 11060.05612 | I12: =IF(H12=0,0,$P12/H12/COUNTIF('Expanded kW'!$A$2:$A$8785,'Monthly Data'!$B12)) -> 0.8326780398 | J12: =+'LR Monthly'!H3 -> 11414.48508 | K12: =IF(J12=0,0,$P12/J12/COUNTIF('Expanded kW'!$A$2:$A$8785,'Monthly Data'!$B12)) -> 0.8068227154 | M12: =VLOOKUP('Manual Inputs'!E28,'Expanded kW'!$D$2:$F$8785,3) -> 9912.946289 | N12: =SUMIFS('Expanded kW'!$F$2:$F$8785,'Expanded kW'!$A$2:$A$8785,$B12,'Expanded kW'!$C$2:$C$8785,C$8) -> 2973085.274 | O12: =SUMIFS('Expanded kW'!$F$2:$F$8785,'Expanded kW'!$A$2:$A$8785,$B12,'Expanded kW'!$C$2:$C$8785,E$8) -> 3878757.315 | P12: =SUM(N12:O12) -> 6851842.59
A13: =+'Manual Inputs'!A13 -> 2019 | B13: =+'Manual Inputs'!B13 -> 6 | C13: =MAX(IF('Expanded kW'!$A$2:$A$8785=$B13,IF('Expanded kW'!$C$2:$C$8785=C$8,'Expanded kW'!$F$2:$F$8785,0),0)) -> 10483.75977 | D13: =IF(C13=0,0,$P13/C13/COUNTIF('Expanded kW'!$A$2:$A$8785,'Monthly Data'!$B13)) -> 0.9548377519 | E13: =MAX(IF('Expanded kW'!$A$2:$A$8785=$B13,IF('Expanded kW'!$C$2:$C$8785=E$8,'Expanded kW'!$F$2:$F$8785,0),0)) -> 10624.07129 | F13: =IF(E13=0,0,$P13/E13/COUNTIF('Expanded kW'!$A$2:$A$8785,'Monthly Data'!$B13)) -> 0.9422272624 | H13: =+'LR Monthly'!G4 -> 11195.02893 | I13: =IF(H13=0,0,$P13/H13/COUNTIF('Expanded kW'!$A$2:$A$8785,'Monthly Data'!$B13)) -> 0.8941727321 | J13: =+'LR Monthly'!H4 -> 11566.18637 | K13: =IF(J13=0,0,$P13/J13/COUNTIF('Expanded kW'!$A$2:$A$8785,'Monthly Data'!$B13)) -> 0.8654788434 | M13: =VLOOKUP('Manual Inputs'!E29,'Expanded kW'!$D$2:$F$8785,3) -> 10252.78613 | N13: =SUMIFS('Expanded kW'!$F$2:$F$8785,'Expanded kW'!$A$2:$A$8785,$B13,'Expanded kW'!$C$2:$C$8785,C$8) -> 2818722.26 | O13: =SUMIFS('Expanded kW'!$F$2:$F$8785,'Expanded kW'!$A$2:$A$8785,$B13,'Expanded kW'!$C$2:$C$8785,E$8) -> 4388686.257 | P13: 7207408.517
A14: =+'Manual Inputs'!A14 -> 2019 | B14: =+'Manual Inputs'!B14 -> 7 | C14: =MAX(IF('Expanded kW'!$A$2:$A$8785=$B14,IF('Expanded kW'!$C$2:$C$8785=C$8,'Expanded kW'!$F$2:$F$8785,0),0)) -> 10563.95605 | D14: =IF(C14=0,0,$P14/C14/COUNTIF('Expanded kW'!$A$2:$A$8785,'Monthly Data'!$B14)) -> 0.9292781762 | E14: =MAX(IF('Expanded kW'!$A$2:$A$8785=$B14,IF('Expanded kW'!$C$2:$C$8785=E$8,'Expanded kW'!$F$2:$F$8785,0),0)) -> 10823.41797 | F14: =IF(E14=0,0,$P14/E14/COUNTIF('Expanded kW'!$A$2:$A$8785,'Monthly Data'!$B14)) -> 0.9070012675 | H14: =+'LR Monthly'!G5 -> 11258.40798 | I14: =IF(H14=0,0,$P14/H14/COUNTIF('Expanded kW'!$A$2:$A$8785,'Monthly Data'!$B14)) -> 0.8719575481 | J14: =+'LR Monthly'!H5 -> 11598.11715 | K14: =IF(J14=0,0,$P14/J14/COUNTIF('Expanded kW'!$A$2:$A$8785,'Monthly Data'!$B14)) -> 0.8464178874 | M14: =VLOOKUP('Manual Inputs'!E30,'Expanded kW'!$D$2:$F$8785,3) -> 9743.368164 | N14: =SUMIFS('Expanded kW'!$F$2:$F$8785,'Expanded kW'!$A$2:$A$8785,$B14,'Expanded kW'!$C$2:$C$8785,C$8) -> 3154555.272 | O14: =SUMIFS('Expanded kW'!$F$2:$F$8785,'Expanded kW'!$A$2:$A$8785,$B14,'Expanded kW'!$C$2:$C$8785,E$8) -> 4149183.967 | P14: 7303739.239
A15: =+'Manual Inputs'!A15 -> 2019 | B15: =+'Manual Inputs'!B15 -> 8 | C15: =MAX(IF('Expanded kW'!$A$2:$A$8785=$B15,IF('Expanded kW'!$C$2:$C$8785=C$8,'Expanded kW'!$F$2:$F$8785,0),0)) -> 10361.99219 | D15: =IF(C15=0,0,$P15/C15/COUNTIF('Expanded kW'!$A$2:$A$8785,'Monthly Data'!$B15)) -> 0.9445881014 | E15: =MAX(IF('Expanded kW'!$A$2:$A$8785=$B15,IF('Expanded kW'!$C$2:$C$8785=E$8,'Expanded kW'!$F$2:$F$8785,0),0)) -> 10492.15234 | F15: =IF(E15=0,0,$P15/E15/COUNTIF('Expanded kW'!$A$2:$A$8785,'Monthly Data'!$B15)) -> 0.9328700352 | H15: =+'LR Monthly'!G6 -> 11322.28868 | I15: =IF(H15=0,0,$P15/H15/COUNTIF('Expanded kW'!$A$2:$A$8785,'Monthly Data'!$B15)) -> 0.8644731469 | J15: =+'LR Monthly'!H6 -> 11137.43345 | K15: =IF(J15=0,0,$P15/J15/COUNTIF('Expanded kW'!$A$2:$A$8785,'Monthly Data'!$B15)) -> 0.8788213702 | M15: =VLOOKUP('Manual Inputs'!E31,'Expanded kW'!$D$2:$F$8785,3) -> 10017.94238 | N15: =SUMIFS('Expanded kW'!$F$2:$F$8785,'Expanded kW'!$A$2:$A$8785,$B15,'Expanded kW'!$C$2:$C$8785,C$8) -> 3027599.242 | O15: =SUMIFS('Expanded kW'!$F$2:$F$8785,'Expanded kW'!$A$2:$A$8785,$B15,'Expanded kW'!$C$2:$C$8785,E$8) -> 4254534.766 | P15: 7282134.008
A16: =+'Manual Inputs'!A16 -> 2019 | B16: =+'Manual Inputs'!B16 -> 9 | C16: =MAX(IF('Expanded kW'!$A$2:$A$8785=$B16,IF('Expanded kW'!$C$2:$C$8785=C$8,'Expanded kW'!$F$2:$F$8785,0),0)) -> 10195.12402 | D16: =IF(C16=0,0,$P16/C16/COUNTIF('Expanded kW'!$A$2:$A$8785,'Monthly Data'!$B16)) -> 0.9249732022 | E16: =MAX(IF('Expanded kW'!$A$2:$A$8785=$B16,IF('Expanded kW'!$C$2:$C$8785=E$8,'Expanded kW'!$F$2:$F$8785,0),0)) -> 10354.49609 | F16: =IF(E16=0,0,$P16/E16/COUNTIF('Expanded kW'!$A$2:$A$8785,'Monthly Data'!$B16)) -> 0.9107364018 | H16: =+'LR Monthly'!G7 -> 11160.56562 | I16: =IF(H16=0,0,$P16/H16/COUNTIF('Expanded kW'!$A$2:$A$8785,'Monthly Data'!$B16)) -> 0.8449586552 | J16: =+'LR Monthly'!H7 -> 11588.2668 | K16: =IF(J16=0,0,$P16/J16/COUNTIF('Expanded kW'!$A$2:$A$8785,'Monthly Data'!$B16)) -> 0.8137728169 | M16: =VLOOKUP('Manual Inputs'!E32,'Expanded kW'!$D$2:$F$8785,3) -> 9499.90918 | N16: =SUMIFS('Expanded kW'!$F$2:$F$8785,'Expanded kW'!$A$2:$A$8785,$B16,'Expanded kW'!$C$2:$C$8785,C$8) -> 2788517.938 | O16: =SUMIFS('Expanded kW'!$F$2:$F$8785,'Expanded kW'!$A$2:$A$8785,$B16,'Expanded kW'!$C$2:$C$8785,E$8) -> 4001237.952 | P16: 6789755.891
A17: =+'Manual Inputs'!A17 -> 2019 | B17: =+'Manual Inputs'!B17 -> 10 | C17: =MAX(IF('Expanded kW'!$A$2:$A$8785=$B17,IF('Expanded kW'!$C$2:$C$8785=C$8,'Expanded kW'!$F$2:$F$8785,0),0)) -> 10358.38086 | D17: =IF(C17=0,0,$P17/C17/COUNTIF('Expanded kW'!$A$2:$A$8785,'Monthly Data'!$B17)) -> 0.9219046818 | E17: =MAX(IF('Expanded kW'!$A$2:$A$8785=$B17,IF('Expanded kW'!$C$2:$C$8785=E$8,'Expanded kW'!$F$2:$F$8785,0),0)) -> 10558.21973 | F17: =IF(E17=0,0,$P17/E17/COUNTIF('Expanded kW'!$A$2:$A$8785,'Monthly Data'!$B17)) -> 0.9044554913 | H17: =+'LR Monthly'!G8 -> 11176.85639 | I17: =IF(H17=0,0,$P17/H17/COUNTIF('Expanded kW'!$A$2:$A$8785,'Monthly Data'!$B17)) -> 0.854394069 | J17: =+'LR Monthly'!H8 -> 11493.6111 | K17: =IF(J17=0,0,$P17/J17/COUNTIF('Expanded kW'!$A$2:$A$8785,'Monthly Data'!$B17)) -> 0.8308476529 | M17: =VLOOKUP('Manual Inputs'!E33,'Expanded kW'!$D$2:$F$8785,3) -> 9703.728516 | N17: =SUMIFS('Expanded kW'!$F$2:$F$8785,'Expanded kW'!$A$2:$A$8785,$B17,'Expanded kW'!$C$2:$C$8785,C$8) -> 3087441.014 | O17: =SUMIFS('Expanded kW'!$F$2:$F$8785,'Expanded kW'!$A$2:$A$8785,$B17,'Expanded kW'!$C$2:$C$8785,E$8) -> 4017342.205 | P17: 7104783.219
A18: =+'Manual Inputs'!A18 -> 2019 | B18: =+'Manual Inputs'!B18 -> 11 | C18: =MAX(IF('Expanded kW'!$A$2:$A$8785=$B18,IF('Expanded kW'!$C$2:$C$8785=C$8,'Expanded kW'!$F$2:$F$8785,0),0)) -> 9913.248047 | D18: =IF(C18=0,0,$P18/C18/COUNTIF('Expanded kW'!$A$2:$A$8785,'Monthly Data'!$B18)) -> 0.9361896724 | E18: =MAX(IF('Expanded kW'!$A$2:$A$8785=$B18,IF('Expanded kW'!$C$2:$C$8785=E$8,'Expanded kW'!$F$2:$F$8785,0),0)) -> 10071.63086 | F18: =IF(E18=0,0,$P18/E18/COUNTIF('Expanded kW'!$A$2:$A$8785,'Monthly Data'!$B18)) -> 0.9214674933 | H18: =+'LR Monthly'!G9 -> 10626.58487 | I18: =IF(H18=0,0,$P18/H18/COUNTIF('Expanded kW'!$A$2:$A$8785,'Monthly Data'!$B18)) -> 0.8733455343 | J18: =+'LR Monthly'!H9 -> 10963.17354 | K18: =IF(J18=0,0,$P18/J18/COUNTIF('Expanded kW'!$A$2:$A$8785,'Monthly Data'!$B18)) -> 0.8465322935 | M18: =VLOOKUP('Manual Inputs'!E34,'Expanded kW'!$D$2:$F$8785,3) -> 9437.830078 | N18: =SUMIFS('Expanded kW'!$F$2:$F$8785,'Expanded kW'!$A$2:$A$8785,$B18,'Expanded kW'!$C$2:$C$8785,C$8) -> 2716368.538 | O18: =SUMIFS('Expanded kW'!$F$2:$F$8785,'Expanded kW'!$A$2:$A$8785,$B18,'Expanded kW'!$C$2:$C$8785,E$8) -> 3965721.38 | P18: 6682089.918
A19: =+'Manual Inputs'!A19 -> 2019 | B19: =+'Manual Inputs'!B19 -> 12 | C19: =MAX(IF('Expanded kW'!$A$2:$A$8785=$B19,IF('Expanded kW'!$C$2:$C$8785=C$8,'Expanded kW'!$F$2:$F$8785,0),0)) -> 9962.732422 | D19: =IF(C19=0,0,$P19/C19/COUNTIF('Expanded kW'!$A$2:$A$8785,'Monthly Data'!$B19)) -> 0.9041851844 | E19: =MAX(IF('Expanded kW'!$A$2:$A$8785=$B19,IF('Expanded kW'!$C$2:$C$8785=E$8,'Expanded kW'!$F$2:$F$8785,0),0)) -> 9801.226562 | F19: =IF(E19=0,0,$P19/E19/COUNTIF('Expanded kW'!$A$2:$A$8785,'Monthly Data'!$B19)) -> 0.919084463 | H19: =+'LR Monthly'!G10 -> 10683.0132 | I19: =IF(H19=0,0,$P19/H19/COUNTIF('Expanded kW'!$A$2:$A$8785,'Monthly Data'!$B19)) -> 0.8432223085 | J19: =+'LR Monthly'!H10 -> 10947.69114 | K19: =IF(J19=0,0,$P19/J19/COUNTIF('Expanded kW'!$A$2:$A$8785,'Monthly Data'!$B19)) -> 0.8228360609 | M19: =VLOOKUP('Manual Inputs'!E35,'Expanded kW'!$D$2:$F$8785,3) -> 9633.172852 | N19: =SUMIFS('Expanded kW'!$F$2:$F$8785,'Expanded kW'!$A$2:$A$8785,$B19,'Expanded kW'!$C$2:$C$8785,C$8) -> 2790350.892 | O19: =SUMIFS('Expanded kW'!$F$2:$F$8785,'Expanded kW'!$A$2:$A$8785,$B19,'Expanded kW'!$C$2:$C$8785,E$8) -> 3911716.466 | P19: 6702067.358
A20: =+'Manual Inputs'!A20 -> 2020 | B20: =+'Manual Inputs'!B20 -> 1 | C20: =MAX(IF('Expanded kW'!$A$2:$A$8785=$B20,IF('Expanded kW'!$C$2:$C$8785=C$8,'Expanded kW'!$F$2:$F$8785,0),0)) -> 9813.832031 | D20: =IF(C20=0,0,$P20/C20/COUNTIF('Expanded kW'!$A$2:$A$8785,'Monthly Data'!$B20)) -> 0.9520448806 | E20: =MAX(IF('Expanded kW'!$A$2:$A$8785=$B20,IF('Expanded kW'!$C$2:$C$8785=E$8,'Expanded kW'!$F$2:$F$8785,0),0)) -> 9947.691406 | F20: =IF(E20=0,0,$P20/E20/COUNTIF('Expanded kW'!$A$2:$A$8785,'Monthly Data'!$B20)) -> 0.9392338547 | H20: =+'LR Monthly'!G11 -> 10499.27209 | I20: =IF(H20=0,0,$P20/H20/COUNTIF('Expanded kW'!$A$2:$A$8785,'Monthly Data'!$B20)) -> 0.8898910764 | J20: =+'LR Monthly'!H11 -> 10719.70483 | K20: =IF(J20=0,0,$P20/J20/COUNTIF('Expanded kW'!$A$2:$A$8785,'Monthly Data'!$B20)) -> 0.8715919601 | M20: =VLOOKUP('Manual Inputs'!E36,'Expanded kW'!$D$2:$F$8785,3) -> 9606.163086 | N20: =SUMIFS('Expanded kW'!$F$2:$F$8785,'Expanded kW'!$A$2:$A$8785,$B20,'Expanded kW'!$C$2:$C$8785,C$8) -> 3003344.909 | O20: =SUMIFS('Expanded kW'!$F$2:$F$8785,'Expanded kW'!$A$2:$A$8785,$B20,'Expanded kW'!$C$2:$C$8785,E$8) -> 3948002.248 | P20: 6951347.157
A21: =+'Manual Inputs'!A21 -> 2020 | B21: =+'Manual Inputs'!B21 -> 2 | C21: =MAX(IF('Expanded kW'!$A$2:$A$8785=$B21,IF('Expanded kW'!$C$2:$C$8785=C$8,'Expanded kW'!$F$2:$F$8785,0),0)) -> 9880.605469 | D21: =IF(C21=0,0,$P21/C21/COUNTIF('Expanded kW'!$A$2:$A$8785,'Monthly Data'!$B21)) -> 0.9586130168 | E21: =MAX(IF('Expanded kW'!$A$2:$A$8785=$B21,IF('Expanded kW'!$C$2:$C$8785=E$8,'Expanded kW'!$F$2:$F$8785,0),0)) -> 10082.34961 | F21: =IF(E21=0,0,$P21/E21/COUNTIF('Expanded kW'!$A$2:$A$8785,'Monthly Data'!$B21)) -> 0.9394315197 | H21: =+'LR Monthly'!G12 -> 10372.0826 | I21: =IF(H21=0,0,$P21/H21/COUNTIF('Expanded kW'!$A$2:$A$8785,'Monthly Data'!$B21)) -> 0.9131895087 | J21: =+'LR Monthly'!H12 -> 10731.27039 | K21: =IF(J21=0,0,$P21/J21/COUNTIF('Expanded kW'!$A$2:$A$8785,'Monthly Data'!$B21)) -> 0.8826240204 | M21: =VLOOKUP('Manual Inputs'!E37,'Expanded kW'!$D$2:$F$8785,3) -> 9261.540039 | N21: =SUMIFS('Expanded kW'!$F$2:$F$8785,'Expanded kW'!$A$2:$A$8785,$B21,'Expanded kW'!$C$2:$C$8785,C$8) -> 2638574.807 | O21: =SUMIFS('Expanded kW'!$F$2:$F$8785,'Expanded kW'!$A$2:$A$8785,$B21,'Expanded kW'!$C$2:$C$8785,E$8) -> 3953712.396 | P21: 6592287.203
A22: =+'Manual Inputs'!A22 -> 2020 | B22: =+'Manual Inputs'!B22 -> 3 | C22: =MAX(IF('Expanded kW'!$A$2:$A$8785=$B22,IF('Expanded kW'!$C$2:$C$8785=C$8,'Expanded kW'!$F$2:$F$8785,0),0)) -> 9372.521484 | D22: =IF(C22=0,0,$P22/C22/COUNTIF('Expanded kW'!$A$2:$A$8785,'Monthly Data'!$B22)) -> 0.9354653611 | E22: =MAX(IF('Expanded kW'!$A$2:$A$8785=$B22,IF('Expanded kW'!$C$2:$C$8785=E$8,'Expanded kW'!$F$2:$F$8785,0),0)) -> 9560.664062 | F22: =IF(E22=0,0,$P22/E22/COUNTIF('Expanded kW'!$A$2:$A$8785,'Monthly Data'!$B22)) -> 0.9170565075 | H22: =+'LR Monthly'!G13 -> 10086.19258 | I22: =IF(H22=0,0,$P22/H22/COUNTIF('Expanded kW'!$A$2:$A$8785,'Monthly Data'!$B22)) -> 0.8692744186 | J22: =+'LR Monthly'!H13 -> 10608.18272 | K22: =IF(J22=0,0,$P22/J22/COUNTIF('Expanded kW'!$A$2:$A$8785,'Monthly Data'!$B22)) -> 0.8265005825 | M22: =VLOOKUP('Manual Inputs'!E38,'Expanded kW'!$D$2:$F$8785,3) -> 9395.483398 | N22: =SUMIFS('Expanded kW'!$F$2:$F$8785,'Expanded kW'!$A$2:$A$8785,$B22,'Expanded kW'!$C$2:$C$8785,C$8) -> 2680024.037 | O22: =SUMIFS('Expanded kW'!$F$2:$F$8785,'Expanded kW'!$A$2:$A$8785,$B22,'Expanded kW'!$C$2:$C$8785,E$8) -> 3843121.844 | P22: 6523145.881
A24: NOTE: The data above is not expanded but instead is the output from Load Research data.

Sheet Summary
A1: ='Manual Inputs'!D1 -> Kentucky Power Co.
A2: =+'Manual Inputs'!D2 -> Kentucky
A3: Annual Summary of Sample Data
A4: =CustClass & " Customers" -> Industrial General Svc - Subtransmission Customers
A5: =+'Monthly Data'!A5 -> For the Test Year Ended March 31, 2020
A6: =+'Monthly Data'!A6 -> Based on Sample Period Ended March 31, 2020
A8: On-Peak SNCP | B8: =+'Manual Inputs'!H11 -> 11904.40541
A9: Off-Peak SNCP | B9: =+'Manual Inputs'!I11 -> 12183.57941
A10: Total SNCP | B10: =+'Manual Inputs'!G11 -> 12442.02867
A12: On-Peak Energy | B12: =SUMIF('Expanded kW'!C2:C8785,"ON",'Expanded kW'!F2:F8785) -> 34674026.51 | C12: =+B12/$B$14 -> 0.4180472563 | E12: Off-Peak SNCP LF | F12: =+B$14/B8/(TYDays*24) -> 0.7931929833
A13: Off-Peak Energy | B13: =SUMIF('Expanded kW'!C2:C8785,"OFF",'Expanded kW'!F2:F8785) -> 48268813.06 | C13: =+B13/$B$14 -> 0.5819527437 | E13: On-Peak SNCP LF | F13: =+B$14/B9/(TYDays*24) -> 0.7750177944
A14: Total Energy | B14: =SUM('Expanded kW'!F2:F8785) -> 82942839.57 | E14: Total SNCP LF | F14: =+B$14/B10/(TYDays*24) -> 0.7589189104
A16: NOTE: The data above is not expanded but instead is the output from Load Research data.

Sheet Peaks
A1: ='Manual Inputs'!D1 -> Kentucky Power Co.
A2: =+'Manual Inputs'!D2 -> Kentucky
A3: Peak and Off-Peak Statistics (kW)
A4: =CustClass & " Customers" -> Industrial General Svc - Subtransmission Customers
A5: =+'Monthly Data'!A5 -> For the Test Year Ended March 31, 2020
A6: =+'Monthly Data'!A6 -> Based on Sample Period Ended March 31, 2020
A9: Year | B9: Month | C9: Total Sample | D9: Total Expanded | F9: Customers | G9: Coincident Peak | H9: NCP Peak | I9: NCP Off-Peak | J9: NCP Total | K9: SNCP Peak | L9: SNCP Off-Peak | M9: SNCP Total
A10: =+'Manual Inputs'!A11 -> 2019 | B10: =+'Manual Inputs'!B11 -> 4 | C10: =SUMIF('Expanded kW'!$A$2:$A$8785,B10,'Expanded kW'!$F$2:$F$8785) -> 6952238.586 | D10: =SUMIF('Expanded kW'!$A$2:$A$8785,B10,'Expanded kW'!$H$2:$H$8785) -> 117910147.1 | F10: =+'Manual Inputs'!D11 -> 19 | G10: =ROUND(VLOOKUP('Manual Inputs'!E27,'Expanded kW'!$D$2:$H$8785,5),0) -> 163280 | H10: =IF(C10=0,0,ROUND(+$D10/C10*'Monthly Data'!C11,0)) -> 173015 | I10: =IF(C10=0,0,ROUND(+$D10/C10*'Monthly Data'!E11,0)) -> 180303 | J10: =MAX(H10:I10) -> 180303 | K10: =IF($C10=0,0,+$D10/$C10*'LR Monthly'!G2) -> 187378.6503 | L10: =IF($C10=0,0,+$D10/$C10*'LR Monthly'!H2) -> 193357.3305 | M10: =IF($C10=0,0,+$D10/$C10*'LR Monthly'!F2) -> 198116.6412
A11: =+'Manual Inputs'!A12 -> 2019 | B11: =+'Manual Inputs'!B12 -> 5 | C11: =SUMIF('Expanded kW'!$A$2:$A$8785,B11,'Expanded kW'!$F$2:$F$8785) -> 6851842.59 | D11: =SUMIF('Expanded kW'!$A$2:$A$8785,B11,'Expanded kW'!$H$2:$H$8785) -> 114286934.9 | F11: =+'Manual Inputs'!D12 -> 19 | G11: =ROUND(VLOOKUP('Manual Inputs'!E28,'Expanded kW'!$D$2:$H$8785,5),0) -> 165345 | H11: =IF(C11=0,0,ROUND(+$D11/C11*'Monthly Data'!C12,0)) -> 170171 | I11: =IF(C11=0,0,ROUND(+$D11/C11*'Monthly Data'!E12,0)) -> 174214 | J11: =MAX(H11:I11) -> 174214 | K11: =IF($C11=0,0,+$D11/$C11*'LR Monthly'!G3) -> 184478.8313 | L11: =IF($C11=0,0,+$D11/$C11*'LR Monthly'!H3) -> 190390.6133 | M11: =IF($C11=0,0,+$D11/$C11*'LR Monthly'!F3) -> 195559.2358
A12: =+'Manual Inputs'!A13 -> 2019 | B12: =+'Manual Inputs'!B13 -> 6 | C12: =SUMIF('Expanded kW'!$A$2:$A$8785,B12,'Expanded kW'!$F$2:$F$8785) -> 7207408.517 | D12: =SUMIF('Expanded kW'!$A$2:$A$8785,B12,'Expanded kW'!$H$2:$H$8785) -> 121447648.2 | F12: =+'Manual Inputs'!D13 -> 19 | G12: =ROUND(VLOOKUP('Manual Inputs'!E29,'Expanded kW'!$D$2:$H$8785,5),0) -> 172763 | H12: =IF(C12=0,0,ROUND(+$D12/C12*'Monthly Data'!C13,0)) -> 176655 | I12: =IF(C12=0,0,ROUND(+$D12/C12*'Monthly Data'!E13,0)) -> 179020 | J12: 179020 | K12: =IF($C12=0,0,+$D12/$C12*'LR Monthly'!G4) -> 188640.6095 | L12: =IF($C12=0,0,+$D12/$C12*'LR Monthly'!H4) -> 194894.7574 | M12: =IF($C12=0,0,+$D12/$C12*'LR Monthly'!F4) -> 199075.678
A13: =+'Manual Inputs'!A14 -> 2019 | B13: =+'Manual Inputs'!B14 -> 7 | C13: =SUMIF('Expanded kW'!$A$2:$A$8785,B13,'Expanded kW'!$F$2:$F$8785) -> 7303739.239 | D13: =SUMIF('Expanded kW'!$A$2:$A$8785,B13,'Expanded kW'!$H$2:$H$8785) -> 114046633.4 | F13: =+'Manual Inputs'!D14 -> 19 | G13: =ROUND(VLOOKUP('Manual Inputs'!E30,'Expanded kW'!$D$2:$H$8785,5),0) -> 152141 | H13: =IF(C13=0,0,ROUND(+$D13/C13*'Monthly Data'!C14,0)) -> 164954 | I13: =IF(C13=0,0,ROUND(+$D13/C13*'Monthly Data'!E14,0)) -> 169006 | J13: 169006 | K13: =IF($C13=0,0,+$D13/$C13*'LR Monthly'!G5) -> 175798.1063 | L13: =IF($C13=0,0,+$D13/$C13*'LR Monthly'!H5) -> 181102.6067 | M13: =IF($C13=0,0,+$D13/$C13*'LR Monthly'!F5) -> 184769.7115
A14: =+'Manual Inputs'!A15 -> 2019 | B14: =+'Manual Inputs'!B15 -> 8 | C14: =SUMIF('Expanded kW'!$A$2:$A$8785,B14,'Expanded kW'!$F$2:$F$8785) -> 7282134.008 | D14: =SUMIF('Expanded kW'!$A$2:$A$8785,B14,'Expanded kW'!$H$2:$H$8785) -> 120834502.8 | F14: =+'Manual Inputs'!D15 -> 19 | G14: =ROUND(VLOOKUP('Manual Inputs'!E31,'Expanded kW'!$D$2:$H$8785,5),0) -> 166231 | H14: =IF(C14=0,0,ROUND(+$D14/C14*'Monthly Data'!C15,0)) -> 171939 | I14: =IF(C14=0,0,ROUND(+$D14/C14*'Monthly Data'!E15,0)) -> 174099 | J14: 174099 | K14: =IF($C14=0,0,+$D14/$C14*'LR Monthly'!G6) -> 187873.9285 | L14: =IF($C14=0,0,+$D14/$C14*'LR Monthly'!H6) -> 184806.5736 | M14: =IF($C14=0,0,+$D14/$C14*'LR Monthly'!F6) -> 196748.7925
A15: =+'Manual Inputs'!A16 -> 2019 | B15: =+'Manual Inputs'!B16 -> 9 | C15: =SUMIF('Expanded kW'!$A$2:$A$8785,B15,'Expanded kW'!$F$2:$F$8785) -> 6789755.891 | D15: =SUMIF('Expanded kW'!$A$2:$A$8785,B15,'Expanded kW'!$H$2:$H$8785) -> 109100473.1 | F15: =+'Manual Inputs'!D16 -> 19 | G15: =ROUND(VLOOKUP('Manual Inputs'!E32,'Expanded kW'!$D$2:$H$8785,5),0) -> 152648 | H15: =IF(C15=0,0,ROUND(+$D15/C15*'Monthly Data'!C16,0)) -> 163819 | I15: =IF(C15=0,0,ROUND(+$D15/C15*'Monthly Data'!E16,0)) -> 166380 | J15: 166380 | K15: =IF($C15=0,0,+$D15/$C15*'LR Monthly'!G7) -> 179332.366 | L15: =IF($C15=0,0,+$D15/$C15*'LR Monthly'!H7) -> 186204.8371 | M15: =IF($C15=0,0,+$D15/$C15*'LR Monthly'!F7) -> 189801.5116
A16: =+'Manual Inputs'!A17 -> 2019 | B16: =+'Manual Inputs'!B17 -> 10 | C16: =SUMIF('Expanded kW'!$A$2:$A$8785,B16,'Expanded kW'!$F$2:$F$8785) -> 7104783.219 | D16: =SUMIF('Expanded kW'!$A$2:$A$8785,B16,'Expanded kW'!$H$2:$H$8785) -> 113815805.8 | F16: =+'Manual Inputs'!D17 -> 19 | G16: =ROUND(VLOOKUP('Manual Inputs'!E33,'Expanded kW'!$D$2:$H$8785,5),0) -> 155450 | H16: =IF(C16=0,0,ROUND(+$D16/C16*'Monthly Data'!C17,0)) -> 165937 | I16: =IF(C16=0,0,ROUND(+$D16/C16*'Monthly Data'!E17,0)) -> 169138 | J16: 169138 | K16: =IF($C16=0,0,+$D16/$C16*'LR Monthly'!G8) -> 179048.8009 | L16: =IF($C16=0,0,+$D16/$C16*'LR Monthly'!H8) -> 184123.0857 | M16: =IF($C16=0,0,+$D16/$C16*'LR Monthly'!F8) -> 187917.8553
A17: =+'Manual Inputs'!A18 -> 2019 | B17: =+'Manual Inputs'!B18 -> 11 | C17: =SUMIF('Expanded kW'!$A$2:$A$8785,B17,'Expanded kW'!$F$2:$F$8785) -> 6682089.918 | D17: =SUMIF('Expanded kW'!$A$2:$A$8785,B17,'Expanded kW'!$H$2:$H$8785) -> 112584683 | F17: =+'Manual Inputs'!D18 -> 19 | G17: =ROUND(VLOOKUP('Manual Inputs'!E34,'Expanded kW'!$D$2:$H$8785,5),0) -> 159015 | H17: =IF(C17=0,0,ROUND(+$D17/C17*'Monthly Data'!C18,0)) -> 167026 | I17: =IF(C17=0,0,ROUND(+$D17/C17*'Monthly Data'!E18,0)) -> 169694 | J17: 169694 | K17: =IF($C17=0,0,+$D17/$C17*'LR Monthly'!G9) -> 179044.3864 | L17: =IF($C17=0,0,+$D17/$C17*'LR Monthly'!H9) -> 184715.4758 | M17: =IF($C17=0,0,+$D17/$C17*'LR Monthly'!F9) -> 189151.0868
A18: =+'Manual Inputs'!A19 -> 2019 | B18: =+'Manual Inputs'!B19 -> 12 | C18: =SUMIF('Expanded kW'!$A$2:$A$8785,B18,'Expanded kW'!$F$2:$F$8785) -> 6702067.358 | D18: =SUMIF('Expanded kW'!$A$2:$A$8785,B18,'Expanded kW'!$H$2:$H$8785) -> 101411479.3 | F18: =+'Manual Inputs'!D19 -> 19 | G18: =ROUND(VLOOKUP('Manual Inputs'!E35,'Expanded kW'!$D$2:$H$8785,5),0) -> 145763 | H18: =IF(C18=0,0,ROUND(+$D18/C18*'Monthly Data'!C19,0)) -> 150750 | I18: =IF(C18=0,0,ROUND(+$D18/C18*'Monthly Data'!E19,0)) -> 148306 | J18: 150750 | K18: =IF($C18=0,0,+$D18/$C18*'LR Monthly'!G10) -> 161648.6547 | L18: =IF($C18=0,0,+$D18/$C18*'LR Monthly'!H10) -> 165653.5952 | M18: =IF($C18=0,0,+$D18/$C18*'LR Monthly'!F10) -> 168935.6114
A19: =+'Manual Inputs'!A20 -> 2020 | B19: =+'Manual Inputs'!B20 -> 1 | C19: =SUMIF('Expanded kW'!$A$2:$A$8785,B19,'Expanded kW'!$F$2:$F$8785) -> 6951347.157 | D19: =SUMIF('Expanded kW'!$A$2:$A$8785,B19,'Expanded kW'!$H$2:$H$8785) -> 118044166.2 | F19: =+'Manual Inputs'!D20 -> 19 | G19: =ROUND(VLOOKUP('Manual Inputs'!E36,'Expanded kW'!$D$2:$H$8785,5),0) -> 163127 | H19: =IF(C19=0,0,ROUND(+$D19/C19*'Monthly Data'!C20,0)) -> 166653 | I19: =IF(C19=0,0,ROUND(+$D19/C19*'Monthly Data'!E20,0)) -> 168927 | J19: 168927 | K19: =IF($C19=0,0,+$D19/$C19*'LR Monthly'!G11) -> 178293.1844 | L19: =IF($C19=0,0,+$D19/$C19*'LR Monthly'!H11) -> 182036.4586 | M19: =IF($C19=0,0,+$D19/$C19*'LR Monthly'!F11) -> 187069.3599
A20: =+'Manual Inputs'!A21 -> 2020 | B20: =+'Manual Inputs'!B21 -> 2 | C20: =SUMIF('Expanded kW'!$A$2:$A$8785,B20,'Expanded kW'!$F$2:$F$8785) -> 6592287.203 | D20: =SUMIF('Expanded kW'!$A$2:$A$8785,B20,'Expanded kW'!$H$2:$H$8785) -> 106620368.6 | F20: =+'Manual Inputs'!D21 -> 19 | G20: =ROUND(VLOOKUP('Manual Inputs'!E37,'Expanded kW'!$D$2:$H$8785,5),0) -> 149792 | H20: =IF(C20=0,0,ROUND(+$D20/C20*'Monthly Data'!C21,0)) -> 159804 | I20: =IF(C20=0,0,ROUND(+$D20/C20*'Monthly Data'!E21,0)) -> 163067 | J20: 163067 | K20: =IF($C20=0,0,+$D20/$C20*'LR Monthly'!G12) -> 167752.8961 | L20: =IF($C20=0,0,+$D20/$C20*'LR Monthly'!H12) -> 173562.2204 | M20: =IF($C20=0,0,+$D20/$C20*'LR Monthly'!F12) -> 176833.0446
A21: =+'Manual Inputs'!A22 -> 2020 | B21: =+'Manual Inputs'!B22 -> 3 | C21: =SUMIF('Expanded kW'!$A$2:$A$8785,B21,'Expanded kW'!$F$2:$F$8785) -> 6523145.881 | D21: =SUMIF('Expanded kW'!$A$2:$A$8785,B21,'Expanded kW'!$H$2:$H$8785) -> 107473973 | F21: =+'Manual Inputs'!D22 -> 19 | G21: =ROUND(VLOOKUP('Manual Inputs'!E38,'Expanded kW'!$D$2:$H$8785,5),0) -> 154798 | H21: =IF(C21=0,0,ROUND(+$D21/C21*'Monthly Data'!C22,0)) -> 154420 | I21: =IF(C21=0,0,ROUND(+$D21/C21*'Monthly Data'!E22,0)) -> 157519 | J21: 157519 | K21: =IF($C21=0,0,+$D21/$C21*'LR Monthly'!G13) -> 166177.9775 | L21: =IF($C21=0,0,+$D21/$C21*'LR Monthly'!H13) -> 174778.1767 | M21: =IF($C21=0,0,+$D21/$C21*'LR Monthly'!F13) -> 179700.5553
A23: Total | C23: =SUM(C10:C21) -> 82942839.57 | D23: =SUM(D10:D21) -> 1357576816 | F23: =SUM(F10:F21) -> 228 | G23: 1900353 | H23: 1985143 | I23: 2019673 | J23: 2022117 | K23: 2135468.392 | L23: 2195625.731 | M23: 2253679.084
A24: Average | C24: =+C23/12 -> 6911903.297 | D24: =+D23/12 -> 113131401.3 | F24: =+F23/12 -> 19 | G24: 158362.75 | H24: 165428.5833 | I24: 168306.0833 | J24: 168509.75 | K24: 177955.6993 | L24: 182968.8109 | M24: 187806.5903
A25: Maximum | C25: =MAX(C10:C21) -> 7303739.239 | D25: =MAX(D10:D21) -> 121447648.2 | G25: =MAX(G10:G21) -> 172763 | H25: 176655 | I25: 180303 | J25: 180303 | K25: 188640.6095 | L25: 194894.7574 | M25: 199075.678
A27: Annual SNCP | K27: =MAX(+Summary!B8*Peaks!D23/Peaks!C23,K25) -> 194846.7749 | L27: =MAX(+Summary!B9*Peaks!D23/Peaks!C23,L25) -> 199416.1886 | M27: =MAX(+Summary!B10*Peaks!D23/Peaks!C23,M25) -> 203646.3877

Sheet Load Factors
A1: ='Manual Inputs'!D1 -> Kentucky Power Co.
A2: =+'Manual Inputs'!D2 -> Kentucky
A3: Load Factor Report
A4: =CustClass & " Customers" -> Industrial General Svc - Subtransmission Customers
A5: =+'Monthly Data'!A5 -> For the Test Year Ended March 31, 2020
A6: =+'Monthly Data'!A6 -> Based on Sample Period Ended March 31, 2020
D8: NCP | H8: SNCP
A9: Year | B9: Month | C9: Coincidence Ratio | D9: Peak LF | E9: Off-Peak LF | F9: Total LF | H9: Peak LF | I9: Off-Peak LF | J9: Total LF
A10: =+'Manual Inputs'!A11 -> 2019 | B10: =+'Manual Inputs'!B11 -> 4 | C10: =IF(Peaks!J10=0,0,+Peaks!G10/Peaks!J10) -> 0.9055867068 | D10: =IF(Peaks!H10=0,0,Peaks!$D10/Peaks!H10/COUNTIF('Expanded kW'!$A$2:$A$8785,'Load Factors'!$B10)) -> 0.9465311865 | E10: =IF(Peaks!I10=0,0,Peaks!$D10/Peaks!I10/COUNTIF('Expanded kW'!$A$2:$A$8785,'Load Factors'!$B10)) -> 0.9082715941 | F10: =IF(Peaks!J10=0,0,Peaks!$D10/Peaks!J10/COUNTIF('Expanded kW'!$A$2:$A$8785,'Load Factors'!$B10)) -> 0.9082715941 | H10: =IF(Peaks!K10=0,0,Peaks!$D10/Peaks!K10/COUNTIF('Expanded kW'!$A$2:$A$8785,'Load Factors'!$B10)) -> 0.8739741321 | I10: =IF(Peaks!L10=0,0,Peaks!$D10/Peaks!L10/COUNTIF('Expanded kW'!$A$2:$A$8785,'Load Factors'!$B10)) -> 0.8469505284 | J10: =IF(Peaks!M10=0,0,Peaks!$D10/Peaks!M10/COUNTIF('Expanded kW'!$A$2:$A$8785,'Load Factors'!$B10)) -> 0.8266044297
A11: =+'Manual Inputs'!A12 -> 2019 | B11: =+'Manual Inputs'!B12 -> 5 | C11: =IF(Peaks!J11=0,0,+Peaks!G11/Peaks!J11) -> 0.9490913474 | D11: =IF(Peaks!H11=0,0,Peaks!$D11/Peaks!H11/COUNTIF('Expanded kW'!$A$2:$A$8785,'Load Factors'!$B11)) -> 0.9026888932 | E11: =IF(Peaks!I11=0,0,Peaks!$D11/Peaks!I11/COUNTIF('Expanded kW'!$A$2:$A$8785,'Load Factors'!$B11)) -> 0.8817401107 | F11: =IF(Peaks!J11=0,0,Peaks!$D11/Peaks!J11/COUNTIF('Expanded kW'!$A$2:$A$8785,'Load Factors'!$B11)) -> 0.8817401107 | H11: =IF(Peaks!K11=0,0,Peaks!$D11/Peaks!K11/COUNTIF('Expanded kW'!$A$2:$A$8785,'Load Factors'!$B11)) -> 0.8326780398 | I11: =IF(Peaks!L11=0,0,Peaks!$D11/Peaks!L11/COUNTIF('Expanded kW'!$A$2:$A$8785,'Load Factors'!$B11)) -> 0.8068227154 | J11: =IF(Peaks!M11=0,0,Peaks!$D11/Peaks!M11/COUNTIF('Expanded kW'!$A$2:$A$8785,'Load Factors'!$B11)) -> 0.7854984248
A12: =+'Manual Inputs'!A13 -> 2019 | B12: =+'Manual Inputs'!B13 -> 6 | C12: =IF(Peaks!J12=0,0,+Peaks!G12/Peaks!J12) -> 0.9650485979 | D12: =IF(Peaks!H12=0,0,Peaks!$D12/Peaks!H12/COUNTIF('Expanded kW'!$A$2:$A$8785,'Load Factors'!$B12)) -> 0.9548401642 | E12: =IF(Peaks!I12=0,0,Peaks!$D12/Peaks!I12/COUNTIF('Expanded kW'!$A$2:$A$8785,'Load Factors'!$B12)) -> 0.942225948 | F12: =IF(Peaks!J12=0,0,Peaks!$D12/Peaks!J12/COUNTIF('Expanded kW'!$A$2:$A$8785,'Load Factors'!$B12)) -> 0.942225948 | H12: =IF(Peaks!K12=0,0,Peaks!$D12/Peaks!K12/COUNTIF('Expanded kW'!$A$2:$A$8785,'Load Factors'!$B12)) -> 0.8941727321 | I12: =IF(Peaks!L12=0,0,Peaks!$D12/Peaks!L12/COUNTIF('Expanded kW'!$A$2:$A$8785,'Load Factors'!$B12)) -> 0.8654788434 | J12: =IF(Peaks!M12=0,0,Peaks!$D12/Peaks!M12/COUNTIF('Expanded kW'!$A$2:$A$8785,'Load Factors'!$B12)) -> 0.8473023469
A13: =+'Manual Inputs'!A14 -> 2019 | B13: =+'Manual Inputs'!B14 -> 7 | C13: =IF(Peaks!J13=0,0,+Peaks!G13/Peaks!J13) -> 0.9002106434 | D13: =IF(Peaks!H13=0,0,Peaks!$D13/Peaks!H13/COUNTIF('Expanded kW'!$A$2:$A$8785,'Load Factors'!$B13)) -> 0.9292801979 | E13: =IF(Peaks!I13=0,0,Peaks!$D13/Peaks!I13/COUNTIF('Expanded kW'!$A$2:$A$8785,'Load Factors'!$B13)) -> 0.9070002589 | F13: =IF(Peaks!J13=0,0,Peaks!$D13/Peaks!J13/COUNTIF('Expanded kW'!$A$2:$A$8785,'Load Factors'!$B13)) -> 0.9070002589 | H13: =IF(Peaks!K13=0,0,Peaks!$D13/Peaks!K13/COUNTIF('Expanded kW'!$A$2:$A$8785,'Load Factors'!$B13)) -> 0.8719575481 | I13: =IF(Peaks!L13=0,0,Peaks!$D13/Peaks!L13/COUNTIF('Expanded kW'!$A$2:$A$8785,'Load Factors'!$B13)) -> 0.8464178874 | J13: =IF(Peaks!M13=0,0,Peaks!$D13/Peaks!M13/COUNTIF('Expanded kW'!$A$2:$A$8785,'Load Factors'!$B13)) -> 0.8296191215
A14: =+'Manual Inputs'!A15 -> 2019 | B14: =+'Manual Inputs'!B15 -> 8 | C14: =IF(Peaks!J14=0,0,+Peaks!G14/Peaks!J14) -> 0.9548073223 | D14: =IF(Peaks!H14=0,0,Peaks!$D14/Peaks!H14/COUNTIF('Expanded kW'!$A$2:$A$8785,'Load Factors'!$B14)) -> 0.9445906175 | E14: =IF(Peaks!I14=0,0,Peaks!$D14/Peaks!I14/COUNTIF('Expanded kW'!$A$2:$A$8785,'Load Factors'!$B14)) -> 0.9328713329 | F14: =IF(Peaks!J14=0,0,Peaks!$D14/Peaks!J14/COUNTIF('Expanded kW'!$A$2:$A$8785,'Load Factors'!$B14)) -> 0.9328713329 | H14: =IF(Peaks!K14=0,0,Peaks!$D14/Peaks!K14/COUNTIF('Expanded kW'!$A$2:$A$8785,'Load Factors'!$B14)) -> 0.8644731469 | I14: =IF(Peaks!L14=0,0,Peaks!$D14/Peaks!L14/COUNTIF('Expanded kW'!$A$2:$A$8785,'Load Factors'!$B14)) -> 0.8788213702 | J14: =IF(Peaks!M14=0,0,Peaks!$D14/Peaks!M14/COUNTIF('Expanded kW'!$A$2:$A$8785,'Load Factors'!$B14)) -> 0.825478846
A15: =+'Manual Inputs'!A16 -> 2019 | B15: =+'Manual Inputs'!B16 -> 9 | C15: =IF(Peaks!J15=0,0,+Peaks!G15/Peaks!J15) -> 0.9174660416 | D15: =IF(Peaks!H15=0,0,Peaks!$D15/Peaks!H15/COUNTIF('Expanded kW'!$A$2:$A$8785,'Load Factors'!$B15)) -> 0.924974727 | E15: =IF(Peaks!I15=0,0,Peaks!$D15/Peaks!I15/COUNTIF('Expanded kW'!$A$2:$A$8785,'Load Factors'!$B15)) -> 0.9107370766 | F15: =IF(Peaks!J15=0,0,Peaks!$D15/Peaks!J15/COUNTIF('Expanded kW'!$A$2:$A$8785,'Load Factors'!$B15)) -> 0.9107370766 | H15: =IF(Peaks!K15=0,0,Peaks!$D15/Peaks!K15/COUNTIF('Expanded kW'!$A$2:$A$8785,'Load Factors'!$B15)) -> 0.8449586552 | I15: =IF(Peaks!L15=0,0,Peaks!$D15/Peaks!L15/COUNTIF('Expanded kW'!$A$2:$A$8785,'Load Factors'!$B15)) -> 0.8137728169 | J15: =IF(Peaks!M15=0,0,Peaks!$D15/Peaks!M15/COUNTIF('Expanded kW'!$A$2:$A$8785,'Load Factors'!$B15)) -> 0.7983520969
A16: =+'Manual Inputs'!A17 -> 2019 | B16: =+'Manual Inputs'!B17 -> 10 | C16: =IF(Peaks!J16=0,0,+Peaks!G16/Peaks!J16) -> 0.9190720004 | D16: =IF(Peaks!H16=0,0,Peaks!$D16/Peaks!H16/COUNTIF('Expanded kW'!$A$2:$A$8785,'Load Factors'!$B16)) -> 0.9219055038 | E16: =IF(Peaks!I16=0,0,Peaks!$D16/Peaks!I16/COUNTIF('Expanded kW'!$A$2:$A$8785,'Load Factors'!$B16)) -> 0.9044580968 | F16: =IF(Peaks!J16=0,0,Peaks!$D16/Peaks!J16/COUNTIF('Expanded kW'!$A$2:$A$8785,'Load Factors'!$B16)) -> 0.9044580968 | H16: =IF(Peaks!K16=0,0,Peaks!$D16/Peaks!K16/COUNTIF('Expanded kW'!$A$2:$A$8785,'Load Factors'!$B16)) -> 0.854394069 | I16: =IF(Peaks!L16=0,0,Peaks!$D16/Peaks!L16/COUNTIF('Expanded kW'!$A$2:$A$8785,'Load Factors'!$B16)) -> 0.8308476529 | J16: =IF(Peaks!M16=0,0,Peaks!$D16/Peaks!M16/COUNTIF('Expanded kW'!$A$2:$A$8785,'Load Factors'!$B16)) -> 0.8140697079
A17: =+'Manual Inputs'!A18 -> 2019 | B17: =+'Manual Inputs'!B18 -> 11 | C17: =IF(Peaks!J17=0,0,+Peaks!G17/Peaks!J17) -> 0.9370690773 | D17: =IF(Peaks!H17=0,0,Peaks!$D17/Peaks!H17/COUNTIF('Expanded kW'!$A$2:$A$8785,'Load Factors'!$B17)) -> 0.9361872723 | E17: =IF(Peaks!I17=0,0,Peaks!$D17/Peaks!I17/COUNTIF('Expanded kW'!$A$2:$A$8785,'Load Factors'!$B17)) -> 0.9214681446 | F17: =IF(Peaks!J17=0,0,Peaks!$D17/Peaks!J17/COUNTIF('Expanded kW'!$A$2:$A$8785,'Load Factors'!$B17)) -> 0.9214681446 | H17: =IF(Peaks!K17=0,0,Peaks!$D17/Peaks!K17/COUNTIF('Expanded kW'!$A$2:$A$8785,'Load Factors'!$B17)) -> 0.8733455343 | I17: =IF(Peaks!L17=0,0,Peaks!$D17/Peaks!L17/COUNTIF('Expanded kW'!$A$2:$A$8785,'Load Factors'!$B17)) -> 0.8465322935 | J17: =IF(Peaks!M17=0,0,Peaks!$D17/Peaks!M17/COUNTIF('Expanded kW'!$A$2:$A$8785,'Load Factors'!$B17)) -> 0.8266810304
A18: =+'Manual Inputs'!A19 -> 2019 | B18: =+'Manual Inputs'!B19 -> 12 | C18: =IF(Peaks!J18=0,0,+Peaks!G18/Peaks!J18) -> 0.9669187396 | D18: =IF(Peaks!H18=0,0,Peaks!$D18/Peaks!H18/COUNTIF('Expanded kW'!$A$2:$A$8785,'Load Factors'!$B18)) -> 0.9041840912 | E18: =IF(Peaks!I18=0,0,Peaks!$D18/Peaks!I18/COUNTIF('Expanded kW'!$A$2:$A$8785,'Load Factors'!$B18)) -> 0.9190845397 | F18: =IF(Peaks!J18=0,0,Peaks!$D18/Peaks!J18/COUNTIF('Expanded kW'!$A$2:$A$8785,'Load Factors'!$B18)) -> 0.9041840912 | H18: =IF(Peaks!K18=0,0,Peaks!$D18/Peaks!K18/COUNTIF('Expanded kW'!$A$2:$A$8785,'Load Factors'!$B18)) -> 0.8432223085 | I18: =IF(Peaks!L18=0,0,Peaks!$D18/Peaks!L18/COUNTIF('Expanded kW'!$A$2:$A$8785,'Load Factors'!$B18)) -> 0.8228360609 | J18: =IF(Peaks!M18=0,0,Peaks!$D18/Peaks!M18/COUNTIF('Expanded kW'!$A$2:$A$8785,'Load Factors'!$B18)) -> 0.8068503179
A19: =+'Manual Inputs'!A20 -> 2020 | B19: =+'Manual Inputs'!B20 -> 1 | C19: =IF(Peaks!J19=0,0,+Peaks!G19/Peaks!J19) -> 0.9656656426 | D19: =IF(Peaks!H19=0,0,Peaks!$D19/Peaks!H19/COUNTIF('Expanded kW'!$A$2:$A$8785,'Load Factors'!$B19)) -> 0.9520471503 | E19: =IF(Peaks!I19=0,0,Peaks!$D19/Peaks!I19/COUNTIF('Expanded kW'!$A$2:$A$8785,'Load Factors'!$B19)) -> 0.9392312285 | F19: =IF(Peaks!J19=0,0,Peaks!$D19/Peaks!J19/COUNTIF('Expanded kW'!$A$2:$A$8785,'Load Factors'!$B19)) -> 0.9392312285 | H19: =IF(Peaks!K19=0,0,Peaks!$D19/Peaks!K19/COUNTIF('Expanded kW'!$A$2:$A$8785,'Load Factors'!$B19)) -> 0.8898910764 | I19: =IF(Peaks!L19=0,0,Peaks!$D19/Peaks!L19/COUNTIF('Expanded kW'!$A$2:$A$8785,'Load Factors'!$B19)) -> 0.8715919601 | J19: =IF(Peaks!M19=0,0,Peaks!$D19/Peaks!M19/COUNTIF('Expanded kW'!$A$2:$A$8785,'Load Factors'!$B19)) -> 0.8481427092
A20: =+'Manual Inputs'!A21 -> 2020 | B20: =+'Manual Inputs'!B21 -> 2 | C20: =IF(Peaks!J20=0,0,+Peaks!G20/Peaks!J20) -> 0.9185917445 | D20: =IF(Peaks!H20=0,0,Peaks!$D20/Peaks!H20/COUNTIF('Expanded kW'!$A$2:$A$8785,'Load Factors'!$B20)) -> 0.9586129557 | E20: =IF(Peaks!I20=0,0,Peaks!$D20/Peaks!I20/COUNTIF('Expanded kW'!$A$2:$A$8785,'Load Factors'!$B20)) -> 0.939430938 | F20: =IF(Peaks!J20=0,0,Peaks!$D20/Peaks!J20/COUNTIF('Expanded kW'!$A$2:$A$8785,'Load Factors'!$B20)) -> 0.939430938 | H20: =IF(Peaks!K20=0,0,Peaks!$D20/Peaks!K20/COUNTIF('Expanded kW'!$A$2:$A$8785,'Load Factors'!$B20)) -> 0.9131895087 | I20: =IF(Peaks!L20=0,0,Peaks!$D20/Peaks!L20/COUNTIF('Expanded kW'!$A$2:$A$8785,'Load Factors'!$B20)) -> 0.8826240204 | J20: =IF(Peaks!M20=0,0,Peaks!$D20/Peaks!M20/COUNTIF('Expanded kW'!$A$2:$A$8785,'Load Factors'!$B20)) -> 0.8662984065
A21: =+'Manual Inputs'!A22 -> 2020 | B21: =+'Manual Inputs'!B22 -> 3 | C21: =IF(Peaks!J21=0,0,+Peaks!G21/Peaks!J21) -> 0.9827258934 | D21: =IF(Peaks!H21=0,0,Peaks!$D21/Peaks!H21/COUNTIF('Expanded kW'!$A$2:$A$8785,'Load Factors'!$B21)) -> 0.9354634427 | E21: =IF(Peaks!I21=0,0,Peaks!$D21/Peaks!I21/COUNTIF('Expanded kW'!$A$2:$A$8785,'Load Factors'!$B21)) -> 0.917059306 | F21: =IF(Peaks!J21=0,0,Peaks!$D21/Peaks!J21/COUNTIF('Expanded kW'!$A$2:$A$8785,'Load Factors'!$B21)) -> 0.917059306 | H21: =IF(Peaks!K21=0,0,Peaks!$D21/Peaks!K21/COUNTIF('Expanded kW'!$A$2:$A$8785,'Load Factors'!$B21)) -> 0.8692744186 | I21: =IF(Peaks!L21=0,0,Peaks!$D21/Peaks!L21/COUNTIF('Expanded kW'!$A$2:$A$8785,'Load Factors'!$B21)) -> 0.8265005825 | J21: =IF(Peaks!M21=0,0,Peaks!$D21/Peaks!M21/COUNTIF('Expanded kW'!$A$2:$A$8785,'Load Factors'!$B21)) -> 0.8038609817
A23: Average | C23: =AVERAGE(Peaks!G10:G21)/AVERAGE(Peaks!J10:J21) -> 0.9397838997 | D23: =+Peaks!$D24/Peaks!H24/(TYDays*24/12) -> 0.934246619 | E23: =+Peaks!$D24/Peaks!I24/(TYDays*24/12) -> 0.9182739661 | F23: =+Peaks!$D24/Peaks!J24/(TYDays*24/12) -> 0.9171641087 | H23: =+Peaks!$D24/Peaks!K24/(TYDays*24/12) -> 0.8684807244 | I23: =+Peaks!$D24/Peaks!L24/(TYDays*24/12) -> 0.8446854625 | J23: =+Peaks!$D24/Peaks!M24/(TYDays*24/12) -> 0.8229268972

Sheet On,Off Peak kWh
A1: ='Manual Inputs'!D1 -> Kentucky Power Co.
A2: =+'Manual Inputs'!D2 -> Kentucky
A3: On and Off Peak Energy Summary
A4: =CustClass & " Customers" -> Industrial General Svc - Subtransmission Customers
A5: =+'Monthly Data'!A5 -> For the Test Year Ended March 31, 2020
A6: =+'Monthly Data'!A6 -> Based on Sample Period Ended March 31, 2020
C10: TY kWh | E10: kWh Peak | F10: % Peak | H10: kWh Off-Peak | I10: % Off-Peak
A11: =+'Manual Inputs'!A11 -> 2019 | B11: =+'Manual Inputs'!B11 -> 4 | C11: =SUMIF('Expanded kW'!$A$2:$A$8785,B11,'Expanded kW'!$H$2:$H$8785) -> 117910147.1 | E11: =SUMIFS('Expanded kW'!$H$2:$H$8785,'Expanded kW'!$A$2:$A$8785,$B11,'Expanded kW'!$C$2:$C$8785,"ON") -> 50802779.66 | F11: =IF(C11=0,0,+E11/C11) -> 0.4308601159 | H11: =SUMIFS('Expanded kW'!$H$2:$H$8785,'Expanded kW'!$A$2:$A$8785,$B11,'Expanded kW'!$C$2:$C$8785,"OFF") -> 67107367.46 | I11: =IF(C11=0,0,+H11/C11) -> 0.5691398841
A12: =+'Manual Inputs'!A12 -> 2019 | B12: =+'Manual Inputs'!B12 -> 5 | C12: =SUMIF('Expanded kW'!$A$2:$A$8785,B12,'Expanded kW'!$H$2:$H$8785) -> 114286934.9 | E12: =SUMIFS('Expanded kW'!$H$2:$H$8785,'Expanded kW'!$A$2:$A$8785,$B12,'Expanded kW'!$C$2:$C$8785,"ON") -> 49590281.56 | F12: =IF(C12=0,0,+E12/C12) -> 0.4339103293 | H12: =SUMIFS('Expanded kW'!$H$2:$H$8785,'Expanded kW'!$A$2:$A$8785,$B12,'Expanded kW'!$C$2:$C$8785,"OFF") -> 64696653.35 | I12: =IF(C12=0,0,+H12/C12) -> 0.5660896707
A13: =+'Manual Inputs'!A13 -> 2019 | B13: =+'Manual Inputs'!B13 -> 6 | C13: =SUMIF('Expanded kW'!$A$2:$A$8785,B13,'Expanded kW'!$H$2:$H$8785) -> 121447648.2 | E13: =SUMIFS('Expanded kW'!$H$2:$H$8785,'Expanded kW'!$A$2:$A$8785,$B13,'Expanded kW'!$C$2:$C$8785,"ON") -> 47496570.88 | F13: 0.3910867898 | H13: =SUMIFS('Expanded kW'!$H$2:$H$8785,'Expanded kW'!$A$2:$A$8785,$B13,'Expanded kW'!$C$2:$C$8785,"OFF") -> 73951077.35 | I13: 0.6089132102
A14: =+'Manual Inputs'!A14 -> 2019 | B14: =+'Manual Inputs'!B14 -> 7 | C14: =SUMIF('Expanded kW'!$A$2:$A$8785,B14,'Expanded kW'!$H$2:$H$8785) -> 114046633.4 | E14: =SUMIFS('Expanded kW'!$H$2:$H$8785,'Expanded kW'!$A$2:$A$8785,$B14,'Expanded kW'!$C$2:$C$8785,"ON") -> 49257838.61 | F14: 0.4319096245 | H14: =SUMIFS('Expanded kW'!$H$2:$H$8785,'Expanded kW'!$A$2:$A$8785,$B14,'Expanded kW'!$C$2:$C$8785,"OFF") -> 64788794.79 | I14: 0.5680903755
A15: =+'Manual Inputs'!A15 -> 2019 | B15: =+'Manual Inputs'!B15 -> 8 | C15: =SUMIF('Expanded kW'!$A$2:$A$8785,B15,'Expanded kW'!$H$2:$H$8785) -> 120834502.8 | E15: =SUMIFS('Expanded kW'!$H$2:$H$8785,'Expanded kW'!$A$2:$A$8785,$B15,'Expanded kW'!$C$2:$C$8785,"ON") -> 50237807.88 | F15: 0.4157571447 | H15: =SUMIFS('Expanded kW'!$H$2:$H$8785,'Expanded kW'!$A$2:$A$8785,$B15,'Expanded kW'!$C$2:$C$8785,"OFF") -> 70596694.96 | I15: 0.5842428553
A16: =+'Manual Inputs'!A16 -> 2019 | B16: =+'Manual Inputs'!B16 -> 9 | C16: =SUMIF('Expanded kW'!$A$2:$A$8785,B16,'Expanded kW'!$H$2:$H$8785) -> 109100473.1 | E16: =SUMIFS('Expanded kW'!$H$2:$H$8785,'Expanded kW'!$A$2:$A$8785,$B16,'Expanded kW'!$C$2:$C$8785,"ON") -> 44807005.01 | F16: 0.4106948738 | H16: =SUMIFS('Expanded kW'!$H$2:$H$8785,'Expanded kW'!$A$2:$A$8785,$B16,'Expanded kW'!$C$2:$C$8785,"OFF") -> 64293468.05 | I16: 0.5893051262
A17: =+'Manual Inputs'!A17 -> 2019 | B17: =+'Manual Inputs'!B17 -> 10 | C17: =SUMIF('Expanded kW'!$A$2:$A$8785,B17,'Expanded kW'!$H$2:$H$8785) -> 113815805.8 | E17: =SUMIFS('Expanded kW'!$H$2:$H$8785,'Expanded kW'!$A$2:$A$8785,$B17,'Expanded kW'!$C$2:$C$8785,"ON") -> 49459578.99 | F17: 0.4345580884 | H17: =SUMIFS('Expanded kW'!$H$2:$H$8785,'Expanded kW'!$A$2:$A$8785,$B17,'Expanded kW'!$C$2:$C$8785,"OFF") -> 64356226.79 | I17: 0.5654419116
A18: =+'Manual Inputs'!A18 -> 2019 | B18: =+'Manual Inputs'!B18 -> 11 | C18: =SUMIF('Expanded kW'!$A$2:$A$8785,B18,'Expanded kW'!$H$2:$H$8785) -> 112584683 | E18: =SUMIFS('Expanded kW'!$H$2:$H$8785,'Expanded kW'!$A$2:$A$8785,$B18,'Expanded kW'!$C$2:$C$8785,"ON") -> 45767341.45 | F18: 0.4065148137 | H18: =SUMIFS('Expanded kW'!$H$2:$H$8785,'Expanded kW'!$A$2:$A$8785,$B18,'Expanded kW'!$C$2:$C$8785,"OFF") -> 66817341.59 | I18: 0.5934851863
A19: =+'Manual Inputs'!A19 -> 2019 | B19: =+'Manual Inputs'!B19 -> 12 | C19: =SUMIF('Expanded kW'!$A$2:$A$8785,B19,'Expanded kW'!$H$2:$H$8785) -> 101411479.3 | E19: =SUMIFS('Expanded kW'!$H$2:$H$8785,'Expanded kW'!$A$2:$A$8785,$B19,'Expanded kW'!$C$2:$C$8785,"ON") -> 42221839.41 | F19: 0.4163418156 | H19: =SUMIFS('Expanded kW'!$H$2:$H$8785,'Expanded kW'!$A$2:$A$8785,$B19,'Expanded kW'!$C$2:$C$8785,"OFF") -> 59189639.89 | I19: 0.5836581844
A20: =+'Manual Inputs'!A20 -> 2020 | B20: =+'Manual Inputs'!B20 -> 1 | C20: =SUMIF('Expanded kW'!$A$2:$A$8785,B20,'Expanded kW'!$H$2:$H$8785) -> 118044166.2 | E20: =SUMIFS('Expanded kW'!$H$2:$H$8785,'Expanded kW'!$A$2:$A$8785,$B20,'Expanded kW'!$C$2:$C$8785,"ON") -> 51001243.02 | F20: 0.4320522111 | H20: =SUMIFS('Expanded kW'!$H$2:$H$8785,'Expanded kW'!$A$2:$A$8785,$B20,'Expanded kW'!$C$2:$C$8785,"OFF") -> 67042923.2 | I20: 0.5679477889
A21: =+'Manual Inputs'!A21 -> 2020 | B21: =+'Manual Inputs'!B21 -> 2 | C21: =SUMIF('Expanded kW'!$A$2:$A$8785,B21,'Expanded kW'!$H$2:$H$8785) -> 106620368.6 | E21: =SUMIFS('Expanded kW'!$H$2:$H$8785,'Expanded kW'!$A$2:$A$8785,$B21,'Expanded kW'!$C$2:$C$8785,"ON") -> 42674994.24 | F21: 0.4002517981 | H21: =SUMIFS('Expanded kW'!$H$2:$H$8785,'Expanded kW'!$A$2:$A$8785,$B21,'Expanded kW'!$C$2:$C$8785,"OFF") -> 63945374.35 | I21: 0.5997482019
A22: =+'Manual Inputs'!A22 -> 2020 | B22: =+'Manual Inputs'!B22 -> 3 | C22: =SUMIF('Expanded kW'!$A$2:$A$8785,B22,'Expanded kW'!$H$2:$H$8785) -> 107473973 | E22: =SUMIFS('Expanded kW'!$H$2:$H$8785,'Expanded kW'!$A$2:$A$8785,$B22,'Expanded kW'!$C$2:$C$8785,"ON") -> 44155509.67 | F22: 0.4108483982 | H22: =SUMIFS('Expanded kW'!$H$2:$H$8785,'Expanded kW'!$A$2:$A$8785,$B22,'Expanded kW'!$C$2:$C$8785,"OFF") -> 63318463.35 | I22: 0.5891516018
A24: 12-Month Total | C24: =SUM(C11:C22) -> 1357576816 | E24: =SUM(E11:E22) -> 567472790.4 | F24: 0.418004185 | H24: =SUM(H11:H22) -> 790104025.1 | I24: 0.581995815
